{"text_format":"1","workbook":"xlsx","n_sheets":11,"sheets":["Inicial","Instruções","Glossário","Matriz de Risco","Informações","Premissas","Entrada de Dados de Perigo","Pontuação de Dados","Sumário dos Riscos","Relatório de Vulnerabilidade","Contatos"],"not_rendered":{"charts":6,"images":10,"macros":1,"external_links":0,"defined_names":17,"comments":0,"pivot_tables":0},"unopened":[],"bounds":{"document_bytes":16777216,"sheet_cells":100000,"rows_first":2000,"rows_last":500,"rows_between":2000,"halvings":0,"cell_chars":16384,"cell_head_chars":4096},"cells_cut":0,"cells_raw":0,"read":"whole","date_system":"1900"}

{"sheet":"Inicial","index":0,"n_rows":28,"n_cols":13,"rows_kept":28,"cut":false,"hidden":false,"merged":[[27,12,27,16],[27,1,27,5],[27,6,27,10]]}
[]
[]
[]
[]
[]
[]
[null,null,"Ferramenta de Avaliação Rápida de Riscos (ARR)"]
[]
[]
[]
[]
[]
[]
[]
[]
[]
[]
[]
[]
[]
[]
[]
[]
[null,null,"Escritório das Nações Unidas para Redução do Risco de Desastres"]
[]
[]
[]
[null,"Traduzido pela\nUniversidade Federal de Juiz de Fora - Brasil\nwww.ufjf.br/resiliencia",null,null,null,null,null,null,null,null,null,null,"Nota: A compatibilidade e a funcionalidade da ferramenta podem ser afetadas usando versões do Excel anteriores a 2010 e, em casos isolados, determinadas versões (por exemplo, versão de estudante) do Excel 2010."]

{"sheet":"Instruções","index":1,"n_rows":196,"n_cols":2,"rows_kept":196,"cut":false,"hidden":false,"merged":[]}
[{"$f":"MdlTle","v":"Ferramenta de Avaliação Rápida de Riscos (ARR)"}]
[{"$f":"MID(CELL(\"filename\",A1),FIND(\"]\",CELL(\"filename\",A1))+1,255)","v":"Instruções"}]
[]
[]
[null,"Uma cidade resiliente é capaz de reduzir, resistir, absorver, acomodar e recuperar-se dos impactos dos perigos de maneira rápida e eficiente, preservando e restaurando estruturas e serviços básicos essenciais."]
[]
[null,"Objetivo da estrutura de tomada de decisão"]
[]
[null,"A ferramenta Estimativa Rápida de Perigos (ARR) foi projetada com o objetivo de identificar e entender os riscos atuais / futuros / estresse / choques e ameaças de exposição a ativos humanos e físicos. A Ferramenta ARR não é uma avaliação de risco completa, mas um processo de engajamento de várias partes interessadas para estabelecer um entendimento comum. Levando em conta as ações ou medidas corretivas já adotadas, o ARR produzirá uma avaliação de risco no estilo de painel, aconselhando os riscos e perigos para os ativos humanos e físicos, os impactos dos principais riscos identificados e os eventos de perigos associados no local especificado e / ou ativo específico ."]
[null,"A ferramenta ARR usa a classificação de perigos descrita pelo Escritório das Nações Unidas para Redução de Riscos de Desastres (UNDRR). Os indicadores de perigo incluídos na ferramenta ARR estão alinhados com os 10 pontos essenciais para tornar o scorecard resiliente das cidades no contexto da estrutura de Sendai para redução de Riscos de desastres 2015-2030 e dos objetivos de desenvolvimento sustentável."]
[null,"Apoiando a ferramenta ARR, uma Estrutura de Tomada de Decisão (DMF) foi desenvolvida com o objetivo de fornecer ao usuário as orientações necessárias para avaliar e subsequentemente pontuar a exposição e a vulnerabilidade dos perigos relevantes, bem como o nível de resposta ou ações atuais realizados com relação a esses perigos. A DMF, incorporada a essa ferramenta ARR, inclui um conjunto de instruções, definições (por exemplo, Glossário) e uma Matriz de Risco subjacente que orienta o usuário a inserir dados na ferramenta ARR, fornecendo ao usuário critérios indicativos de pontuação e escalas de medição conforme descrito na seção Premissas."]
[]
[null,"Quem pode utilizar esta ferramenta"]
[]
[null,"A ferramenta ARR está disponível para implantação nas cidades participantes da Campanha Tornando cidades resilientes."]
[null,"Usuários potenciais incluem: "]
[null," - autoridades municipais, incluindo agentes públicos dos setores de planejamento, de Proteção e Defesa Civil e de resposta a emergências."]
[null,"    - demais partes interessadas."]
[null,"A ferramenta ARR deve ser usada apenas em um ambiente de oficina em uma abordagem com várias partes interessadas e não respondida por uma única pessoa."]
[]
[null,"Instruções para o usuário desta ferramenta"]
[]
[null,"A ferramenta ARR fornecerá uma avaliação de risco simples no local especificado, ativo e / ou setor produtivo. Este exercício será baseado em sua auto-avaliação, para ser informado por sua experiência anterior, evidência, pesquisa e consulta com as partes interessadas relevantes à medida que você progride na ferramenta ARR. O processo de consulta também ajudará a envolver e criar entendimento, propriedade e alinhamento com as partes interessadas relevantes."]
[]
[null,"Um conjunto de instruções sobre como usar a ferramenta ARR foi fornecido abaixo, juntamente com um estudo de caso passo a passo."]
[]
[null,"Passo 1. Forneça informações sobre localização, região e / ou propriedade"]
[null,"Para começar a usar a ferramenta ARR, use a guia 'Informações' para inserir as informações de localização, região e / ou ativos específicos que identificam e definem o escopo dessa avaliação de risco."]
[]
[null,"Passo 2. Identifique grupo, subgrupo das tipologias de perigos"]
[null,"Consulte a coluna B na guia 'Entrada de dados de Perigo'."]
[null,"> Identifique o grupo e subgrupo das tipologias de perigos relevantes para o local que está sendo avaliado."]
[]
[null,"Observe que os grupos, subgrupos das tipologias de perigo são baseadas na classificação de risco adotada pela então UNISDR para a Estrutura de Sendai. Um glossário completo contendo as definições de perigo foi incluído na guia 'Glossário'. Além disso, um resumo dos grupos, subgrupos, perigos principais e eventos de risco do Quadro de Sendai pode ser encontrado na guia 'Premissas'. Este resumo, junto com o glossário de perigos, guiará sua entrada de dados nas etapas 2, 3 e 4. Observe que a associação de perigo com grupos e subgrupos é apenas uma sugestão e destina-se apenas a fins de clareza; alguns perigos podem mudar sua associação familiar com base no evento real e no gatilho da perda."]
[]
[null,"Estudo de caso:"]
[null,"  O local que está sendo avaliado neste estudo de caso é a cidade de Mackay, Queensland, Austrália em relação ao ciclone tropical severo Debbie (março de 2017)."]
[null," Mackay está situado em North Queensland, na costa leste da Austrália. A cidade de Mackay está situada às margens do Rio Pioneer e a Cordilheira Clarke fica a oeste da cidade. Uma grande região agrícola, Mackay é conhecida como uma das maiores regiões de cultivo de cana da Austrália. A população de Mackay ultrapassa os 120.000 habitantes, espalhados por uma variedade de oportunidades de vida, desde a costa a pequenas áreas residenciais rurais e rurais."]
[null," Com base no clima subtropical de Mackay e na história de desastres, a cidade está sujeita aos seguintes eventos: inundações, deslizamentos de terra, tempestades severas com granizo e ventos prejudiciais, incêndios florestais, ondas de calor, ciclones, terremotos e ação das ondas."]
[null,"Para o propósito deste estudo de caso, a avaliação se concentrará na compreensão do nível de risco dos seguintes perigos para permitir a priorização da ação: inundação, deslizamento de terra, ação das ondas e ciclone tropical."]
[null,"Todos os perigos selecionados acima pertencem ao grupo de perigos \"Perigos naturais\" de acordo com a classificação UNISDR para a Estrutura de Sendai."]
[null,"A identificação de subgrupos de perigo relevantes é baseada nessas classificações e na guia 'Glossário de perigo', resultando na seguinte seleção:"]
[null," - Perigos geofísicos"]
[null," - Perigos hidrológicos"]
[null," - Perigos meteorológicos"]
[null," - Risco climático"]
[null," - Perigos biológicos"]
[null," - Perigos antropogênicos."]
[null,"Como resultado, nos posicionaremos nas áreas selecionadas acima na guia 'Entrada de Dados de Perigo'."]
[]
[null,"Passo 3. Identificar os perigos principais"]
[null,"Consulte as colunas B e C na aba 'Entrada de dados de perigo'."]
[null,"  Dentro de cada grupo/subgrupo de perigo identificada no Passo 2, selecione os principais perigos relevantes para o local que está sendo avaliado."]
[null,"Um identificador é anexado automaticamente a cada perigo principal selecionado."]
[]
[null,"Estudo de caso:"]
[null,"Com base nas áreas selecionadas para estudo e informadas pela guia 'Campos de Dados' e pela guia 'Glossário de Perigo', os seguintes perigos principais são selecionados por cada subgrupo de perigo usando o menu suspenso na Coluna A:"]
[null,"  - Perigos hidrológicos: Cheias; Deslizamento de terra; Ação das ondas. Observe que uma linha deve ser usada para cada perigo selecionado."]
[null,"  - Perigos meteorológicos: Ciclone Tropical; Ciclone tropical. Observe que uma linha deve ser usada para cada perigo selecionado."]
[]
[null,"Passo 4. Selecionar eventos de perigo"]
[null,"Consulte a Coluna C na guia 'Entrada de Dados de Perigo'."]
[null,"> Para cada perigo principal identificado, selecione o evento associado relevante para o local determinado. Use uma linha por evento de perigo."]
[]
[null,"Observe que a ferramenta ARR contém 5 linhas por subgrupo de perigo para ajudar o usuário a limitar o escopo da avaliação. Um bloco adicional de 5 linhas é fornecido na parte inferior da guia 'Entrada de Dados de Perigo' para o usuário preencher, se necessário."]
[]
[null,"Estudo de caso:"]
[null,"A seleção de eventos de perigo é baseada no entendimento atual da cidade de Mackay, dados históricos sobre os principais perigos como resultado de eventos anteriores, pesquisas direcionadas e consultas com as partes interessadas relevantes. Informado pela guia 'Glossário de perigo' e pela guia 'Premissas', os seguintes eventos de perigo são selecionados para cada perigo principal usando o menu suspenso na Coluna C:"]
[null,"  - Inundação: Inundação Ribeirinha; Enxurrada. Observe que uma linha deve ser usada para cada perigo selecionado."]
[null,"  - Deslizamento: evento seguinte ao deslizamento"]
[null,"  - Ação das ondas: Inundação Costal"]
[null,"  - Ciclone Tropical: Vento; Tempestade. Observe que uma linha deve ser usada para cada evento de perigo selecionado."]
[null,"  - Inundação: inundação ribeirinha"]
[null,"  - Tempestade Convectiva: Granizo; Vento. Observe que uma linha deve ser usada para cada evento de perigo selecionado."]
[null,"  - Incêndio selvagem: Incêndio terrestre de mato / mato / pasto"]
[null,"  - Terremoto: Movimento do solo; Deslizamento após evento. Observe que uma linha deve ser usada para cada evento de perigo selecionado."]
[]
[null,"Passo 5. Avaliar a exposição"]
[null,"Consulte a Coluna D na guia 'Entrada de Dados de Perigo'."]
[null,"> Para cada evento de perigo selecionado, avalie e pontue a exposição do local que está sendo avaliado usando valores de \"Improvável a Inevitável\" (consulte a guia 'Premissas' para obter uma lista em escala completa)."]
[null,"> Registre sua justificativa para cada pontuação de avaliação na coluna N ('Comentários'). Isso permitirá a validação, bem como revisões futuras e acompanhamento do progresso."]
[]
[null,"A exposição refere-se a pessoas, propriedades, ativos, sistemas ou outros elementos presentes em zonas de perigo que estão, portanto, sujeitos a perdas potenciais (Terminologia UNISDR, 2009). Isso inclui população, estoque de edificações, instalações essenciais e infraestrutura crítica. Instalações críticas são as estruturas físicas primárias, instalações técnicas e sistemas que são social, econômica ou operacionalmente essenciais para o funcionamento de uma sociedade ou comunidade, tanto em circunstâncias rotineiras quanto em circunstâncias extremas de uma emergência (Terminologia UNISDR, 2009)."]
[]
[null,"Estudo de caso:"]
[null,"Com base na compreensão atual da cidade de Mackay (incluindo população, estoque de edifícios, instalações essenciais e infraestrutura crítica), aprendizados de eventos anteriores, pesquisas direcionadas e consultas com as partes interessadas relevantes, a exposição da cidade de Mackay a cada um dos eventos de perigo identificados é avaliado e pontuado na Coluna D da seguinte forma:"]
[null,"  - Inundação: Inundação Ribeirinha; Inundação repentina: a exposição é considerada extremamente provável. Observe que uma linha deve ser usada para cada perigo selecionado."]
[null,"  - Deslizamento: seguinte evento de deslizamento: A exposição é considerada provável."]
[null,"  - Ação das ondas: Inundação Costal: A exposição é considerada Extremamente Provável."]
[null,"  - Ciclone tropical: Vento: A exposição é considerada inevitável. Surto de tempestade: a exposição é considerada extremamente provável. Observe que uma linha deve ser usada para cada evento de perigo selecionado."]
[null,"O raciocínio por trás de cada pontuação dada deve ser registrado na coluna K (ou seja, comentários e justificativas)."]
[]
[null,"Passo 6. Avaliar a vulnerabilidade"]
[null,"Consulte a Coluna E - H na guia 'Entrada de Dados de Perigo'."]
[null,"> Para cada evento de perigo selecionado, avalie e pontue a vulnerabilidade em cada uma das quatro categorias usando valores de \"Improvável\" \"a\" \"Inevitável\" \"(consulte a guia 'Premissas' para uma lista em escala completa)."]
[null,"> As quatro categorias de vulnerabilidade a serem avaliadas incluem: a. Infraestrutura (todos os tipos - rodoviário, transporte, trilhos, portos, pontes, habitação, etc.)\nb. Setores produtivos (especificamente subsistência / mercado de trabalho indiretamente)\nc. Serviços essenciais ou básicos (saúde, telecomunicações, água, energia etc.)\nd. Aspectos humanos e sociais (deslocamento, segurança, etc.) \"\n> Registre sua justificativa para cada pontuação de avaliação na coluna N. Isso permitirá a validação, bem como futuras revisões e acompanhamento do progresso."]
[]
[null,"Vulnerabilidade refere-se às características e circunstâncias de uma comunidade, sistema ou ativo que o torna suscetível aos efeitos prejudiciais de uma ameaça (Terminologia UNISDR, 2009). Existem muitos aspectos da vulnerabilidade, decorrentes de vários fatores físicos, sociais, econômicos e ambientais. Os exemplos podem incluir projeto e construção inadequados de edifícios, proteção inadequada de ativos, falta de informação e conscientização pública, reconhecimento limitado de riscos e medidas de preparação e desrespeito por uma gestão ambiental inteligente. A vulnerabilidade varia significativamente dentro de uma comunidade e ao longo do tempo. Esta definição identifica a vulnerabilidade como uma característica do elemento de interesse (comunidade, sistema ou ativo) que independe de sua exposição."]
[]
[null,"Estudo de caso:"]
[null,"Depois de avaliar a vulnerabilidade física, social, econômica e ambiental da cidade de Mackay a cada um dos eventos de perigo selecionados, a pontuação relevante é inserida na Coluna E - H da seguinte forma:"]
[null," - Inundação: Inundação Ribeirinha: a vulnerabilidade em cada uma das quatro categorias é considerada: Infraestrutura: Muito Provável; Setores produtivos: muito provável; Serviços essenciais ou básicos: Muito provável; Aspectos humanos e sociais: Muito provável."]
[null," - Inundação: Enxurrada: a vulnerabilidade em cada uma das quatro categorias é considerada: Infraestrutura: Extremamente provável; Setores Produtivos: Extremamente Prováveis; Serviços essenciais ou básicos: Muito provável; Aspectos humanos e sociais: Extremamente provável."]
[null," - Deslizamento: seguinte evento de deslizamento: a vulnerabilidade em cada uma das quatro categorias é considerada: Infraestrutura: Provável; Setores Produtivos: Prováveis; Serviços essenciais ou básicos: Possíveis; Aspectos humanos e sociais: Possíveis."]
[null," - Ação das ondas: Inundação Costal: a vulnerabilidade em cada uma das quatro categorias é considerada: Infraestrutura: Muito Provável; Setores Produtivos: Prováveis; Serviços essenciais ou básicos: Possíveis; Aspectos humanos e sociais: Possíveis."]
[null," - Ciclone Tropical: Vento: a vulnerabilidade em cada uma das quatro categorias é considerada como: Infraestrutura: Extremamente Provável; Setores Produtivos: Extremamente Prováveis; Serviços essenciais ou básicos: Extremamente provável; Aspectos humanos e sociais: Extremamente provável."]
[null," - Ciclone Tropical: Maré de tempestade: a vulnerabilidade em cada uma das quatro categorias é considerada: Infraestrutura: Extremamente provável; Setores Produtivos: Extremamente Prováveis; Serviços essenciais ou básicos: inevitáveis; Aspectos humanos e sociais: Extremamente provável."]
[null,"O raciocínio por trás de cada pontuação dada deve ser registrado na coluna N."]
[]
[null,"Passo 7. Avaliar o nível das ações ou medidas atuais realizadas"]
[null,"Consulte a Coluna J na guia 'Entrada de Dados de Perigo'."]
[null,"> Para cada evento de perigo selecionado, avalie e pontue o nível de ações e medidas atuais para abordar e mitigar o evento de perigo no local que está sendo avaliado usando valores de \"Nenhuma medida em vigor\" a \"Controle total de desastre\" (consulte guia 'Premissas' para uma lista completa)."]
[null,"> Registre sua justificativa para cada pontuação de avaliação na coluna N. Isso permitirá a validação, bem como futuras revisões e acompanhamento do progresso."]
[]
[null,"Ações ou medidas atuais realizadas: atividades e medidas para evitar e / ou abordar perigos de desastres novos e existentes (Terminologia UNISDR, 2009). Ele indica o nível atual de resiliência a desastres do local especificado."]
[]
[null,"Estudo de caso:"]
[null,"Em Mackay, a Câmara Municipal tem uma série de Planos de Gestão de Desastres e estratégias de Recuperação de Desastres em vigor para gerenciar os impactos de desastres potenciais específicos dentro de seus limites. Eles também têm programas locais, iniciativas e ferramentas específicas para aumentar a conscientização e educar a população e as empresas para responder a esses cenários de desastre. Ao revisar essas informações, avaliar sua eficácia atual, consultar as partes interessadas relevantes e compreender as ações e medidas a serem realizadas para melhorar a preparação da cidade, a pontuação relevante foi inserida na coluna H da seguinte forma:"]
[null," - Inundação: Inundação ribeirinha: O nível das ações e medidas atualmente tomadas é considerado como \"Algumas medidas em vigor\"."]
[null," - Inundação: Inundação repentina: O nível das ações e medidas atualmente tomadas é considerado como \"Algumas medidas em vigor\"."]
[null," - Deslizamento: deslizamento após o evento: O nível das ações e medidas atualmente tomadas é considerado como \"Poucas medidas em vigor\"."]
[null," - Ação das ondas: Inundação costeira: O nível das ações e medidas atualmente tomadas é considerado \"Extremamente poucas medidas em vigor\"."]
[null," - Ciclone Tropical: Vento: O nível das ações atuais e das medidas tomadas é considerado \"Medidas razoáveis ​​em vigor\"."]
[null," - Ciclone Tropical: Maré de tempestade: O nível das ações atuais e das medidas tomadas é considerado \"Muito poucas medidas em vigor\"."]
[null,"O raciocínio por trás de cada pontuação dada deve ser registrado na coluna N."]
[]
[null,"Passo 8. Analisar os resultados"]
[null,"Consulte as colunas K, L e M na guia 'Entrada de Dados de Perigo'."]
[null,"> Com base em sua avaliação nos passos 5 a 7, a ferramenta ARR preencherá automaticamente dois valores numéricos finais: uma pontuação de classificação de probabilidade e classificação de gravidade; e, identificará a Classificação de Risco para o Perigo com base nas classificações identificadas na guia 'Matriz de Risco'."]
[null,"  a) Pontuação do ranking de probabilidade: refere-se à probabilidade de o evento ocorrer em comparação com os demais eventos avaliados no local especificado, com base na exposição e vulnerabilidade do local a esse evento e nas ações e medidas atualmente tomadas. Quanto menor a pontuação de classificação, menor o requisito potencial para ação. Quanto mais alta a pontuação de classificação, maior o requisito potencial para ação. Observe que esta pontuação não é uma medida estatística de probabilidade, mas uma pontuação de classificação para permitir a priorização de perigos / eventos de perigo em todos os perigos / eventos de perigo avaliados."]
[null,"  b) Classificação de gravidade: refere-se ao nível de impacto e conseqüência que um perigo teria no local em estudo e sua comunidade, variando de 1 a 100, sendo 1 a menor gravidade e 100 a maior."]
[null,"  c) Classificação de Risco: refere-se à atribuição de uma classificação de risco variando de Muito Baixo a Catastrófico alinhada à 'Matriz de Risco', que depende da classificação de verossimilhança e gravidade calculadas."]
[]
[null,"Notas:"]
[null,"  - Uma classificação de gravidade (negativa) indica que você está fora do limite de um risco material para o qual investir em uma resposta."]
[null,"  - A obtenção de uma classificação de gravidade zero ou (negativa) pode indicar uma pontuação irreal do nível de ações e medidas atuais em vigor para responder ao perigo específico."]
[null,"  - Você deve preencher todas as colunas de entrada de dados para um evento de perigo associado em um Grupo de Perigo para a classificação de gravidade de classificação de probabilidade e classificação de risco preencher"]
[]
[null,"Comunicado"]
[null,"> Uma visão geral dos dados por cada subgrupo de perigo será preenchida automaticamente na guia 'Pontuação de Dados para permitir uma análise individualizada dos resultados. Esta guia inclui um resumo das pontuações dos critérios obtidos como resultado da avaliação que será desbloqueado para o usuário usar conforme necessário.\r\n> A Ferramenta ARR disponibiliza ainda dois Relatórios combinados em duas abas consecutivas: Sumário dos Riscos e Relatório de Vulnerabilidade.\r\na) O Sumário dos Riscos mapeia a Probabilidade e Gravidade de Desastre na primeira tabela comparada com todos os perigos / eventos de perigo avaliados. A segunda tabela mapeia a exposição a desastres e a vulnerabilidade em comparação com todos os perigos / eventos de perigo avaliados.\r\nb) O Relatório de Vulnerabilidade mapeia as quatro categorias de vulnerabilidade e classificações de exposição individualmente.\r\nEsses relatórios fornecem uma representação visual ou 'Painel' dos resultados da avaliação, auxiliando-o na análise dos resultados do seu exercício e no desenvolvimento de cenários de risco atuais e futuros.\r\nNota: O tamanho dos 'pontos' nas tabelas dentro de cada relatório corresponde ao valor numérico da Classificação de Probabilidade (Sumário dos Perigos) e Classificação de Severidade (Sumário dos Perigos e Relatório de Vulnerabilidades). ”"]
[]
[null,"Estudo de caso"]
[null,"Com base nas decisões de pontuação feitas acima, a ferramenta ARR fornece as seguintes pontuações de classificação de probabilidade, classificações de gravidade e classificação de risco por evento de perigo. Isso é representado na guia 'Pontuação de Dados', permitindo a comparação com outros perigos principais sendo avaliados."]
[null," - Enchente: Enchente Ribeirinha: Classificação de vulnerabilidade total: 80 em 100; Pontuação de classificação de probabilidade: 8 em 100; Classificação de gravidade: 40 de 100; Classificação de risco: M6"]
[null," - Inundação: Enxurrada: Classificação total da vulnerabilidade: 88 de 100; Pontuação de classificação de probabilidade: 8 em 100; Classificação de gravidade: 40 de 100; Classificação de risco: M6"]
[null," - Deslizamento:deslizamento após evento: Classificação de vulnerabilidade total: 58 em 100; Pontuação de classificação de probabilidade: 5 de 100; Classificação de gravidade: 20 de 100; Classificação de risco: L4"]
[null," - Ação da onda: Inundação Costal: Classificação de vulnerabilidade total: 88 em 100; Pontuação de classificação de probabilidade: 8 em 100; Classificação de gravidade: 70 de 100; Classificação de risco: A7"]
[null," - Ciclone Tropical: Vento: Classificação de vulnerabilidade total: 90 em 100; Pontuação de classificação de probabilidade: 9 em 100; Classificação de gravidade: 40 de 100; Classificação de risco: A7"]
[null," - Ciclone Tropical: Maré de Tempestade: Classificação de vulnerabilidade total: 93 em 100; Pontuação de classificação de probabilidade: 8 em 100; Avaliação da gravidade: 60 de 100; Classificação de risco: A7"]
[]
[]
[null," Cenários da Matriz de Risco "]
[null,"A ferramenta ARR o ajudará a desenvolver e compreender os cenários de risco atuais e futuros com base nos resultados de sua autoavaliação. Um cenário de risco é uma avaliação abrangente da gravidade e probabilidade de um perigo e seu impacto total, com base na exposição e vulnerabilidade da cidade à perda de vidas, danos ou outro impacto adverso no desastre resultante. A identificação de cenários é crítica para compreender o nível de risco de cada desastre potencial e seu impacto no local especificado. Isso permitirá que as cidades estabeleçam uma medida básica de seu nível atual de resiliência a desastres, identifiquem prioridades de investimento e ação e acompanhem seu progresso na melhoria de sua resiliência a desastres ao longo do tempo."]
[null,"A ferramenta ARR pode ser aplicada ao desenvolvimento de diferentes cenários de risco baseados em:"]
[null," 1) um único perigo principal dentro de um grupo de perigo selecionada. Por exemplo, um terremoto (principal perigo dentro da família de risco geofísico) em um ambiente costeiro causando movimento do solo seguido por um tsunami."]
[null," 2) Um risco composto como resultado de uma combinação de dois ou mais perigos principais dentro da mesma família de risco. Por exemplo, um cenário de risco resultante da combinação de um evento de seca (perigo principal dentro do grupo de perigo climatológico) e um evento de incêndio florestal (perigo principal dentro do grupo de perigo climatológico) causando incêndios florestais e arbustos (evento de perigo) intensificados por condições secas."]
[null," 3) Uma combinação de perigos principais em diferentes grupos de perigos. Por exemplo, um cenário de risco em que há atividade vulcânica (perigo principal dentro do grupo de perigo geofísico) e deslizamento (perigo principal dentro do grupo de perigo hidrológico), causando movimento do solo, fluxo de lava e solo expansivo (evento de perigo) que se combinaram efeitos no ambiente urbano / rural de estudo."]
[null,"Notas:"]
[null,"   - Dentro dos grupos de perigo, a gravidade cumulativa que representa uma série de perigos principais e eventos de perigo associados pode ser avaliada usando os totais calculados e mostrados na guia Pontuação de Critérios e Gráficos de Grupo. Por exemplo, no exemplo atual, Célula A9 na guia 'Pontuação de Critérios e Gráficos de Grupo' indica uma Pontuação de Gravidade Total em todo Grupo de Risco de 215. Esta pontuação de gravidade total pode ser usada para identificar rapidamente o Grupo de Risco com a combinação mais severa de perigos/ eventos de perigo para fins de priorização de medidas de resposta."]
[]
[null,"O nível de risco para cada cenário identificado pode ser determinado usando a Matriz de Risco fornecida na aba 'Matriz de Risco'. Cada cenário recebe uma prioridade com base no nível de risco determinado. Isso o ajudará a identificar os riscos que requerem ação prioritária e aqueles que requerem apenas monitoramento e revisão contínuos. Também existe uma tabela 'Guia para a probabilidade' fornecida na guia Matriz de Risco. Este Guia foi projetado para ajudar o usuário a compreender a probabilidade e as definições alinhadas às categorias de classificação."]
[]
[null,"Estudo de caso:"]
[null,"Uma série de cenários de risco podem ser desenvolvidos como resultado da avaliação da cidade de Mackay. Conforme explicado acima, os cenários podem ser construídos dentro ou entre os Grupos de Perigos e Perigos Principais, eventos de perigo ou uma combinação destes. Neste estudo de caso, três cenários potenciais foram desenvolvidos abaixo:"]
[]
[null,"1) Cenário # 1: Uma enchente ribeirinha."]
[null,"2) Cenário #2: Uma tempestade convectiva com granizo e ventos prejudiciais."]
[null,"3) Cenário # 3: Um terremoto causando movimento do solo, seguido por deslizamento de terra e inundação ribeirinha."]
[]
[null,"Principais dados e fórmulas a serem usados ​​em cálculos de cenários:"]
[null,"  - Uma inundação ribeirinha tem uma classificação de probabilidade de 8,5 e uma classificação de gravidade de 65,0."]
[null,"  - Uma tempestade convectiva com uma classificação de probabilidade de 4,0 (com granizo) e 7,0 (com vento) e uma classificação de gravidade de 5,0 (com granizo) e 40,0 (com vento)."]
[null,"  - Terremoto causando movimento do solo tem uma classificação de probabilidade de 6,5 e uma classificação de gravidade de 45,0."]
[null,"  - Terremoto que causa deslizamento de terra após o evento tem uma classificação de probabilidade de 7,5 e uma classificação de gravidade de 60,0."]
[]
[null,"  - Classificação de probabilidade média (LR): LR1 + LR2 + LR3 dividido pelo número total de LR avaliados"]
[null,"  - Classificação de gravidade média ponderada (ASR): (LR1 x SR1) + (LR2 x SR2) dividido por 10, onde SR é a classificação de gravidade para cada evento de perigo avaliado."]
[]
[null,"Para determinar o nível de risco de cada cenário, nos referimos à Matriz de Risco fornecida."]
[]
[null,"1) Cenário # 1:"]
[null,"     - Com base na pontuação da classificação de probabilidade obtida, ou seja, 8,5, a classificação de probabilidade do cenário com base na exposição e vulnerabilidade, quando comparada com outros cenários potenciais na cidade de Mackay, é classificada como \"Muito Alta\"."]
[null,"     - Com base na classificação de gravidade obtida, ou seja, 65,0, a gravidade do evento é classificada como \"Grave\"."]
[null,"     - Como resultado, um nível de risco final de \"A8\" é obtido."]
[null,"2) Cenário # 2:"]
[null,"     - Como este cenário é construído sobre dois eventos de perigos dentro do mesmo subgrupo de perigo, a pontuação de classificação de probabilidade média é calculada usando a pontuação de classificação de probabilidade para cada evento de perigo. Neste caso, a pontuação média da classificação da probabilidade é igual a 5,5 (ou seja, 4,0 + 7,0 / 2), portanto, a classificação da probabilidade do cenário com base na exposição e vulnerabilidade, quando comparada com outros cenários potenciais na cidade de Mackay, é classificada como \"Moderada\"."]
[null,"     - A classificação de gravidade média ponderada é calculada usando a classificação de gravidade de cada evento de risco ponderada pela pontuação de classificação de probabilidade de cada evento de risco. A classificação de gravidade do cenário é igual a 30 (ou seja, 4,0 x 5,0 + 7,0 x 40,0 / 10), portanto, a gravidade do cenário é classificada como \"Moderada\"."]
[null,"     - Como resultado, um nível de risco final de \"M5\" é obtido."]
[null,"3) Cenário # 3:"]
[null,"     - Como este cenário é construído com base em três eventos de perigo, a pontuação de classificação de probabilidade média é calculada usando a pontuação de classificação de probabilidade para cada evento de perigo. Neste caso, a pontuação média de probabilidade de classificação é igual a 7,5 (ou seja, 6,5 + 7,5 + 8,5 / 3), portanto, a classificação de probabilidade do cenário com base na exposição e vulnerabilidade, quando comparada com outros cenários potenciais na cidade de Mackay, é classificada como \"Alta \""]
[null,"     - Como este cenário é baseado em eventos de perigo de diferentes subgrupos de perigo (ou seja, dois dentro do subgrupo de perigo geofísico e um dentro do subgrupo de perigo hidrológico), a classificação de gravidade média ponderada é calculada da seguinte forma: primeiro, a média ponderada a classificação de gravidade para o evento de perigo do mesmo subgrupo (ou seja, movimento do solo e deslizamento) é calculada usando a classificação de gravidade de cada evento de perigo ponderada pela pontuação de classificação de probabilidade de cada evento de perigo (74,25, ou seja [6,5 x 45,0] + [7,5 X 60,0] / 10); em segundo lugar, a classificação de gravidade do terceiro evento de perigo (inundação) é multiplicada por sua pontuação de classificação de probabilidade (55,25, ou seja, [8,5 X 65,0] / 10); finalmente, obtém-se a média das duas avaliações calculadas (64,75, ou seja, [74,25 + 55,25] / 2). Portanto, a classificação de gravidade média do cenário é igual a 64,75, portanto, a gravidade do cenário é classificada como \"Alta\"."]
[null,"     - Como resultado, um nível de risco final de \"A7\" é obtido."]
[]
[null,"Esses cenários podem ser priorizados com base em seu nível de risco, ou seja, cenário nº 1> cenário nº 3> cenário nº 2. Isso guiará a cidade de Mackay na elaboração de um plano de ação adequado."]
[]
["Fim"]

{"sheet":"Glossário","index":2,"n_rows":94,"n_cols":16384,"rows_kept":94,"cut":false,"hidden":false,"merged":[[12,1,16,1]]}
[{"$f":"MdlTle","v":"Ferramenta de Avaliação Rápida de Riscos (ARR)"}]
[{"$f":"MID(CELL(\"filename\",A1),FIND(\"]\",CELL(\"filename\",A1))+1,255)","v":"Glossário"}]
[]
[]
[null,"Term","Definition"]
[null,"Ação de Onda","Ondas de superfície geradas pelo vento que podem ocorrer na superfície de qualquer corpo de água aberto, como oceanos, rios e lagos, etc. O tamanho da onda depende da força do vento e da distância percorrida (fetch)."]
[null,"Acidente de Aviação","A ser atualizado"]
[null,"Acidente de Navegação","A ser atualizado"]
[null,"Acidente em estradas","A ser atualizado"]
[null,"Acidente Espacial","A ser atualizado"]
[null,"Acidente Ferroviário","A ser atualizado"]
[null,"Atividade Vulcânica","Um tipo de evento vulcânico próximo a uma abertura / ventilação na superfície da Terra, incluindo erupções vulcânicas de lava, cinzas, vapor quente, gás e material piroclástico."]
[null,"Avalanche","Uma grande massa de material terrestre solto, neve ou gelo que desliza, flui ou cai rapidamente montanha abaixo sob a força da gravidade."]
[]
[null,null,"• Avalanche de Neve: Movimento descendente rápido de uma mistura de neve e gelo."]
[]
[null,null,"• Avalanche de detritos: Movimento descendente repentino e muito rápido de uma massa não classificada de rocha e solo. Existem dois tipos gerais de avalanches de detritos - uma avalanche de detritos frios geralmente resulta de uma encosta instável colapsando repentinamente, enquanto uma avalanche de detritos quentes resulta de atividade vulcânica levando à instabilidade da encosta e colapso."]
[null,"Chuva","O vapor de água se condensa na atmosfera para formar gotículas de água que caem na Terra."]
[null,"Ciclone Tropical","Um ciclone tropical se origina em águas tropicais ou subtropicais. É caracterizado por um ciclone de escala sinótica não frontal com núcleo quente, centro de baixa pressão, faixas de chuva em espiral e ventos fortes. Dependendo de sua localização, os ciclones tropicais são chamados de furacões (Atlântico, Pacífico Nordeste), tufões (Pacífico Noroeste) ou ciclones (Pacífico Sul e Oceano Índico)."]
[null,"Clima Espacial","Um termo geral para condições meteorológicas extraterrestres causadas por erupções solares, como tempestades geomagnéticas, distúrbios de rádio e partículas energéticas solares."]
[null,"Colapso Estrutural","A ser atualizado"]
[null,"Contaminação Radioativa (Ex: Incidente nuclear )","A ser atualizado"]
[null,"Derecho","Tempestades de vento generalizadas e geralmente rápidas associadas a convecção / tempestade convectiva. Derechos incluem ventos descendentes e em linha reta. O dano de derechos é freqüentemente confundido com o dano de tornados."]
[null,"Derramamento de Óleo","A ser atualizado"]
[null,"Derramamento Químico","A ser atualizado"]
[null,"Desastre Industrial ","A ser atualizado"]
[null,"Deslizamento Após Terremoto","Independentemente da presença de água, o movimento de massa também pode ser desencadeado por terremotos."]
[null,"Disastre de Mina","A ser atualizado"]
[null,"Doença Bacteriana","Aumento incomum no número de incidentes causados pela exposição a bactérias, seja por contato com a pele, ingestão ou inalação. Os exemplos incluem salmonela, MSRA e cólera, entre outros."]
[null,"Doença de Príon","Um tipo de perigo biológico causado por proteínas príon. As doenças priônicas ou encefalopatias espongiformes transmissíveis (EET) são uma família de doenças neurodegenerativas progressivas raras que afetam humanos e animais caracterizadas por longos períodos de incubação e perda neural. Exemplos são encefalopatia espongiforme bovina (BSE), doença de Creutzfeldt-Jakob (CJD), Kuru, etc."]
[null,"Doença Fúngica","Exposição a fungos por contato com a pele, ingestão ou inalação de esporos, resultando em um aumento incomum no número de incidentes. Exemplos são pneumonia fúngica, meningite fúngica, etc."]
[null,"Doença Parasitária","A exposição a um parasita - um organismo que vive em ou em um hospedeiro - que cause um aumento incomum no número de incidentes. A exposição a parasitas ocorre principalmente por meio de água contaminada, alimentos ou contato com insetos, animais (zoonóticos), animais de estimação, etc. Exemplos são malária, doença de chagas, giardíase e triquinelose."]
[null,"Doenças","Um aumento incomum, muitas vezes repentino, no número de incidentes de uma doença infecciosa que já existia na região (por exemplo, gripe, E. coli) ou o aparecimento de uma doença infecciosa anteriormente ausente na região (por exemplo, peste, poliomielite )"]
[null,"Dolinas","Colapso da superfície da terra devido à dissolução das rochas do subsolo, como calcário ou rocha carbonática, pela água."]
[null,"Enxurrada","Chuvas fortes ou excessivas em um curto período de tempo que produzem escoamento imediato, criando condições de inundação em minutos ou algumas horas durante ou após a chuva."]
[null,"Erosão Costeira","A perda temporária ou permanente de sedimentos ou massa de terra nas margens costeiras devido à ação de ondas, ventos, marés ou atividades antrópicas."]
[null,"Explosão Áerea","Uma explosão de um cometa ou meteoróide na atmosfera da Terra sem atingir o solo."]
[null,"Explosão Industrial ","A ser atualizado"]
[null,"Falta de Energia","A ser atualizado"]
[null,"Fluxo de Detritos, Fluxo de Lama, Queda de Rochas","Tipos de deslizamentos de terra que ocorrem quando a chuva forte ou o derretimento rápido da neve / gelo mandam grandes quantidades de vegetação, lama ou rocha para baixo da encosta por forças gravitacionais."]
[null,"Fluxo de Lava ","O magma ejetado que se move como uma massa líquida encosta abaixo de um vulcão durante uma erupção."]
[null,"Fluxo Piroclástico ","Gases extremamente quentes, cinzas e outros materiais com mais de 1.000 graus Celsius que fluem rapidamente pelo flanco de um vulcão (mais de 700 km / h) durante uma erupção."]
[null,"Geada","Geada é a consequência do resfriamento radiativo que resulta na formação de finos cristais de gelo no solo ou outras superfícies na forma de agulhas, penas, escamas ou ventiladores. A geada ocorre quando a temperatura das superfícies está abaixo de zero e o vapor de água do ar úmido forma depósitos sólidos na superfície fria. O congelamento ocorre quando a temperatura do ar está em (32˚F / 0˚C) ou abaixo em uma área extensa por um período de tempo climatologicamente significativo. O uso do termo é geralmente restrito a situações advectivas ou a ocasiões em que o vento ou outras condições impedem a geada. Geada e congelamento são particularmente prejudiciais durante a estação de crescimento da safra."]
[null,"Granizo","Precipitação sólida na forma de pelotas irregulares ou bolas de gelo com mais de 5 mm de diâmetro."]
[null,"Impacto","Um tipo de perigo extraterrestre causado pela colisão da Terra com um meteoróide, asteróide ou cometa."]
[null,"Incêndio","A ser atualizado"]
[null,"Incêndio Após Terremoto","Incêndios urbanos provocados por terremotos. As áreas particularmente suscetíveis incluem edifícios de madeira densamente espaçados que dominam a arquitetura local e onde o terremoto danificou ou rompeu dutos de água e gás. Pequenos incêndios locais têm o potencial de se fundir em conflagrações, destruindo muitos quarteirões da cidade."]
[null,"Incêndio Florestal","Um tipo de incêndio florestal em uma área arborizada."]
[null,"Incidente Animal","Encontros de humanos com animais perigosos ou exóticos em ambientes urbanos e rurais."]
[null,"Infestação de Insetos","O influxo generalizado, enxame e / ou incubação de insetos que afetam humanos, animais, colheitas e produtos perecíveis. Exemplos são gafanhotos e abelhas africanas."]
[null,"Inundação","Um termo geral para o transbordamento de água de um canal de fluxo para terra normalmente seca na planície de inundação (inundação ribeirinha), níveis mais altos do que o normal ao longo da costa e em lagos ou reservatórios (inundação costeira), bem como lagoas de água em ou próximo o ponto onde a chuva caiu (inundações repentinas)."]
[null,"Inundação Costeira","Níveis de água acima do normal ao longo da costa causados por mudanças de marés ou tempestades que resultam em inundações, que podem durar de dias a semanas."]
[null,"Inundação de Gelo Derretido","O acúmulo de gelo flutuante restringindo ou bloqueando o fluxo e a drenagem de um rio. Os congestionamentos de gelo tendem a se desenvolver perto das curvas e obstruções do rio (por exemplo, pontes)."]
[null,"Inundação Ribeirinha","Tipo de inundação resultante do transbordamento de água de um riacho ou canal de rio para terras normalmente secas na planície de inundação adjacente ao canal."]
[null,"Lahar","Mistura quente ou fria de material de terra fluindo na encosta de um vulcão durante ou entre as erupções vulcânicas."]
[null,"Liquefação","A transformação do solo (parcialmente) saturado de água de um estado sólido para um estado líquido, causada por um terremoto. A liquefação reduz a resistência e a rigidez do solo, fazendo com que os edifícios tombem."]
[null,"Maré de Tempestade","Um aumento anormal do nível do mar gerado por um ciclone tropical ou outras tempestades intensas."]
[null,"Movementação de Solo","Deslocamento de superfície de materiais terrestres devido ao tremor do solo desencadeado por terremotos ou erupções vulcânicas."]
[null,"Movimento de Massa","Qualquer tipo de movimento descendente de materiais terrestres."]
[null,"Neblina","Gotas de água que estão suspensas no ar perto da superfície da Terra. A névoa é simplesmente uma nuvem que está em contato com o solo."]
[null,"Neve, Gelo","Precipitação na forma de cristais de gelo / flocos de neve ou pelotas de gelo (granizo) formadas diretamente do congelamento do vapor de água no ar. O gelo se acumula quando a chuva atinge a superfície fria e congela."]
[null,"Onda de Calor","Um período de tempo anormalmente quente e / ou úmido. Normalmente, uma onda de calor dura dois ou mais dias. Os critérios exatos de temperatura para o que constitui uma onda de calor variam conforme o local."]
[null,"Onda Fria ","Um período de tempo anormalmente frio. Normalmente, uma onda de frio dura dois ou mais dias e pode ser agravada por ventos fortes. Os critérios exatos de temperatura para o que constitui uma onda de frio variam conforme a localização."]
[null,"Ondas de Choque","Uma onda de choque transporta energia de uma perturbação por meio de um meio (sólido, líquido, gás) semelhante a uma onda, embora viaje a uma velocidade muito mais alta. Pode ser um tipo de perigo extraterrestre causado pela explosão (estouro de ar) ou impacto de meteoritos que geram ondas de choque de energia capazes de estilhaçar vidros, desabar paredes, etc."]
[null,"Ondas Gigantes","Uma única crista incomum de uma onda oceânica distante no mar que é muito mais alta e / ou mais íngreme do que outras ondas no sistema de swell predominante."]
[null,"Partículas Energéticas","Emissões de tempestades de radiação solar que consistem em pedaços de matéria (por exemplo, prótons e outras partículas carregadas) se movendo a uma velocidade muito alta. A magnetosfera e a atmosfera bloqueiam as partículas energéticas (solares) (SEP) de alcançar os humanos na Terra, mas elas são prejudiciais à eletrônica da tecnologia de origem espacial (como satélites) e representam um perigo de radiação para a vida no espaço e aeronaves viajando em grandes altitudes ."]
[null,"Perigo Geofísico ","Um perigo originado de terra sólida. Este termo é usado alternadamente com o termo perigo geológico."]
[null,"Perigo Hidrológico","Um perigo causado pela ocorrência, movimento e distribuição de água doce e salgada superficiais e subterrâneas."]
[null,"Perigo Meteorológico","Um perigo causado por condições extremas de tempo e atmosféricas de curta duração, em escala micro a meso, que duram de minutos a dias."]
[null,"Perigos Biológicos","Um perigo causado pela exposição a organismos vivos e suas substâncias tóxicas (por exemplo, veneno, mofo) ou doenças transmitidas por vetores que eles possam carregar. Exemplos: animais peçonhentos, plantas venenosas e mosquitos que transportam agentes causadores de doenças, como parasitas, bactérias ou vírus (por exemplo, malária)."]
[null,"Perigos Climatológicos","Um perigo causado por processos atmosféricos de longa duração, em escala meso a macro, variando de variabilidade climática intra-sazonal a multi-decadal."]
[null,"Perigos de origem sideral","Um perigo causado por asteróides, meteoróides e cometas à medida que passam perto da Terra, entram na atmosfera da Terra e / ou atingem a Terra, por mudanças nas condições interplanetárias que afetam a magnetosfera, ionosfera e termosfera da Terra."]
[null,"Perturbação de Rádio","Disparo por emissões de raios-x do Sol atingindo a atmosfera da Terra e causando distúrbios na ionosfera, como bloqueio de sinais de rádio de alta e / ou baixa frequência. Isso afeta a comunicação de rádio por satélite e os Sistemas de Posicionamento Global (GPS)."]
[null,"Queda de Cinzas","Detritos vulcânicos finos (menos de 4 mm de diâmetro),não consolidados, lançados na atmosfera durante uma erupção; pode permanecer no ar por longos períodos de tempo e se espalhar por outras áreas."]
[null,"Queimada","Qualquer combustão ou queima de plantas não controlada e não prescrita em um ambiente natural, como uma floresta, pastagem, mato ou tundra, que consome os combustíveis naturais e se espalha com base nas condições ambientais (por exemplo, vento, topografia). Incêndios florestais podem ser desencadeados por raios ou ações humanas."]
[null,"Relâmpago","Uma descarga elétrica visível de alta voltagem produzida por uma tempestade e seguida pelo som de um trovão."]
[null,"Rompimento de Lago Glacial","Uma inundação que ocorre quando a água represada por uma geleira ou morena é liberada repentinamente. Os lagos glaciais podem estar na frente da geleira (lago marginal) ou abaixo da camada de gelo (lago sub-glacial)."]
[null,"Secas","Um período prolongado de precipitação anormalmente baixa que produz falta de água para pessoas, animais e plantas. A seca é diferente da maioria dos outros perigos porque se desenvolve lentamente, às vezes até ao longo dos anos, e seu início é geralmente difícil de detectar. A seca não é apenas um fenômeno físico, pois seus impactos podem ser agravados pelas atividades humanas e demandas de abastecimento de água. A seca é, portanto, muitas vezes definida conceitualmente e operacionalmente. As definições operacionais de seca, significando o grau de redução da precipitação que constitui uma seca, variam por localidade, clima e setor ambiental."]
[null,"Seicha","Uma onda estacionária em um grande corpo de água semi ou totalmente fechado (lagos ou baías) criado por ventos fortes e / ou um grande gradiente de pressão barométrica."]
[null,"Solo Expansivo","Material de terra, particularmente argilas que, ao molhar, congelar ou secar, se expandem ou se contraem alternadamente, causando danos às fundações de edifícios e outras estruturas. O encolhimento é geralmente conhecido como dessecação."]
[null,"Subsidência","Subsidência refere-se ao afundamento do solo devido à remoção de águas subterrâneas, mineração, dissolução de calcário (por exemplo, cársico, sumidouros), extração de gás natural e terremotos."]
[null,"Temperaturas Extremas","Um termo geral para variações de temperatura acima (calor extremo) ou abaixo (frio extremo) das condições normais."]
[null,"Tempestade Convectiva","Um tipo de perigo meteorológico gerado pelo aquecimento do ar e pela disponibilidade de massas de ar úmidas e instáveis. Tempestades convectivas variam de tempestades localizadas (com chuva forte e / ou granizo, relâmpagos, ventos fortes, tornados) a eventos de mesoescala de vários dias."]
[null,"Tempestade de Inverno, Nevasca","Um sistema de baixa pressão nos meses de inverno com acúmulos significativos de neve, chuva congelante, granizo ou gelo. Uma nevasca é uma forte tempestade de neve com ventos que excedem 35 mph (56 km / h) por três ou mais horas."]
[null,"Tempestade Extratropical","Um tipo de sistema ciclônico de baixa pressão nas latitudes médias e altas (também chamado de ciclone de latitude média) que obtém sua energia principalmente dos contrastes horizontais de temperatura (frentes) na atmosfera. Quando associados a frentes frias, os ciclones extratropicais podem ser particularmente prejudiciais (por exemplo, inverno europeu / tempestade de vento, Nor'easter)."]
[null,"Tempestade Geomagnética","Um tipo de perigo extraterrestre causado por ondas de choque do vento solar que perturbam temporariamente a magnetosfera da Terra. Tempestades geomagnéticas podem interromper as redes de energia, as operações de espaçonaves e as comunicações por satélite."]
[null,"Tempestae de Areia, Tempestade de Poeira","Os ventos fortes carregam partículas de areia no alto, mas geralmente confinadas a menos de 50 pés (15 m), especialmente comum em ambientes áridos e semi-áridos. Uma tempestade de areia também é caracterizada por ventos fortes, mas carrega partículas menores de poeira em vez de areia sobre uma área extensa."]
[null,"Terremoto","Movimento repentino de um bloco da crosta terrestre ao longo de uma falha geológica e tremor de solo associado."]
[null,"Tornado","Uma coluna de ar em rotação violenta que atinge o solo ou mar aberto (tromba d'água)."]
[null,"Tsunami ","Uma série de ondas (com longos comprimentos de onda quando viajam através do oceano profundo) que são geradas pelo deslocamento de grandes quantidades de água por meio de terremotos subaquáticos, erupções vulcânicas ou deslizamentos de terra. As ondas do tsunami viajam em alta velocidade através do oceano, mas conforme começam a atingir águas rasas, elas diminuem e a onda fica mais íngreme."]
[null,"Ventos","Diferenças na pressão do ar, resultando no movimento horizontal do ar. Quanto maior a diferença de pressão, mais forte é o vento. O vento se move de alta pressão para baixa pressão."]
[]
[]
["Fim",null,null,null,null,null,null,null,null,null,null,null,"End","End","End","End","End","End","End","End","End","End","End","End","End","End","End","End","End","End","End","End","End","End","End","End","End","End","End","End","End","End","End","End","End","End","End","End","End","End","End","End","End","End","End","End","End","End","End","End","End","End","End","End","End","End","End","End","End","End","End","End","End","End","End","End","End","End","End","End","End","End","End","End","End","End","End","End","End","End","End","End","End","End","End","End","End","End","End","End","End","End","End","End","End","End","End","End","End","End","End","End","End","End","End","End","End","End","End","End","End","End","End","End","End","End","End","End","End","End","End","End","End","End","End","End","End","End","End","End","End","End","End","End","End","End","End","End","End","End","End","End","End","End","End","End","End","End","End","End","End","End","End","End","End","End","End","End","End","End","End","End","End","End","End","End","End","End","End","End","End","End","End","End","End","End","End","End","End","End","End","End","End","End","End","End","End","End","End","End","End","End","End","End","End","End","End","End","End","End","End","End","End","End","End","End","End","End","End","End","End","End","End","End","End","End","End","End","End","End","End","End","End","End","End","End","End","End","End","End","End","End","End","End","End","End","End","End","End","End","End","End","End","End","End","End","End","End","End","End","End","End","End","End","End","End","End","End","End","End","End","End","End","End","End","End","End","End","End","End","End","End","End","End","End","End","End","End","End","End","End","End","End","End","End","End","End","End","End","End","End","End","End","End","End","End","End","End","End","End","End","End","End","End","End","End","End","End","End","End","End","End","End","End","End","End","End","End","End","End","End","End","End","End","End","End","End","End","End","End","End","End","End","End","End","End","End","End","End","End","End","End","End","End","End","End","End","End","End","End","End","End","End","End","End","End","End","End","End","End","End","End","End","End","End","End","End","End","End","End","End","End","End","End","End","End","End","End","End","End","End","End","End","End","End","End","End","End","End","End","End","End","End","End","End","End","End","End","End","End","End","End","End","End","End","End","End","End","End","End","End","End","End","End","End","End","End","End","End","End","End","End","End","End","End","End","End","End","End","End","End","End","End","End","End","End","End","End","End","End","End","End","End","End","End","End","End","End","End","End","End","End","End","End","End","End","End","End","End","End","End","End","End","End","End","End","End","End","End","End","End","End","End","End","End","End","End","End","End","End","End","End","End","End","End","End","End","End","End","End","End","End","End","End","End","End","End","End","End","End","End","End","End","End","End","End","End","End","End","End","End","End","End","End","End","End","End","End","End","End","End","End","End","End","End","End","End","End","End","End","End","End","End","End","End","End","End","End","End","End","End","End","End","End","End","End","End","End","End","End","End","End","End","End","End","End","End","End","End","End","End","End","End","End","End","End","End","End","End","End","End","End","End","End","End","End","End","End","End","End","End","End","End","End","End","End","End","End","End","End","End","End","End","End","End","End","End","End","End","End","End","End","End","End","End","End","End","End","End","End","End","End","End","End","End","End","End","End","End","End","End","End","End","End","End","End","End","End","End","End","End","End","End","End","End","End","End","End","End","End","End","End","End","End","End","End","End","End","End","End","End","End","End","End","End","End","End","End","End","End","End","End","End","End","End","End","End","End","End","End","End","End","End","End","End","End","End","End","End","End","End","End","End","End","End","End","End","End","End","End","End","End","End","End","End","End","End","End","End","End","End","End","End","End","End","End","End","End","End","End","End","End","End","End","End","End","End","End","End","End","End","End","End","End","End","End","End","End","End","End","End","End","End","End","End","End","End","End","End","End","End","End","End","End","End","End","End","End","End","End","End","End","End","End","End","End","End","End","End","End","End","End","End","End","End","End","End","End","End","End","End","End","End","End","End","End","End","End","End","End","End","End","End","End","End","End","End","End","End","End","End","End","End","End","End","End","End","End","End","End","End","End","End","End","End","End","End","End","End","End","End","End","End","End","End","End","End","End","End","End","End","End","End","End","End","End","End","End","End","End","End","End","End","End","End","End","End","End","End","End","End","End","End","End","End","End","End","End","End","End","End","End","End","End","End","End","End","End","End","End","End","End","End","End","End","End","End","End","End","End","End","End","End","End","End","End","End","End","End","End","End","End","End","End","End","End","End","End","End","End","End","End","End","End","End","End","End","End","End","End","End","End","End","End","End","End","End","End","End","End","End","End","End","End","End","End","End","End","End","End","End","End","End","End","End","End","End","End","End","End","End","End","End","End","End","End","End","End","End","End","End","End","End","End","End","End","End","End","End","End","End","End","End","End","End","End","End","End","End","End","End","End","End","End","End","End","End","End","End","End","End","End","End","End","End","End","End","End","End","End","End","End","End","End","End","End","End","End","End","End","End","End","End","End","End","End","End","End","End","End","End","End","End","End","End","End","End","End","End","End","End","End","End","End","End","End","End","End","End","End","End","End","End","End","End","End","End","End","End","End","End","End","End","End","End","End","End","End","End","End","End","End","End","End","End","End","End","End","End","End","End","End","End","End","End","End","End","End","End","End","End","End","End","End","End","End","End","End","End","End","End","End","End","End","End","End","End","End","End","End","End","End","End","End","End","End","End","End","End","End","End","End","End","End","End","End","End","End","End","End","End","End","End","End","End","End","End","End","End","End","End","End","End","End","End","End","End","End","End","End","End","End","End","End","End","End","End","End","End","End","End","End","End","End","End","End","End","End","End","End","End","End","End","End","End","End","End","End","End","End","End","End","End","End","End","End","End","End","End","End","End","End","End","End","End","End","End","End","End","End","End","End","End","End","End","End","End","End","End","End","End","End","End","End","End","End","End","End","End","End","End","End","End","End","End","End","End","End","End","End","End","End","End","End","End","End","End","End","End","End","End","End","End","End","End","End","End","End","End","End","End","End","End","End","End","End","End","End","End","End","End","End","End","End","End","End","End","End","End","End","End","End","End","End","End","End","End","End","End","End","End","End","End","End","End","End","End","End","End","End","End","End","End","End","End","End","End","End","End","End","End","End","End","End","End","End","End","End","End","End","End","End","End","End","End","End","End","End","End","End","End","End","End","End","End","End","End","End","End","End","End","End","End","End","End","End","End","End","End","End","End","End","End","End","End","End","End","End","End","End","End","End","End","End","End","End","End","End","End","End","End","End","End","End","End","End","End","End","End","End","End","End","End","End","End","End","End","End","End","End","End","End","End","End","End","End","End","End","End","End","End","End","End","End","End","End","End","End","End","End","End","End","End","End","End","End","End","End","End","End","End","End","End","End","End","End","End","End","End","End","End","End","End","End","End","End","End","End","End","End","End","End","End","End","End","End","End","End","End","End","End","End","End","End","End","End","End","End","End","End","End","End","End","End","End","End","End","End","End","End","End","End","End","End","End","End","End","End","End","End","End","End","End","End","End","End","End","End","End","End","End","End","End","End","End","End","End","End","End","End","End","End","End","End","End","End","End","End","End","End","End","End","End","End","End","End","End","End","End","End","End","End","End","End","End","End","End","End","End","End","End","End","End","End","End","End","End","End","End","End","End","End","End","End","End","End","End","End","End","End","End","End","End","End","End","End","End","End","End","End","End","End","End","End","End","End","End","End","End","End","End","End","End","End","End","End","End","End","End","End","End","End","End","End","End","End","End","End","End","End","End","End","End","End","End","End","End","End","End","End","End","End","End","End","End","End","End","End","End","End","End","End","End","End","End","End","End","End","End","End","End","End","End","End","End","End","End","End","End","End","End","End","End","End","End","End","End","End","End","End","End","End","End","End","End","End","End","End","End","End","End","End","End","End","End","End","End","End","End","End","End","End","End","End","End","End","End","End","End","End","End","End","End","End","End","End","End","End","End","End","End","End","End","End","End","End","End","End","End","End","End","End","End","End","End","End","End","End","End","End","End","End","End","End","End","End","End","End","End","End","End","End","End","End","End","End","End","End","End","End","End","End","End","End","End","End","End","End","End","End","End","End","End","End","End","End","End","End","End","End","End","End","End","End","End","End","End","End","End","End","End","End","End","End","End","End","End","End","End","End","End","End","End","End","End","End","End","End","End","End","End","End","End","End","End","End","End","End","End","End","End","End","End","End","End","End","End","End","End","End","End","End","End","End","End","End","End","End","End","End","End","End","End","End","End","End","End","End","End","End","End","End","End","End","End","End","End","End","End","End","End","End","End","End","End","End","End","End","End","End","End","End","End","End","End","End","End","End","End","End","End","End","End","End","End","End","End","End","End","End","End","End","End","End","End","End","End","End","End","End","End","End","End","End","End","End","End","End","End","End","End","End","End","End","End","End","End","End","End","End","End","End","End","End","End","End","End","End","End","End","End","End","End","End","End","End","End","End","End","End","End","End","End","End","End","End","End","End","End","End","End","End","End","End","End","End","End","End","End","End","End","End","End","End","End","End","End","End","End","End","End","End","End","End","End","End","End","End","End","End","End","End","End","End","End","End","End","End","End","End","End","End","End","End","End","End","End","End","End","End","End","End","End","End","End","End","End","End","End","End","End","End","End","End","End","End","End","End","End","End","End","End","End","End","End","End","End","End","End","End","End","End","End","End","End","End","End","End","End","End","End","End","End","End","End","End","End","End","End","End","End","End","End","End","End","End","End","End","End","End","End","End","End","End","End","End","End","End","End","End","End","End","End","End","End","End","End","End","End","End","End","End","End","End","End","End","End","End","End","End","End","End","End","End","End","End","End","End","End","End","End","End","End","End","End","End","End","End","End","End","End","End","End","End","End","End","End","End","End","End","End","End","End","End","End","End","End","End","End","End","End","End","End","End","End","End","End","End","End","End","End","End","End","End","End","End","End","End","End","End","End","End","End","End","End","End","End","End","End","End","End","End","End","End","End","End","End","End","End","End","End","End","End","End","End","End","End","End","End","End","End","End","End","End","End","End","End","End","End","End","End","End","End","End","End","End","End","End","End","End","End","End","End","End","End","End","End","End","End","End","End","End","End","End","End","End","End","End","End","End","End","End","End","End","End","End","End","End","End","End","End","End","End","End","End","End","End","End","End","End","End","End","End","End","End","End","End","End","End","End","End","End","End","End","End","End","End","End","End","End","End","End","End","End","End","End","End","End","End","End","End","End","End","End","End","End","End","End","End","End","End","End","End","End","End","End","End","End","End","End","End","End","End","End","End","End","End","End","End","End","End","End","End","End","End","End","End","End","End","End","End","End","End","End","End","End","End","End","End","End","End","End","End","End","End","End","End","End","End","End","End","End","End","End","End","End","End","End","End","End","End","End","End","End","End","End","End","End","End","End","End","End","End","End","End","End","End","End","End","End","End","End","End","End","End","End","End","End","End","End","End","End","End","End","End","End","End","End","End","End","End","End","End","End","End","End","End","End","End","End","End","End","End","End","End","End","End","End","End","End","End","End","End","End","End","End","End","End","End","End","End","End","End","End","End","End","End","End","End","End","End","End","End","End","End","End","End","End","End","End","End","End","End","End","End","End","End","End","End","End","End","End","End","End","End","End","End","End","End","End","End","End","End","End","End","End","End","End","End","End","End","End","End","End","End","End","End","End","End","End","End","End","End","End","End","End","End","End","End","End","End","End","End","End","End","End","End","End","End","End","End","End","End","End","End","End","End","End","End","End","End","End","End","End","End","End","End","End","End","End","End","End","End","End","End","End","End","End","End","End","End","End","End","End","End","End","End","End","End","End","End","End","End","End","End","End","End","End","End","End","End","End","End","End","End","End","End","End","End","End","End","End","End","End","End","End","End","End","End","End","End","End","End","End","End","End","End","End","End","End","End","End","End","End","End","End","End","End","End","End","End","End","End","End","End","End","End","End","End","End","End","End","End","End","End","End","End","End","End","End","End","End","End","End","End","End","End","End","End","End","End","End","End","End","End","End","End","End","End","End","End","End","End","End","End","End","End","End","End","End","End","End","End","End","End","End","End","End","End","End","End","End","End","End","End","End","End","End","End","End","End","End","End","End","End","End","End","End","End","End","End","End","End","End","End","End","End","End","End","End","End","End","End","End","End","End","End","End","End","End","End","End","End","End","End","End","End","End","End","End","End","End","End","End","End","End","End","End","End","End","End","End","End","End","End","End","End","End","End","End","End","End","End","End","End","End","End","End","End","End","End","End","End","End","End","End","End","End","End","End","End","End","End","End","End","End","End","End","End","End","End","End","End","End","End","End","End","End","End","End","End","End","End","End","End","End","End","End","End","End","End","End","End","End","End","End","End","End","End","End","End","End","End","End","End","End","End","End","End","End","End","End","End","End","End","End","End","End","End","End","End","End","End","End","End","End","End","End","End","End","End","End","End","End","End","End","End","End","End","End","End","End","End","End","End","End","End","End","End","End","End","End","End","End","End","End","End","End","End","End","End","End","End","End","End","End","End","End","End","End","End","End","End","End","End","End","End","End","End","End","End","End","End","End","End","End","End","End","End","End","End","End","End","End","End","End","End","End","End","End","End","End","End","End","End","End","End","End","End","End","End","End","End","End","End","End","End","End","End","End","End","End","End","End","End","End","End","End","End","End","End","End","End","End","End","End","End","End","End","End","End","End","End","End","End","End","End","End","End","End","End","End","End","End","End","End","End","End","End","End","End","End","End","End","End","End","End","End","End","End","End","End","End","End","End","End","End","End","End","End","End","End","End","End","End","End","End","End","End","End","End","End","End","End","End","End","End","End","End","End","End","End","End","End","End","End","End","End","End","End","End","End","End","End","End","End","End","End","End","End","End","End","End","End","End","End","End","End","End","End","End","End","End","End","End","End","End","End","End","End","End","End","End","End","End","End","End","End","End","End","End","End","End","End","End","End","End","End","End","End","End","End","End","End","End","End","End","End","End","End","End","End","End","End","End","End","End","End","End","End","End","End","End","End","End","End","End","End","End","End","End","End","End","End","End","End","End","End","End","End","End","End","End","End","End","End","End","End","End","End","End","End","End","End","End","End","End","End","End","End","End","End","End","End","End","End","End","End","End","End","End","End","End","End","End","End","End","End","End","End","End","End","End","End","End","End","End","End","End","End","End","End","End","End","End","End","End","End","End","End","End","End","End","End","End","End","End","End","End","End","End","End","End","End","End","End","End","End","End","End","End","End","End","End","End","End","End","End","End","End","End","End","End","End","End","End","End","End","End","End","End","End","End","End","End","End","End","End","End","End","End","End","End","End","End","End","End","End","End","End","End","End","End","End","End","End","End","End","End","End","End","End","End","End","End","End","End","End","End","End","End","End","End","End","End","End","End","End","End","End","End","End","End","End","End","End","End","End","End","End","End","End","End","End","End","End","End","End","End","End","End","End","End","End","End","End","End","End","End","End","End","End","End","End","End","End","End","End","End","End","End","End","End","End","End","End","End","End","End","End","End","End","End","End","End","End","End","End","End","End","End","End","End","End","End","End","End","End","End","End","End","End","End","End","End","End","End","End","End","End","End","End","End","End","End","End","End","End","End","End","End","End","End","End","End","End","End","End","End","End","End","End","End","End","End","End","End","End","End","End","End","End","End","End","End","End","End","End","End","End","End","End","End","End","End","End","End","End","End","End","End","End","End","End","End","End","End","End","End","End","End","End","End","End","End","End","End","End","End","End","End","End","End","End","End","End","End","End","End","End","End","End","End","End","End","End","End","End","End","End","End","End","End","End","End","End","End","End","End","End","End","End","End","End","End","End","End","End","End","End","End","End","End","End","End","End","End","End","End","End","End","End","End","End","End","End","End","End","End","End","End","End","End","End","End","End","End","End","End","End","End","End","End","End","End","End","End","End","End","End","End","End","End","End","End","End","End","End","End","End","End","End","End","End","End","End","End","End","End","End","End","End","End","End","End","End","End","End","End","End","End","End","End","End","End","End","End","End","End","End","End","End","End","End","End","End","End","End","End","End","End","End","End","End","End","End","End","End","End","End","End","End","End","End","End","End","End","End","End","End","End","End","End","End","End","End","End","End","End","End","End","End","End","End","End","End","End","End","End","End","End","End","End","End","End","End","End","End","End","End","End","End","End","End","End","End","End","End","End","End","End","End","End","End","End","End","End","End","End","End","End","End","End","End","End","End","End","End","End","End","End","End","End","End","End","End","End","End","End","End","End","End","End","End","End","End","End","End","End","End","End","End","End","End","End","End","End","End","End","End","End","End","End","End","End","End","End","End","End","End","End","End","End","End","End","End","End","End","End","End","End","End","End","End","End","End","End","End","End","End","End","End","End","End","End","End","End","End","End","End","End","End","End","End","End","End","End","End","End","End","End","End","End","End","End","End","End","End","End","End","End","End","End","End","End","End","End","End","End","End","End","End","End","End","End","End","End","End","End","End","End","End","End","End","End","End","End","End","End","End","End","End","End","End","End","End","End","End","End","End","End","End","End","End","End","End","End","End","End","End","End","End","End","End","End","End","End","End","End","End","End","End","End","End","End","End","End","End","End","End","End","End","End","End","End","End","End","End","End","End","End","End","End","End","End","End","End","End","End","End","End","End","End","End","End","End","End","End","End","End","End","End","End","End","End","End","End","End","End","End","End","End","End","End","End","End","End","End","End","End","End","End","End","End","End","End","End","End","End","End","End","End","End","End","End","End","End","End","End","End","End","End","End","End","End","End","End","End","End","End","End","End","End","End","End","End","End","End","End","End","End","End","End","End","End","End","End","End","End","End","End","End","End","End","End","End","End","End","End","End","End","End","End","End","End","End","End","End","End","End","End","End","End","End","End","End","End","End","End","End","End","End","End","End","End","End","End","End","End","End","End","End","End","End","End","End","End","End","End","End","End","End","End","End","End","End","End","End","End","End","End","End","End","End","End","End","End","End","End","End","End","End","End","End","End","End","End","End","End","End","End","End","End","End","End","End","End","End","End","End","End","End","End","End","End","End","End","End","End","End","End","End","End","End","End","End","End","End","End","End","End","End","End","End","End","End","End","End","End","End","End","End","End","End","End","End","End","End","End","End","End","End","End","End","End","End","End","End","End","End","End","End","End","End","End","End","End","End","End","End","End","End","End","End","End","End","End","End","End","End","End","End","End","End","End","End","End","End","End","End","End","End","End","End","End","End","End","End","End","End","End","End","End","End","End","End","End","End","End","End","End","End","End","End","End","End","End","End","End","End","End","End","End","End","End","End","End","End","End","End","End","End","End","End","End","End","End","End","End","End","End","End","End","End","End","End","End","End","End","End","End","End","End","End","End","End","End","End","End","End","End","End","End","End","End","End","End","End","End","End","End","End","End","End","End","End","End","End","End","End","End","End","End","End","End","End","End","End","End","End","End","End","End","End","End","End","End","End","End","End","End","End","End","End","End","End","End","End","End","End","End","End","End","End","End","End","End","End","End","End","End","End","End","End","End","End","End","End","End","End","End","End","End","End","End","End","End","End","End","End","End","End","End","End","End","End","End","End","End","End","End","End","End","End","End","End","End","End","End","End","End","End","End","End","End","End","End","End","End","End","End","End","End","End","End","End","End","End","End","End","End","End","End","End","End","End","End","End","End","End","End","End","End","End","End","End","End","End","End","End","End","End","End","End","End","End","End","End","End","End","End","End","End","End","End","End","End","End","End","End","End","End","End","End","End","End","End","End","End","End","End","End","End","End","End","End","End","End","End","End","End","End","End","End","End","End","End","End","End","End","End","End","End","End","End","End","End","End","End","End","End","End","End","End","End","End","End","End","End","End","End","End","End","End","End","End","End","End","End","End","End","End","End","End","End","End","End","End","End","End","End","End","End","End","End","End","End","End","End","End","End","End","End","End","End","End","End","End","End","End","End","End","End","End","End","End","End","End","End","End","End","End","End","End","End","End","End","End","End","End","End","End","End","End","End","End","End","End","End","End","End","End","End","End","End","End","End","End","End","End","End","End","End","End","End","End","End","End","End","End","End","End","End","End","End","End","End","End","End","End","End","End","End","End","End","End","End","End","End","End","End","End","End","End","End","End","End","End","End","End","End","End","End","End","End","End","End","End","End","End","End","End","End","End","End","End","End","End","End","End","End","End","End","End","End","End","End","End","End","End","End","End","End","End","End","End","End","End","End","End","End","End","End","End","End","End","End","End","End","End","End","End","End","End","End","End","End","End","End","End","End","End","End","End","End","End","End","End","End","End","End","End","End","End","End","End","End","End","End","End","End","End","End","End","End","End","End","End","End","End","End","End","End","End","End","End","End","End","End","End","End","End","End","End","End","End","End","End","End","End","End","End","End","End","End","End","End","End","End","End","End","End","End","End","End","End","End","End","End","End","End","End","End","End","End","End","End","End","End","End","End","End","End","End","End","End","End","End","End","End","End","End","End","End","End","End","End","End","End","End","End","End","End","End","End","End","End","End","End","End","End","End","End","End","End","End","End","End","End","End","End","End","End","End","End","End","End","End","End","End","End","End","End","End","End","End","End","End","End","End","End","End","End","End","End","End","End","End","End","End","End","End","End","End","End","End","End","End","End","End","End","End","End","End","End","End","End","End","End","End","End","End","End","End","End","End","End","End","End","End","End","End","End","End","End","End","End","End","End","End","End","End","End","End","End","End","End","End","End","End","End","End","End","End","End","End","End","End","End","End","End","End","End","End","End","End","End","End","End","End","End","End","End","End","End","End","End","End","End","End","End","End","End","End","End","End","End","End","End","End","End","End","End","End","End","End","End","End","End","End","End","End","End","End","End","End","End","End","End","End","End","End","End","End","End","End","End","End","End","End","End","End","End","End","End","End","End","End","End","End","End","End","End","End","End","End","End","End","End","End","End","End","End","End","End","End","End","End","End","End","End","End","End","End","End","End","End","End","End","End","End","End","End","End","End","End","End","End","End","End","End","End","End","End","End","End","End","End","End","End","End","End","End","End","End","End","End","End","End","End","End","End","End","End","End","End","End","End","End","End","End","End","End","End","End","End","End","End","End","End","End","End","End","End","End","End","End","End","End","End","End","End","End","End","End","End","End","End","End","End","End","End","End","End","End","End","End","End","End","End","End","End","End","End","End","End","End","End","End","End","End","End","End","End","End","End","End","End","End","End","End","End","End","End","End","End","End","End","End","End","End","End","End","End","End","End","End","End","End","End","End","End","End","End","End","End","End","End","End","End","End","End","End","End","End","End","End","End","End","End","End","End","End","End","End","End","End","End","End","End","End","End","End","End","End","End","End","End","End","End","End","End","End","End","End","End","End","End","End","End","End","End","End","End","End","End","End","End","End","End","End","End","End","End","End","End","End","End","End","End","End","End","End","End","End","End","End","End","End","End","End","End","End","End","End","End","End","End","End","End","End","End","End","End","End","End","End","End","End","End","End","End","End","End","End","End","End","End","End","End","End","End","End","End","End","End","End","End","End","End","End","End","End","End","End","End","End","End","End","End","End","End","End","End","End","End","End","End","End","End","End","End","End","End","End","End","End","End","End","End","End","End","End","End","End","End","End","End","End","End","End","End","End","End","End","End","End","End","End","End","End","End","End","End","End","End","End","End","End","End","End","End","End","End","End","End","End","End","End","End","End","End","End","End","End","End","End","End","End","End","End","End","End","End","End","End","End","End","End","End","End","End","End","End","End","End","End","End","End","End","End","End","End","End","End","End","End","End","End","End","End","End","End","End","End","End","End","End","End","End","End","End","End","End","End","End","End","End","End","End","End","End","End","End","End","End","End","End","End","End","End","End","End","End","End","End","End","End","End","End","End","End","End","End","End","End","End","End","End","End","End","End","End","End","End","End","End","End","End","End","End","End","End","End","End","End","End","End","End","End","End","End","End","End","End","End","End","End","End","End","End","End","End","End","End","End","End","End","End","End","End","End","End","End","End","End","End","End","End","End","End","End","End","End","End","End","End","End","End","End","End","End","End","End","End","End","End","End","End","End","End","End","End","End","End","End","End","End","End","End","End","End","End","End","End","End","End","End","End","End","End","End","End","End","End","End","End","End","End","End","End","End","End","End","End","End","End","End","End","End","End","End","End","End","End","End","End","End","End","End","End","End","End","End","End","End","End","End","End","End","End","End","End","End","End","End","End","End","End","End","End","End","End","End","End","End","End","End","End","End","End","End","End","End","End","End","End","End","End","End","End","End","End","End","End","End","End","End","End","End","End","End","End","End","End","End","End","End","End","End","End","End","End","End","End","End","End","End","End","End","End","End","End","End","End","End","End","End","End","End","End","End","End","End","End","End","End","End","End","End","End","End","End","End","End","End","End","End","End","End","End","End","End","End","End","End","End","End","End","End","End","End","End","End","End","End","End","End","End","End","End","End","End","End","End","End","End","End","End","End","End","End","End","End","End","End","End","End","End","End","End","End","End","End","End","End","End","End","End","End","End","End","End","End","End","End","End","End","End","End","End","End","End","End","End","End","End","End","End","End","End","End","End","End","End","End","End","End","End","End","End","End","End","End","End","End","End","End","End","End","End","End","End","End","End","End","End","End","End","End","End","End","End","End","End","End","End","End","End","End","End","End","End","End","End","End","End","End","End","End","End","End","End","End","End","End","End","End","End","End","End","End","End","End","End","End","End","End","End","End","End","End","End","End","End","End","End","End","End","End","End","End","End","End","End","End","End","End","End","End","End","End","End","End","End","End","End","End","End","End","End","End","End","End","End","End","End","End","End","End","End","End","End","End","End","End","End","End","End","End","End","End","End","End","End","End","End","End","End","End","End","End","End","End","End","End","End","End","End","End","End","End","End","End","End","End","End","End","End","End","End","End","End","End","End","End","End","End","End","End","End","End","End","End","End","End","End","End","End","End","End","End","End","End","End","End","End","End","End","End","End","End","End","End","End","End","End","End","End","End","End","End","End","End","End","End","End","End","End","End","End","End","End","End","End","End","End","End","End","End","End","End","End","End","End","End","End","End","End","End","End","End","End","End","End","End","End","End","End","End","End","End","End","End","End","End","End","End","End","End","End","End","End","End","End","End","End","End","End","End","End","End","End","End","End","End","End","End","End","End","End","End","End","End","End","End","End","End","End","End","End","End","End","End","End","End","End","End","End","End","End","End","End","End","End","End","End","End","End","End","End","End","End","End","End","End","End","End","End","End","End","End","End","End","End","End","End","End","End","End","End","End","End","End","End","End","End","End","End","End","End","End","End","End","End","End","End","End","End","End","End","End","End","End","End","End","End","End","End","End","End","End","End","End","End","End","End","End","End","End","End","End","End","End","End","End","End","End","End","End","End","End","End","End","End","End","End","End","End","End","End","End","End","End","End","End","End","End","End","End","End","End","End","End","End","End","End","End","End","End","End","End","End","End","End","End","End","End","End","End","End","End","End","End","End","End","End","End","End","End","End","End","End","End","End","End","End","End","End","End","End","End","End","End","End","End","End","End","End","End","End","End","End","End","End","End","End","End","End","End","End","End","End","End","End","End","End","End","End","End","End","End","End","End","End","End","End","End","End","End","End","End","End","End","End","End","End","End","End","End","End","End","End","End","End","End","End","End","End","End","End","End","End","End","End","End","End","End","End","End","End","End","End","End","End","End","End","End","End","End","End","End","End","End","End","End","End","End","End","End","End","End","End","End","End","End","End","End","End","End","End","End","End","End","End","End","End","End","End","End","End","End","End","End","End","End","End","End","End","End","End","End","End","End","End","End","End","End","End","End","End","End","End","End","End","End","End","End","End","End","End","End","End","End","End","End","End","End","End","End","End","End","End","End","End","End","End","End","End","End","End","End","End","End","End","End","End","End","End","End","End","End","End","End","End","End","End","End","End","End","End","End","End","End","End","End","End","End","End","End","End","End","End","End","End","End","End","End","End","End","End","End","End","End","End","End","End","End","End","End","End","End","End","End","End","End","End","End","End","End","End","End","End","End","End","End","End","End","End","End","End","End","End","End","End","End","End","End","End","End","End","End","End","End","End","End","End","End","End","End","End","End","End","End","End","End","End","End","End","End","End","End","End","End","End","End","End","End","End","End","End","End","End","End","End","End","End","End","End","End","End","End","End","End","End","End","End","End","End","End","End","End","End","End","End","End","End","End","End","End","End","End","End","End","End","End","End","End","End","End","End","End","End","End","End","End","End","End","End","End","End","End","End","End","End","End","End","End","End","End","End","End","End","End","End","End","End","End","End","End","End","End","End","End","End","End","End","End","End","End","End","End","End","End","End","End","End","End","End","End","End","End","End","End","End","End","End","End","End","End","End","End","End","End","End","End","End","End","End","End","End","End","End","End","End","End","End","End","End","End","End","End","End","End","End","End","End","End","End","End","End","End","End","End","End","End","End","End","End","End","End","End","End","End","End","End","End","End","End","End","End","End","End","End","End","End","End","End","End","End","End","End","End","End","End","End","End","End","End","End","End","End","End","End","End","End","End","End","End","End","End","End","End","End","End","End","End","End","End","End","End","End","End","End","End","End","End","End","End","End","End","End","End","End","End","End","End","End","End","End","End","End","End","End","End","End","End","End","End","End","End","End","End","End","End","End","End","End","End","End","End","End","End","End","End","End","End","End","End","End","End","End","End","End","End","End","End","End","End","End","End","End","End","End","End","End","End","End","End","End","End","End","End","End","End","End","End","End","End","End","End","End","End","End","End","End","End","End","End","End","End","End","End","End","End","End","End","End","End","End","End","End","End","End","End","End","End","End","End","End","End","End","End","End","End","End","End","End","End","End","End","End","End","End","End","End","End","End","End","End","End","End","End","End","End","End","End","End","End","End","End","End","End","End","End","End","End","End","End","End","End","End","End","End","End","End","End","End","End","End","End","End","End","End","End","End","End","End","End","End","End","End","End","End","End","End","End","End","End","End","End","End","End","End","End","End","End","End","End","End","End","End","End","End","End","End","End","End","End","End","End","End","End","End","End","End","End","End","End","End","End","End","End","End","End","End","End","End","End","End","End","End","End","End","End","End","End","End","End","End","End","End","End","End","End","End","End","End","End","End","End","End","End","End","End","End","End","End","End","End","End","End","End","End","End","End","End","End","End","End","End","End","End","End","End","End","End","End","End","End","End","End","End","End","End","End","End","End","End","End","End","End","End","End","End","End","End","End","End","End","End","End","End","End","End","End","End","End","End","End","End","End","End","End","End","End","End","End","End","End","End","End","End","End","End","End","End","End","End","End","End","End","End","End","End","End","End","End","End","End","End","End","End","End","End","End","End","End","End","End","End","End","End","End","End","End","End","End","End","End","End","End","End","End","End","End","End","End","End","End","End","End","End","End","End","End","End","End","End","End","End","End","End","End","End","End","End","End","End","End","End","End","End","End","End","End","End","End","End","End","End","End","End","End","End","End","End","End","End","End","End","End","End","End","End","End","End","End","End","End","End","End","End","End","End","End","End","End","End","End","End","End","End","End","End","End","End","End","End","End","End","End","End","End","End","End","End","End","End","End","End","End","End","End","End","End","End","End","End","End","End","End","End","End","End","End","End","End","End","End","End","End","End","End","End","End","End","End","End","End","End","End","End","End","End","End","End","End","End","End","End","End","End","End","End","End","End","End","End","End","End","End","End","End","End","End","End","End","End","End","End","End","End","End","End","End","End","End","End","End","End","End","End","End","End","End","End","End","End","End","End","End","End","End","End","End","End","End","End","End","End","End","End","End","End","End","End","End","End","End","End","End","End","End","End","End","End","End","End","End","End","End","End","End","End","End","End","End","End","End","End","End","End","End","End","End","End","End","End","End","End","End","End","End","End","End","End","End","End","End","End","End","End","End","End","End","End","End","End","End","End","End","End","End","End","End","End","End","End","End","End","End","End","End","End","End","End","End","End","End","End","End","End","End","End","End","End","End","End","End","End","End","End","End","End","End","End","End","End","End","End","End","End","End","End","End","End","End","End","End","End","End","End","End","End","End","End","End","End","End","End","End","End","End","End","End","End","End","End","End","End","End","End","End","End","End","End","End","End","End","End","End","End","End","End","End","End","End","End","End","End","End","End","End","End","End","End","End","End","End","End","End","End","End","End","End","End","End","End","End","End","End","End","End","End","End","End","End","End","End","End","End","End","End","End","End","End","End","End","End","End","End","End","End","End","End","End","End","End","End","End","End","End","End","End","End","End","End","End","End","End","End","End","End","End","End","End","End","End","End","End","End","End","End","End","End","End","End","End","End","End","End","End","End","End","End","End","End","End","End","End","End","End","End","End","End","End","End","End","End","End","End","End","End","End","End","End","End","End","End","End","End","End","End","End","End","End","End","End","End","End","End","End","End","End","End","End","End","End","End","End","End","End","End","End","End","End","End","End","End","End","End","End","End","End","End","End","End","End","End","End","End","End","End","End","End","End","End","End","End","End","End","End","End","End","End","End","End","End","End","End","End","End","End","End","End","End","End","End","End","End","End","End","End","End","End","End","End","End","End","End","End","End","End","End","End","End","End","End","End","End","End","End","End","End","End","End","End","End","End","End","End","End","End","End","End","End","End","End","End","End","End","End","End","End","End","End","End","End","End","End","End","End","End","End","End","End","End","End","End","End","End","End","End","End","End","End","End","End","End","End","End","End","End","End","End","End","End","End","End","End","End","End","End","End","End","End","End","End","End","End","End","End","End","End","End","End","End","End","End","End","End","End","End","End","End","End","End","End","End","End","End","End","End","End","End","End","End","End","End","End","End","End","End","End","End","End","End","End","End","End","End","End","End","End","End","End","End","End","End","End","End","End","End","End","End","End","End","End","End","End","End","End","End","End","End","End","End","End","End","End","End","End","End","End","End","End","End","End","End","End","End","End","End","End","End","End","End","End","End","End","End","End","End","End","End","End","End","End","End","End","End","End","End","End","End","End","End","End","End","End","End","End","End","End","End","End","End","End","End","End","End","End","End","End","End","End","End","End","End","End","End","End","End","End","End","End","End","End","End","End","End","End","End","End","End","End","End","End","End","End","End","End","End","End","End","End","End","End","End","End","End","End","End","End","End","End","End","End","End","End","End","End","End","End","End","End","End","End","End","End","End","End","End","End","End","End","End","End","End","End","End","End","End","End","End","End","End","End","End","End","End","End","End","End","End","End","End","End","End","End","End","End","End","End","End","End","End","End","End","End","End","End","End","End","End","End","End","End","End","End","End","End","End","End","End","End","End","End","End","End","End","End","End","End","End","End","End","End","End","End","End","End","End","End","End","End","End","End","End","End","End","End","End","End","End","End","End","End","End","End","End","End","End","End","End","End","End","End","End","End","End","End","End","End","End","End","End","End","End","End","End","End","End","End","End","End","End","End","End","End","End","End","End","End","End","End","End","End","End","End","End","End","End","End","End","End","End","End","End","End","End","End","End","End","End","End","End","End","End","End","End","End","End","End","End","End","End","End","End","End","End","End","End","End","End","End","End","End","End","End","End","End","End","End","End","End","End","End","End","End","End","End","End","End","End","End","End","End","End","End","End","End","End","End","End","End","End","End","End","End","End","End","End","End","End","End","End","End","End","End","End","End","End","End","End","End","End","End","End","End","End","End","End","End","End","End","End","End","End","End","End","End","End","End","End","End","End","End","End","End","End","End","End","End","End","End","End","End","End","End","End","End","End","End","End","End","End","End","End","End","End","End","End","End","End","End","End","End","End","End","End","End","End","End","End","End","End","End","End","End","End","End","End","End","End","End","End","End","End","End","End","End","End","End","End","End","End","End","End","End","End","End","End","End","End","End","End","End","End","End","End","End","End","End","End","End","End","End","End","End","End","End","End","End","End","End","End","End","End","End","End","End","End","End","End","End","End","End","End","End","End","End","End","End","End","End","End","End","End","End","End","End","End","End","End","End","End","End","End","End","End","End","End","End","End","End","End","End","End","End","End","End","End","End","End","End","End","End","End","End","End","End","End","End","End","End","End","End","End","End","End","End","End","End","End","End","End","End","End","End","End","End","End","End","End","End","End","End","End","End","End","End","End","End","End","End","End","End","End","End","End","End","End","End","End","End","End","End","End","End","End","End","End","End","End","End","End","End","End","End","End","End","End","End","End","End","End","End","End","End","End","End","End","End","End","End","End","End","End","End","End","End","End","End","End","End","End","End","End","End","End","End","End","End","End","End","End","End","End","End","End","End","End","End","End","End","End","End","End","End","End","End","End","End","End","End","End","End","End","End","End","End","End","End","End","End","End","End","End","End","End","End","End","End","End","End","End","End","End","End","End","End","End","End","End","End","End","End","End","End","End","End","End","End","End","End","End","End","End","End","End","End","End","End","End","End","End","End","End","End","End","End","End","End","End","End","End","End","End","End","End","End","End","End","End","End","End","End","End","End","End","End","End","End","End","End","End","End","End","End","End","End","End","End","End","End","End","End","End","End","End","End","End","End","End","End","End","End","End","End","End","End","End","End","End","End","End","End","End","End","End","End","End","End","End","End","End","End","End","End","End","End","End","End","End","End","End","End","End","End","End","End","End","End","End","End","End","End","End","End","End","End","End","End","End","End","End","End","End","End","End","End","End","End","End","End","End","End","End","End","End","End","End","End","End","End","End","End","End","End","End","End","End","End","End","End","End","End","End","End","End","End","End","End","End","End","End","End","End","End","End","End","End","End","End","End","End","End","End","End","End","End","End","End","End","End","End","End","End","End","End","End","End","End","End","End","End","End","End","End","End","End","End","End","End","End","End","End","End","End","End","End","End","End","End","End","End","End","End","End","End","End","End","End","End","End","End","End","End","End","End","End","End","End","End","End","End","End","End","End","End","End","End","End","End","End","End","End","End","End","End","End","End","End","End","End","End","End","End","End","End","End","End","End","End","End","End","End","End","End","End","End","End","End","End","End","End","End","End","End","End","End","End","End","End","End","End","End","End","End","End","End","End","End","End","End","End","End","End","End","End","End","End","End","End","End","End","End","End","End","End","End","End","End","End","End","End","End","End","End","End","End","End","End","End","End","End","End","End","End","End","End","End","End","End","End","End","End","End","End","End","End","End","End","End","End","End","End","End","End","End","End","End","End","End","End","End","End","End","End","End","End","End","End","End","End","End","End","End","End","End","End","End","End","End","End","End","End","End","End","End","End","End","End","End","End","End","End","End","End","End","End","End","End","End","End","End","End","End","End","End","End","End","End","End","End","End","End","End","End","End","End","End","End","End","End","End","End","End","End","End","End","End","End","End","End","End","End","End","End","End","End","End","End","End","End","End","End","End","End","End","End","End","End","End","End","End","End","End","End","End","End","End","End","End","End","End","End","End","End","End","End","End","End","End","End","End","End","End","End","End","End","End","End","End","End","End","End","End","End","End","End","End","End","End","End","End","End","End","End","End","End","End","End","End","End","End","End","End","End","End","End","End","End","End","End","End","End","End","End","End","End","End","End","End","End","End","End","End","End","End","End","End","End","End","End","End","End","End","End","End","End","End","End","End","End","End","End","End","End","End","End","End","End","End","End","End","End","End","End","End","End","End","End","End","End","End","End","End","End","End","End","End","End","End","End","End","End","End","End","End","End","End","End","End","End","End","End","End","End","End","End","End","End","End","End","End","End","End","End","End","End","End","End","End","End","End","End","End","End","End","End","End","End","End","End","End","End","End","End","End","End","End","End","End","End","End","End","End","End","End","End","End","End","End","End","End","End","End","End","End","End","End","End","End","End","End","End","End","End","End","End","End","End","End","End","End","End","End","End","End","End","End","End","End","End","End","End","End","End","End","End","End","End","End","End","End","End","End","End","End","End","End","End","End","End","End","End","End","End","End","End","End","End","End","End","End","End","End","End","End","End","End","End","End","End","End","End","End","End","End","End","End","End","End","End","End","End","End","End","End","End","End","End","End","End","End","End","End","End","End","End","End","End","End","End","End","End","End","End","End","End","End","End","End","End","End","End","End","End","End","End","End","End","End","End","End","End","End","End","End","End","End","End","End","End","End","End","End","End","End","End","End","End","End","End","End","End","End","End","End","End","End","End","End","End","End","End","End","End","End","End","End","End","End","End","End","End","End","End","End","End","End","End","End","End","End","End","End","End","End","End","End","End","End","End","End","End","End","End","End","End","End","End","End","End","End","End","End","End","End","End","End","End","End","End","End","End","End","End","End","End","End","End","End","End","End","End","End","End","End","End","End","End","End","End","End","End","End","End","End","End","End","End","End","End","End","End","End","End","End","End","End","End","End","End","End","End","End","End","End","End","End","End","End","End","End","End","End","End","End","End","End","End","End","End","End","End","End","End","End","End","End","End","End","End","End","End","End","End","End","End","End","End","End","End","End","End","End","End","End","End","End","End","End","End","End","End","End","End","End","End","End","End","End","End","End","End","End","End","End","End","End","End","End","End","End","End","End","End","End","End","End","End","End","End","End","End","End","End","End","End","End","End","End","End","End","End","End","End","End","End","End","End","End","End","End","End","End","End","End","End","End","End","End","End","End","End","End","End","End","End","End","End","End","End","End","End","End","End","End","End","End","End","End","End","End","End","End","End","End","End","End","End","End","End","End","End","End","End","End","End","End","End","End","End","End","End","End","End","End","End","End","End","End","End","End","End","End","End","End","End","End","End","End","End","End","End","End","End","End","End","End","End","End","End","End","End","End","End","End","End","End","End","End","End","End","End","End","End","End","End","End","End","End","End","End","End","End","End","End","End","End","End","End","End","End","End","End","End","End","End","End","End","End","End","End","End","End","End","End","End","End","End","End","End","End","End","End","End","End","End","End","End","End","End","End","End","End","End","End","End","End","End","End","End","End","End","End","End","End","End","End","End","End","End","End","End","End","End","End","End","End","End","End","End","End","End","End","End","End","End","End","End","End","End","End","End","End","End","End","End","End","End","End","End","End","End","End","End","End","End","End","End","End","End","End","End","End","End","End","End","End","End","End","End","End","End","End","End","End","End","End","End","End","End","End","End","End","End","End","End","End","End","End","End","End","End","End","End","End","End","End","End","End","End","End","End","End","End","End","End","End","End","End","End","End","End","End","End","End","End","End","End","End","End","End","End","End","End","End","End","End","End","End","End","End","End","End","End","End","End","End","End","End","End","End","End","End","End","End","End","End","End","End","End","End","End","End","End","End","End","End","End","End","End","End","End","End","End","End","End","End","End","End","End","End","End","End","End","End","End","End","End","End","End","End","End","End","End","End","End","End","End","End","End","End","End","End","End","End","End","End","End","End","End","End","End","End","End","End","End","End","End","End","End","End","End","End","End","End","End","End","End","End","End","End","End","End","End","End","End","End","End","End","End","End","End","End","End","End","End","End","End","End","End","End","End","End","End","End","End","End","End","End","End","End","End","End","End","End","End","End","End","End","End","End","End","End","End","End","End","End","End","End","End","End","End","End","End","End","End","End","End","End","End","End","End","End","End","End","End","End","End","End","End","End","End","End","End","End","End","End","End","End","End","End","End","End","End","End","End","End","End","End","End","End","End","End","End","End","End","End","End","End","End","End","End","End","End","End","End","End","End","End","End","End","End","End","End","End","End","End","End","End","End","End","End","End","End","End","End","End","End","End","End","End","End","End","End","End","End","End","End","End","End","End","End","End","End","End","End","End","End","End","End","End","End","End","End","End","End","End","End","End","End","End","End","End","End","End","End","End","End","End","End","End","End","End","End","End","End","End","End","End","End","End","End","End","End","End","End","End","End","End","End","End","End","End","End","End","End","End","End","End","End","End","End","End","End","End","End","End","End","End","End","End","End","End","End","End","End","End","End","End","End","End","End","End","End","End","End","End","End","End","End","End","End","End","End","End","End","End","End","End","End","End","End","End","End","End","End","End","End","End","End","End","End","End","End","End","End","End","End","End","End","End","End","End","End","End","End","End","End","End","End","End","End","End","End","End","End","End","End","End","End","End","End","End","End","End","End","End","End","End","End","End","End","End","End","End","End","End","End","End","End","End","End","End","End","End","End","End","End","End","End","End","End","End","End","End","End","End","End","End","End","End","End","End","End","End","End","End","End","End","End","End","End","End","End","End","End","End","End","End","End","End","End","End","End","End","End","End","End","End","End","End","End","End","End","End","End","End","End","End","End","End","End","End","End","End","End","End","End","End","End","End","End","End","End","End","End","End","End","End","End","End","End","End","End","End","End","End","End","End","End","End","End","End","End","End","End","End","End","End","End","End","End","End","End","End","End","End","End","End","End","End","End","End","End","End","End","End","End","End","End","End","End","End","End","End","End","End","End","End","End","End","End","End","End","End","End","End","End","End","End","End","End","End","End","End","End","End","End","End","End","End","End","End","End","End","End","End","End","End","End","End","End","End","End","End","End","End","End","End","End","End","End","End","End","End","End","End","End","End","End","End","End","End","End","End","End","End","End","End","End","End","End","End","End","End","End","End","End","End","End","End","End","End","End","End","End","End","End","End","End","End","End","End","End","End","End","End","End","End","End","End","End","End","End","End","End","End","End","End","End","End","End","End","End","End","End","End","End","End","End","End","End","End","End","End","End","End","End","End","End","End","End","End","End","End","End","End","End","End","End","End","End","End","End","End","End","End","End","End","End","End","End","End","End","End","End","End","End","End","End","End","End","End","End","End","End","End","End","End","End","End","End","End","End","End","End","End","End","End","End","End","End","End","End","End","End","End","End","End","End","End","End","End","End","End","End","End","End","End","End","End","End","End","End","End","End","End","End","End","End","End","End","End","End","End","End","End","End","End","End","End","End","End","End","End","End","End","End","End","End","End","End","End","End","End","End","End","End","End","End","End","End","End","End","End","End","End","End","End","End","End","End","End","End","End","End","End","End","End","End","End","End","End","End","End","End","End","End","End","End","End","End","End","End","End","End","End","End","End","End","End","End","End","End","End","End","End","End","End","End","End","End","End","End","End","End","End","End","End","End","End","End","End","End","End","End","End","End","End","End","End","End","End","End","End","End","End","End","End","End","End","End","End","End","End","End","End","End","End","End","End","End","End","End","End","End","End","End","End","End","End","End","End","End","End","End","End","End","End","End","End","End","End","End","End","End","End","End","End","End","End","End","End","End","End","End","End","End","End","End","End","End","End","End","End","End","End","End","End","End","End","End","End","End","End","End","End","End","End","End","End","End","End","End","End","End","End","End","End","End","End","End","End","End","End","End","End","End","End","End","End","End","End","End","End","End","End","End","End","End","End","End","End","End","End","End","End","End","End","End","End","End","End","End","End","End","End","End","End","End","End","End","End","End","End","End","End","End","End","End","End","End","End","End","End","End","End","End","End","End","End","End","End","End","End","End","End","End","End","End","End","End","End","End","End","End","End","End","End","End","End","End","End","End","End","End","End","End","End","End","End","End","End","End","End","End","End","End","End","End","End","End","End","End","End","End","End","End","End","End","End","End","End","End","End","End","End","End","End","End","End","End","End","End","End","End","End","End","End","End","End","End","End","End","End","End","End","End","End","End","End","End","End","End","End","End","End","End","End","End","End","End","End","End","End","End","End","End","End","End","End","End","End","End","End","End","End","End","End","End","End","End","End","End","End","End","End","End","End","End","End","End","End","End","End","End","End","End","End","End","End","End","End","End","End","End","End","End","End","End","End","End","End","End","End","End","End","End","End","End","End","End","End","End","End","End","End","End","End","End","End","End","End","End","End","End","End","End","End","End","End","End","End","End","End","End","End","End","End","End","End","End","End","End","End","End","End","End","End","End","End","End","End","End","End","End","End","End","End","End","End","End","End","End","End","End","End","End","End","End","End","End","End","End","End","End","End","End","End","End","End","End","End","End","End","End","End","End","End","End","End","End","End","End","End","End","End","End","End","End","End","End","End","End","End","End","End","End","End","End","End","End","End","End","End","End","End","End","End","End","End","End","End","End","End","End","End","End","End","End","End","End","End","End","End","End","End","End","End","End","End","End","End","End","End","End","End","End","End","End","End","End","End","End","End","End","End","End","End","End","End","End","End","End","End","End","End","End","End","End","End","End","End","End","End","End","End","End","End","End","End","End","End","End","End","End","End","End","End","End","End","End","End","End","End","End","End","End","End","End","End","End","End","End","End","End","End","End","End","End","End","End","End","End","End","End","End","End","End","End","End","End","End","End","End","End","End","End","End","End","End","End","End","End","End","End","End","End","End","End","End","End","End","End","End","End","End","End","End","End","End","End","End","End","End","End","End","End","End","End","End","End","End","End","End","End","End","End","End","End","End","End","End","End","End","End","End","End","End","End","End","End","End","End","End","End","End","End","End","End","End","End","End","End","End","End","End","End","End","End","End","End","End","End","End","End","End","End","End","End","End","End","End","End","End","End","End","End","End","End","End","End","End","End","End","End","End","End","End","End","End","End","End","End","End","End","End","End","End","End","End","End","End","End","End","End","End","End","End","End","End","End","End","End","End","End","End","End","End","End","End","End","End","End","End","End","End","End","End","End","End","End","End","End","End","End","End","End","End","End","End","End","End","End","End","End","End","End","End","End","End","End","End","End","End","End","End","End","End","End","End","End","End","End","End","End","End","End","End","End","End","End","End","End","End","End","End","End","End","End","End","End","End","End","End","End","End","End","End","End","End","End","End","End","End","End","End","End","End","End","End","End","End","End","End","End","End","End","End","End","End","End","End","End","End","End","End","End","End","End","End","End","End","End","End","End","End","End","End","End","End","End","End","End","End","End","End","End","End","End","End","End","End","End","End","End","End","End","End","End","End","End","End","End","End","End","End","End","End","End","End","End","End","End","End","End","End","End","End","End","End","End","End","End","End","End","End","End","End","End","End","End","End","End","End","End","End","End","End","End","End","End","End","End","End","End","End","End","End","End","End","End","End","End","End","End","End","End","End","End","End","End","End","End","End","End","End","End","End","End","End","End","End","End","End","End","End","End","End","End","End","End","End","End","End","End","End","End","End","End","End","End","End","End","End","End","End","End","End","End","End","End","End","End","End","End","End","End","End","End","End","End","End","End","End","End","End","End","End","End","End","End","End","End","End","End","End","End","End","End","End","End","End","End","End","End","End","End","End","End","End","End","End","End","End","End","End","End","End","End","End","End","End","End","End","End","End","End","End","End","End","End","End","End","End","End","End","End","End","End","End","End","End","End","End","End","End","End","End","End","End","End","End","End","End","End","End","End","End","End","End","End","End","End","End","End","End","End","End","End","End","End","End","End","End","End","End","End","End","End","End","End","End","End","End","End","End","End","End","End","End","End","End","End","End","End","End","End","End","End","End","End","End","End","End","End","End","End","End","End","End","End","End","End","End","End","End","End","End","End","End","End","End","End","End","End","End","End","End","End","End","End","End","End","End","End","End","End","End","End","End","End","End","End","End","End","End","End","End","End","End","End","End","End","End","End","End","End","End","End","End","End","End","End","End","End","End","End","End","End","End","End","End","End","End","End","End","End","End","End","End","End","End","End","End","End","End","End","End","End","End","End","End","End","End","End","End","End","End","End","End","End","End","End","End","End","End","End","End","End","End","End","End","End","End","End","End","End","End","End","End","End","End","End","End","End","End","End","End","End","End","End","End","End","End","End","End","End","End","End","End","End","End","End","End","End","End","End","End","End","End","End","End","End","End","End","End","End","End","End","End","End","End","End","End","End","End","End","End","End","End","End","End","End","End","End","End","End","End","End","End","End","End","End","End","End","End","End","End","End","End","End","End","End","End","End","End","End","End","End","End","End","End","End","End","End","End","End","End","End","End","End","End","End","End","End","End","End","End","End","End","End","End","End","End","End","End","End","End","End","End","End","End","End","End","End","End","End","End","End","End","End","End","End","End","End","End","End","End","End","End","End","End","End","End","End","End","End","End","End","End","End","End","End","End","End","End","End","End","End","End","End","End","End","End","End","End","End","End","End","End","End","End","End","End","End","End","End","End","End","End","End","End","End","End","End","End","End","End","End","End","End","End","End","End","End","End","End","End","End","End","End","End","End","End","End","End","End","End","End","End","End","End","End","End","End","End","End","End","End","End","End","End","End","End","End","End","End","End","End","End","End","End","End","End","End","End","End","End","End","End","End","End","End","End","End","End","End","End","End","End","End","End","End","End","End","End","End","End","End","End","End","End","End","End","End","End","End","End","End","End","End","End","End","End","End","End","End","End","End","End","End","End","End","End","End","End","End","End","End","End","End","End","End","End","End","End","End","End","End","End","End","End","End","End","End","End","End","End","End","End","End","End","End","End","End","End","End","End","End","End","End","End","End","End","End","End","End","End","End","End","End","End","End","End","End","End","End","End","End","End","End","End","End","End","End","End","End","End","End","End","End","End","End","End","End","End","End","End","End","End","End","End","End","End","End","End","End","End","End","End","End","End","End","End","End","End","End","End","End","End","End","End","End","End","End","End","End","End","End","End","End","End","End","End","End","End","End","End","End","End","End","End","End","End","End","End","End","End","End","End","End","End","End","End","End","End","End","End","End","End","End","End","End","End","End","End","End","End","End","End","End","End","End","End","End","End","End","End","End","End","End","End","End","End","End","End","End","End","End","End","End","End","End","End","End","End","End","End","End","End","End","End","End","End","End","End","End","End","End","End","End","End","End","End","End","End","End","End","End","End","End","End","End","End","End","End","End","End","End","End","End","End","End","End","End","End","End","End","End","End","End","End","End","End","End","End","End","End","End","End","End","End","End","End","End","End","End","End","End","End","End","End","End","End","End","End","End","End","End","End","End","End","End","End","End","End","End","End","End","End","End","End","End","End","End","End","End","End","End","End","End","End","End","End","End","End","End","End","End","End","End","End","End","End","End","End","End","End","End","End","End","End","End","End","End","End","End","End","End","End","End","End","End","End","End","End","End","End","End","End","End","End","End","End","End","End","End","End","End","End","End","End","End","End","End","End","End","End","End","End","End","End","End","End","End","End","End","End","End","End","End","End","End","End","End","End","End","End","End","End","End","End","End","End","End","End","End","End","End","End","End","End","End","End","End","End","End","End","End","End","End","End","End","End","End","End","End","End","End","End","End","End","End","End","End","End","End","End","End","End","End","End","End","End","End","End","End","End","End","End","End","End","End","End","End","End","End","End","End","End","End","End","End","End","End","End","End","End","End","End","End","End","End","End","End","End","End","End","End","End","End","End","End","End","End","End","End","End","End","End","End","End","End","End","End","End","End","End","End","End","End","End","End","End","End","End","End","End","End","End","End","End","End","End","End","End","End","End","End","End","End","End","End","End","End","End","End","End","End","End","End","End","End","End","End","End","End","End","End","End","End","End","End","End","End","End","End","End","End","End","End","End","End","End","End","End","End","End","End","End","End","End","End","End","End","End","End","End","End","End","End","End","End","End","End","End","End","End","End","End","End","End","End","End","End","End","End","End","End","End","End","End","End","End","End","End","End","End","End","End","End","End","End","End","End","End","End","End","End","End","End","End","End","End","End","End","End","End","End","End","End","End","End","End","End","End","End","End","End","End","End","End","End","End","End","End","End","End","End","End","End","End","End","End","End","End","End","End","End","End","End","End","End","End","End","End","End","End","End","End","End","End","End","End","End","End","End","End","End","End","End","End","End","End","End","End","End","End","End","End","End","End","End","End","End","End","End","End","End","End","End","End","End","End","End","End","End","End","End","End","End","End","End","End","End","End","End","End","End","End","End","End","End","End","End","End","End","End","End","End","End","End","End","End","End","End","End","End","End","End","End","End","End","End","End","End","End","End","End","End","End","End","End","End","End","End","End","End","End","End","End","End","End","End","End","End","End","End","End","End","End","End","End","End","End","End","End","End","End","End","End","End","End","End","End","End","End","End","End","End","End","End","End","End","End","End","End","End","End","End","End","End","End","End","End","End","End","End","End","End","End","End","End","End","End","End","End","End","End","End","End","End","End","End","End","End","End","End","End","End","End","End","End","End","End","End","End","End","End","End","End","End","End","End","End","End","End","End","End","End","End","End","End","End","End","End","End","End","End","End","End","End","End","End","End","End","End","End","End","End","End","End","End","End","End","End","End","End","End","End","End","End","End","End","End","End","End","End","End","End","End","End","End","End","End","End","End","End","End","End","End","End","End","End","End","End","End","End","End","End","End","End","End","End","End","End","End","End","End","End","End","End","End","End","End","End","End","End","End","End","End","End","End","End","End","End","End","End","End","End","End","End","End","End","End","End","End","End","End","End","End","End","End","End","End","End","End","End","End","End","End","End","End","End","End","End","End","End","End","End","End","End","End","End","End","End","End","End","End","End","End","End","End","End","End","End","End","End","End","End","End","End","End","End","End","End","End","End","End","End","End","End","End","End","End","End","End","End","End","End","End","End","End","End","End","End","End","End","End","End","End","End","End","End","End","End","End","End","End","End","End","End","End","End","End","End","End","End","End","End","End","End","End","End","End","End","End","End","End","End","End","End","End","End","End","End","End","End","End","End","End","End","End","End","End","End","End","End","End","End","End","End","End","End","End","End","End","End","End","End","End","End","End","End","End","End","End","End","End","End","End","End","End","End","End","End","End","End","End","End","End","End","End","End","End","End","End","End","End","End","End","End","End","End","End","End","End","End","End","End","End","End","End","End","End","End","End","End","End","End","End","End","End","End","End","End","End","End","End","End","End","End","End","End","End","End","End","End","End","End","End","End","End","End","End","End","End","End","End","End","End","End","End","End","End","End","End","End","End","End","End","End","End","End","End","End","End","End","End","End","End","End","End","End","End","End","End","End","End","End","End","End","End","End","End","End","End","End","End","End","End","End","End","End","End","End","End","End","End","End","End","End","End","End","End","End","End","End","End","End","End","End","End","End","End","End","End","End","End","End","End","End","End","End","End","End","End","End","End","End","End","End","End","End","End","End","End","End","End","End","End","End","End","End","End","End","End","End","End","End","End","End","End","End","End","End","End","End","End","End","End","End","End","End","End","End","End","End","End","End","End","End","End","End","End","End","End","End","End","End","End","End","End","End","End","End","End","End","End","End","End","End","End","End","End","End","End","End","End","End","End","End","End","End","End","End","End","End","End","End","End","End","End","End","End","End","End","End","End","End","End","End","End","End","End","End","End","End","End","End","End","End","End","End","End","End","End","End","End","End","End","End","End","End","End","End","End","End","End","End","End","End","End","End","End","End","End","End","End","End","End","End","End","End","End","End","End","End","End","End","End","End","End","End","End","End","End","End","End","End","End","End","End","End","End","End","End","End","End","End","End","End","End","End","End","End","End","End","End","End","End","End","End","End","End","End","End","End","End","End","End","End","End","End","End","End","End","End","End","End","End","End","End","End","End","End","End","End","End","End","End","End","End","End","End","End","End","End","End","End","End","End","End","End","End","End","End","End","End","End","End","End","End","End","End","End","End","End","End","End","End","End","End","End","End","End","End","End","End","End","End","End","End","End","End","End","End","End","End","End","End","End","End","End","End","End","End","End","End","End","End","End","End","End","End","End","End","End","End","End","End","End","End","End","End","End","End","End","End","End","End","End","End","End","End","End","End","End","End","End","End","End","End","End","End","End","End","End","End","End","End","End","End","End","End","End","End","End","End","End","End","End","End","End","End","End","End","End","End","End","End","End","End","End","End","End","End","End","End","End","End","End","End","End","End","End","End","End","End","End","End","End","End","End","End","End","End","End","End","End","End","End","End","End","End","End","End","End","End","End","End","End","End","End","End","End","End","End","End","End","End","End","End","End","End","End","End","End","End","End","End","End","End","End","End","End","End","End","End","End","End","End","End","End","End","End","End","End","End","End","End","End","End","End","End","End","End","End","End","End","End","End","End","End","End","End","End","End","End","End","End","End","End","End","End","End","End","End","End","End","End","End","End","End","End","End","End","End","End","End","End","End","End","End","End","End","End","End","End","End","End","End","End","End","End","End","End","End","End","End","End","End","End","End","End","End","End","End","End","End","End","End","End","End","End","End","End","End","End","End","End","End","End","End","End","End","End","End","End","End","End","End","End","End","End","End","End","End","End","End","End","End","End","End","End","End","End","End","End","End","End","End","End","End","End","End","End","End","End","End","End","End","End","End","End","End","End","End","End","End","End","End","End","End","End","End","End","End","End","End","End","End","End","End","End","End","End","End","End","End","End","End","End","End","End","End","End","End","End","End","End","End","End","End","End","End","End","End","End","End","End","End","End","End","End","End","End","End","End","End","End","End","End","End","End","End","End","End","End","End","End","End","End","End","End","End","End","End","End","End","End","End","End","End","End","End","End","End","End","End","End","End","End","End","End","End","End","End","End","End","End","End","End","End","End","End","End","End","End","End","End","End","End","End","End","End","End","End","End","End","End","End","End","End","End","End","End","End","End","End","End","End","End","End","End","End","End","End","End","End","End","End","End","End","End","End","End","End","End","End","End","End","End","End","End","End","End","End","End","End","End","End","End","End","End","End","End","End","End","End","End","End","End","End","End","End","End","End","End","End","End","End","End","End","End","End","End","End","End","End","End","End","End","End","End","End","End","End","End","End","End","End","End","End","End","End","End","End","End","End","End","End","End","End","End","End","End","End","End","End","End","End","End","End","End","End","End","End","End","End","End","End","End","End","End","End","End","End","End","End","End","End","End","End","End","End","End","End","End","End","End","End","End","End","End","End","End","End","End","End","End","End","End","End","End","End","End","End","End","End","End","End","End","End","End","End","End","End","End","End","End","End","End","End","End","End","End","End","End","End","End","End","End","End","End","End","End","End","End","End","End","End","End","End","End","End","End","End","End","End","End","End","End","End","End","End","End","End","End","End","End","End","End","End","End","End","End","End","End","End","End","End","End","End","End","End","End","End","End","End","End","End","End","End","End","End","End","End","End","End","End","End","End","End","End","End","End","End","End","End","End","End","End","End","End","End","End","End","End","End","End","End","End","End","End","End","End","End","End","End","End","End","End","End","End","End","End","End","End","End","End","End","End","End","End","End","End","End","End","End","End","End","End","End","End","End","End","End","End","End","End","End","End","End","End","End","End","End","End","End","End","End","End","End","End","End","End","End","End","End","End","End","End","End","End","End","End","End","End","End","End","End","End","End","End","End","End","End","End","End","End","End","End","End","End","End","End","End","End","End","End","End","End","End","End","End","End","End","End","End","End","End","End","End","End","End","End","End","End","End","End","End","End","End","End","End","End","End","End","End","End","End","End","End","End","End","End","End","End","End","End","End","End","End","End","End","End","End","End","End","End","End","End","End","End","End","End","End","End","End","End","End","End","End","End","End","End","End","End","End","End","End","End","End","End","End","End","End","End","End","End","End","End","End","End","End","End","End","End","End","End","End","End","End","End","End","End","End","End","End","End","End","End","End","End","End","End","End","End","End","End","End","End","End","End","End","End","End","End","End","End","End","End","End","End","End","End","End","End","End","End","End","End","End","End","End","End","End","End","End","End","End","End","End","End","End","End","End","End","End","End","End","End","End","End","End","End","End","End","End","End","End","End","End","End","End","End","End","End","End","End","End","End","End","End","End","End","End","End","End","End","End","End","End","End","End","End","End","End","End","End","End","End","End","End","End","End","End","End","End","End","End","End","End","End","End","End","End","End","End","End","End","End","End","End","End","End","End","End","End","End","End","End","End","End","End","End","End","End","End","End","End","End","End","End","End","End","End","End","End","End","End","End","End","End","End","End","End","End","End","End","End","End","End","End","End","End","End","End","End","End","End","End","End","End","End","End","End","End","End","End","End","End","End","End","End","End","End","End","End","End","End","End","End","End","End","End","End","End","End","End","End","End","End","End","End","End","End","End","End","End","End","End","End","End","End","End","End","End","End","End","End","End","End","End","End","End","End","End","End","End","End","End","End","End","End","End","End","End","End","End","End","End","End","End","End","End","End","End","End","End","End","End","End","End","End","End","End","End","End","End","End","End","End","End","End","End","End","End","End","End","End","End","End","End","End","End","End","End","End","End","End","End","End","End","End","End","End","End","End","End","End","End","End","End","End","End","End","End","End","End","End","End","End","End","End","End","End","End","End","End","End","End","End","End","End","End","End","End","End","End","End","End","End","End","End","End","End","End","End","End","End","End","End","End","End","End","End","End","End","End","End","End","End","End","End","End","End","End","End","End","End","End","End","End","End","End","End","End","End","End","End","End","End","End","End","End","End","End","End","End","End","End","End","End","End","End","End","End","End","End","End","End","End","End","End","End","End","End","End","End","End","End","End","End","End","End","End","End","End","End","End","End","End","End","End","End","End","End","End","End","End","End","End","End","End","End","End","End","End","End","End","End","End","End","End","End","End","End","End","End","End","End","End","End","End","End","End","End","End","End","End","End","End","End","End","End","End","End","End","End","End","End","End","End","End","End","End","End","End","End","End","End","End","End","End","End","End","End","End","End","End","End","End","End","End","End","End","End","End","End","End","End","End","End","End","End","End","End","End","End","End","End","End","End","End","End","End","End","End","End","End","End","End","End","End","End","End","End","End","End","End","End","End","End","End","End","End","End","End","End","End","End","End","End","End","End","End","End","End","End","End","End","End","End","End","End","End","End","End","End","End","End","End","End","End","End","End","End","End","End","End","End","End","End","End","End","End","End","End","End","End","End","End","End","End","End","End","End","End","End","End","End","End","End","End","End","End","End","End","End","End","End","End","End","End","End","End","End","End","End","End","End","End","End","End","End","End","End","End","End","End","End","End","End","End","End","End","End","End","End","End","End","End","End","End","End","End","End","End","End","End","End","End","End","End","End","End","End","End","End","End","End","End","End","End","End","End","End","End","End","End","End","End","End","End","End","End","End","End","End","End","End","End","End","End","End","End","End","End","End","End","End","End","End","End","End","End","End","End","End","End","End","End","End","End","End","End","End","End","End","End","End","End","End","End","End","End","End","End","End","End","End","End","End","End","End","End","End","End","End","End","End","End","End","End","End","End","End","End","End","End","End","End","End","End","End","End","End","End","End","End","End","End","End","End","End","End","End","End","End","End","End","End","End","End","End","End","End","End","End","End","End","End","End","End","End","End","End","End","End","End","End","End","End","End","End","End","End","End","End","End","End","End","End","End","End","End","End","End","End","End","End","End","End","End","End","End","End","End","End","End","End","End","End","End","End","End","End","End","End","End","End","End","End","End","End","End","End","End","End","End","End","End","End","End","End","End","End","End","End","End","End","End","End","End","End","End","End","End","End","End","End","End","End","End","End","End","End","End","End","End","End","End","End","End","End","End","End","End","End","End","End","End","End","End","End","End","End","End","End","End","End","End","End","End","End","End","End","End","End","End","End","End","End","End","End","End","End","End","End","End","End","End","End","End","End","End","End","End","End","End","End","End","End","End","End","End","End","End","End","End","End","End","End","End","End","End","End","End","End","End","End","End","End","End","End","End","End","End","End","End","End","End","End","End","End","End","End","End","End","End","End","End","End","End","End","End","End","End","End","End","End","End","End","End","End","End","End","End","End","End","End","End","End","End","End","End","End","End","End","End","End","End","End","End","End","End","End","End","End","End","End","End","End","End","End","End","End","End","End","End","End","End","End","End","End","End","End","End","End","End","End","End","End","End","End","End","End","End","End","End","End","End","End","End","End","End","End","End","End","End","End","End","End","End","End","End","End","End","End","End","End","End","End","End","End","End","End","End","End","End","End","End","End","End","End","End","End","End","End","End","End","End","End","End","End","End","End","End","End","End","End","End","End","End","End","End","End","End","End","End","End","End","End","End","End","End","End","End","End","End","End","End","End","End","End","End","End","End","End","End","End","End","End","End","End","End","End","End","End","End","End","End","End","End","End","End","End","End","End","End","End","End","End","End","End","End","End","End","End","End","End","End","End","End","End","End","End","End","End","End","End","End","End","End","End","End","End","End","End","End","End","End","End","End","End","End","End","End","End","End","End","End","End","End","End","End","End","End","End","End","End","End","End","End","End","End","End","End","End","End","End","End","End","End","End","End","End","End","End","End","End","End","End","End","End","End","End","End","End","End","End","End","End","End","End","End","End","End","End","End","End","End","End","End","End","End","End","End","End","End","End","End","End","End","End","End","End","End","End","End","End","End","End","End","End","End","End","End","End","End","End","End","End","End","End","End","End","End","End","End","End","End","End","End","End","End","End","End","End","End","End","End","End","End","End","End","End","End","End","End","End","End","End","End","End","End","End","End","End","End","End","End","End","End","End","End","End","End","End","End","End","End","End","End","End","End","End","End","End","End","End","End","End","End","End","End","End","End","End","End","End","End","End","End","End","End","End","End","End","End","End","End","End","End","End","End","End","End","End","End","End","End","End","End","End","End","End","End","End","End","End","End","End","End","End","End","End","End","End","End","End","End","End","End","End","End","End","End","End","End","End","End","End","End","End","End","End","End","End","End","End","End","End","End","End","End","End","End","End","End","End","End","End","End","End","End","End","End","End","End","End","End","End","End","End","End","End","End","End","End","End","End","End","End","End","End","End","End","End","End","End","End","End","End","End","End","End","End","End","End","End","End","End","End","End","End","End","End","End","End","End","End","End","End","End","End","End","End","End","End","End","End","End","End","End","End","End","End","End","End","End","End","End","End","End","End","End","End","End","End","End","End","End","End","End","End","End","End","End","End","End","End","End","End","End","End","End","End","End","End","End","End","End","End","End","End","End","End","End","End","End","End","End","End","End","End","End","End","End","End","End","End","End","End","End","End","End","End","End","End","End","End","End","End","End","End","End","End","End","End","End","End","End","End","End","End","End","End","End","End","End","End","End","End","End","End","End","End","End","End","End","End","End","End","End","End","End","End","End","End","End","End","End","End","End","End","End","End","End","End","End","End","End","End","End","End","End","End","End","End","End","End","End","End","End","End","End","End","End","End","End","End","End","End","End","End","End","End","End","End","End","End","End","End","End","End","End","End","End","End","End","End","End","End","End","End","End","End","End","End","End","End","End","End","End","End","End","End","End","End","End","End","End","End","End","End","End","End","End","End","End","End","End","End","End","End","End","End","End","End","End","End","End","End","End","End","End","End","End","End","End","End","End","End","End","End","End","End","End","End","End","End","End","End","End","End","End","End","End","End","End","End","End","End","End","End","End","End","End","End","End","End","End","End","End","End","End","End","End","End","End","End","End","End","End","End","End","End","End","End","End","End","End","End","End","End","End","End","End","End","End","End","End","End","End","End","End","End","End","End","End","End","End","End","End","End","End","End","End","End","End","End","End","End","End","End","End","End","End","End","End","End","End","End","End","End","End","End","End","End","End","End","End","End","End","End","End","End","End","End","End","End","End","End","End","End","End","End","End","End","End","End","End","End","End","End","End","End","End","End","End","End","End","End","End","End","End","End","End","End","End","End","End","End","End","End","End","End","End","End","End","End","End","End","End","End","End","End","End","End","End","End","End","End","End","End","End","End","End","End","End","End","End","End","End","End","End","End","End","End","End","End","End","End","End","End","End","End","End","End","End","End","End","End","End","End","End","End","End","End","End","End","End","End","End","End","End","End","End","End","End","End","End","End","End","End","End","End","End","End","End","End","End","End","End","End","End","End","End","End","End","End","End","End","End","End","End","End","End","End","End","End","End","End","End","End","End","End","End","End","End","End","End","End","End","End","End","End","End","End","End","End","End","End","End","End","End","End","End","End","End","End","End","End","End","End","End","End","End","End","End","End","End","End","End","End","End","End","End","End","End","End","End","End","End","End","End","End","End","End","End","End","End","End","End","End","End","End","End","End","End","End","End","End","End","End","End","End","End","End","End","End","End","End","End","End","End","End","End","End","End","End","End","End","End","End","End","End","End","End","End","End","End","End","End","End","End","End","End","End","End","End","End","End","End","End","End","End","End","End","End","End","End","End","End","End","End","End","End","End","End","End","End","End","End","End","End","End","End","End","End","End","End","End","End","End","End","End","End","End","End","End","End","End","End","End","End","End","End","End","End","End","End","End","End","End","End","End","End","End","End","End","End","End","End","End","End","End","End","End","End","End","End","End","End","End","End","End","End","End","End","End","End","End","End","End","End","End","End","End","End","End","End","End","End","End","End","End","End","End","End","End","End","End","End","End","End","End","End","End","End","End","End","End","End","End","End","End","End","End","End","End","End","End","End","End","End","End","End","End","End","End","End","End","End","End","End","End","End","End","End","End","End","End","End","End","End","End","End","End","End","End","End","End","End","End","End","End","End","End","End","End","End","End","End","End","End","End","End","End","End","End","End","End","End","End","End","End","End","End","End","End","End","End","End","End","End","End","End","End","End","End","End","End","End","End","End","End","End","End","End","End","End","End","End","End","End","End","End","End","End","End","End","End","End","End","End","End","End","End","End","End","End","End","End","End","End","End","End","End","End","End","End","End","End","End","End","End","End","End","End","End","End","End","End","End","End","End","End","End","End","End","End","End","End","End","End","End","End","End","End","End","End","End","End","End","End","End","End","End","End","End","End","End","End","End","End","End","End","End","End","End","End","End","End","End","End","End","End","End","End","End","End","End","End","End","End","End","End","End","End","End","End","End","End","End","End","End","End","End","End","End","End","End","End","End","End","End","End","End","End","End","End","End","End","End","End","End","End","End","End","End","End","End","End","End","End","End","End","End","End","End","End","End","End","End","End","End","End","End","End","End","End","End","End","End","End","End","End","End","End","End","End","End","End","End","End","End","End","End","End","End","End","End","End","End","End","End","End","End","End","End","End","End","End","End","End","End","End","End","End","End","End","End","End","End","End","End","End","End","End","End","End","End","End","End","End","End","End","End","End","End","End","End","End","End","End","End","End","End","End","End","End","End","End","End","End","End","End","End","End","End","End","End","End","End","End","End","End","End","End","End","End","End","End","End","End","End","End","End","End","End","End","End","End","End","End","End","End","End","End","End","End","End","End","End","End","End","End","End","End","End","End","End","End","End","End","End","End","End","End","End","End","End","End","End","End","End","End","End","End","End","End","End","End","End","End","End","End","End","End","End","End","End","End","End","End","End","End","End","End","End","End","End","End","End","End","End","End","End","End","End","End","End","End","End","End","End","End","End","End","End","End","End","End","End","End","End","End","End","End","End","End","End","End","End","End","End","End","End","End","End","End","End","End","End","End","End","End","End","End","End","End","End","End","End","End","End","End","End","End","End","End","End","End","End","End","End","End","End","End","End","End","End","End","End","End","End","End","End","End","End","End","End","End","End","End","End","End","End","End","End","End","End","End","End","End","End","End","End","End","End","End","End","End","End","End","End","End","End","End","End","End","End","End","End","End","End","End","End","End","End","End","End","End","End","End","End","End","End","End","End","End","End","End","End","End","End","End","End","End","End","End","End","End","End","End","End","End","End","End","End","End","End","End","End","End","End","End","End","End","End","End","End","End","End","End","End","End","End","End","End","End","End","End","End","End","End","End","End","End","End","End","End","End","End","End","End","End","End","End","End","End","End","End","End","End","End","End","End","End","End","End","End","End","End","End","End","End","End","End","End","End","End","End","End","End","End","End","End","End","End","End","End","End","End","End","End","End","End","End","End","End","End","End","End","End","End","End","End","End","End","End","End","End","End","End","End","End","End","End","End","End","End","End","End","End","End","End","End","End","End","End","End"]

{"sheet":"Matriz de Risco","index":3,"n_rows":56,"n_cols":9,"rows_kept":56,"cut":false,"hidden":false,"merged":[[25,6,26,6],[25,5,26,5],[25,3,25,4],[8,1,12,1],[25,1,25,2]]}
[{"$f":"MdlTle","v":"Ferramenta de Avaliação Rápida de Riscos (ARR)"}]
[{"$f":"MID(CELL(\"filename\",A1),FIND(\"]\",CELL(\"filename\",A1))+1,255)","v":"Matriz de Risco"}]
[]
[]
[]
[]
[null,"Classificação de probabilidade",null,null,"Muito Baixo","Baixo","Moderado","Alto","Muito Alto"]
[null,"Pontuação da Classificação de probabilidade",null,null,"0 - 2","2 - 4","4 - 6","6 - 8","8 - 10"]
[null,"Gravidade\nPontuação de gravidade média ponderada (com base nas respostas fornecidas para medidas de vulnerabilidade e exposição)","Insignificante","0 - 10","MB1","MB2","B3","B4","M5"]
[null,null,"Menor","11 - 25","MB2","B3","B4","M5","M6"]
[null,null,"Moderado","26 - 50","B3","B4","M5","M6","A7"]
[null,null,"Maior","51 - 75","B4","M5","M6","A7","A8"]
[null,null,"Catastrófico","76 - 100","M5","M6","A7","A8","MA9"]
[]
[]
[null,"Guia de Probabilidade"]
[null,"Nível","Definição baseada na probabilidade",null,null,null,"Definição baseada em dados históricos"]
[null,"Muito Alto","É quase certo que ocorra pelo menos uma vez",null,null,null,"Ocorreram 3 ou mais vezes nos últimos 5 anos"]
[null,"Alto","Chance razoável de ocorrer pelo menos uma vez",null,null,null,"Ocorreram duas vezes nos últimos 5 anos"]
[null,"Moderado","Pode ocorrer pelo menos uma vez",null,null,null,"Ocorreu uma vez nos últimos cinco anos"]
[null,"Baixo","Não é esperado que ocorra",null,null,null,"Podem ocorrer e ocorreram uma vez nos últimos 10 anos"]
[null,"Muito Baixo","Só ocorrerá em circunstâncias excepcionais",null,null,null,"Pode ocorrer apenas em circunstâncias excepcionais e ocorreu nos últimos 20 anos"]
[]
["Tabela da Matriz de Risco"]
[]
[null,"Severidade",null,"Classificação de Probabilidade",null,"Classificação","Referência de Classificação"]
[null,"Limite Inferior","Limite Superior","Limite Inferior","Limite Superior"]
[null,-100,0,0,0,0,"MB1"]
[null,0.1,10,0,2,1,"MB1"]
[null,0.1,10,2.1,4,2,"MB2"]
[null,0.1,10,4.0999999999999996,6,3,"B3"]
[null,0.1,10,6.1,8,4,"B4"]
[null,0.1,10,8.1,10,5,"M5"]
[null,11,25,0,2,6,"MB2"]
[null,11,25,2.1,4,7,"B3"]
[null,11,25,4.0999999999999996,6,8,"B4"]
[null,11,25,6.1,8,9,"M5"]
[null,11,25,8.1,10,10,"M6"]
[null,26,50,0,2,11,"B3"]
[null,26,50,2.1,4,12,"B4"]
[null,26,50,4.0999999999999996,6,13,"M5"]
[null,26,50,6.1,8,14,"M6"]
[null,26,50,8.1,10,15,"A7"]
[null,51,75,0,2,16,"B4"]
[null,51,75,2.1,4,17,"M5"]
[null,51,75,4.0999999999999996,6,18,"M6"]
[null,51,75,6.1,8,19,"A7"]
[null,51,75,8.1,10,20,"A8"]
[null,76,100,0,2,21,"M5"]
[null,76,100,2.1,4,22,"M6"]
[null,76,100,4.0999999999999996,6,23,"A7"]
[null,76,100,6.1,8,24,"A8"]
[null,76,100,8.1,10,25,"MA9"]
[]
[]
["Fim"]

{"sheet":"Informações","index":4,"n_rows":24,"n_cols":3,"rows_kept":24,"cut":false,"hidden":false,"merged":[]}
[{"$f":"MdlTle","v":"Ferramenta de Avaliação Rápida de Riscos (ARR)"}]
[{"$f":"MID(CELL(\"filename\",A1),FIND(\"]\",CELL(\"filename\",A1))+1,255)","v":"Informações"}]
[]
[]
[]
[]
[]
[]
[]
[]
[]
[]
[]
[]
[null,null,"Local / Região Nome / Título: "]
[]
[null,null,"Descrição: "]
[]
[]
[null,null,"Avaliador (ou seja, pessoa que realizou a análise):"]
[]
[null,null,"Data de conclusão:"]
[]
[null,null,"Data da Revisão"]

{"sheet":"Premissas","index":5,"n_rows":162,"n_cols":6,"rows_kept":162,"cut":false,"hidden":false,"merged":[]}
[{"$f":"MdlTle","v":"Ferramenta de Avaliação Rápida de Riscos (ARR)"}]
[{"$f":"MID(CELL(\"filename\",A1),FIND(\"]\",CELL(\"filename\",A1))+1,255)","v":"Premissas"}]
[]
[]
["Premissas gerais"]
[]
[]
[null,"Proporção da pontuação no ranking de probabilidade",null,"%",null,0.5]
[null,"Pontuação máxima",null,"#",null,10]
[null,"Ponderação de vulnerabilidades",null,"%",null,0.25]
[]
["Avaliações e pontuações"]
[]
[null,"Classificações de exposição"]
[null,"0-Insignificante",null,"#",null,0]
[null,"1-Extremamente raro",null,"#",null,1]
[null,"2-Muito raro",null,"#",null,2]
[null,"3-Raro",null,"#",null,3]
[null,"4-Improvável",null,"#",null,4]
[null,"5-Possível",null,"#",null,5]
[null,"6-Provável",null,"#",null,6]
[null,"7-Esperado",null,"#",null,7]
[null,"8-Muito esperado",null,"#",null,8]
[null,"9-Extremamente esperado",null,"#",null,9]
[null,"10-Inevitável",null,"#",null,10]
[]
[null,"Classificação de vulnerabilidade"]
[null,"0-Insignificante",null,"#",null,0]
[null,"1-Extremamente raro",null,"#",null,1]
[null,"2-Muito raro",null,"#",null,2]
[null,"3-Raro",null,"#",null,3]
[null,"4-Improvável",null,"#",null,4]
[null,"5-Possível",null,"#",null,5]
[null,"6-Provável",null,"#",null,6]
[null,"7-Esperado",null,"#",null,7]
[null,"8-Muito esperado",null,"#",null,8]
[null,"9-Extremamente esperado",null,"#",null,9]
[null,"10-Inevitável",null,"#",null,10]
[]
[null,"Classificação de resposta"]
[null,"0-Nenhuma medida em vigor",null,"#",null,0]
[null,"1-Extremamente poucas medidas em vigor",null,"#",null,1]
[null,"2-Muito poucas medidas em vigor",null,"#",null,2]
[null,"3-Poucas medidas em vigor",null,"#",null,3]
[null,"4-Algumas medidas em vigor",null,"#",null,4]
[null,"5-Razoáveis medidas em vigor",null,"#",null,5]
[null,"6-Boas medidas em vigor",null,"#",null,6]
[null,"7-Altas medidas em vigor",null,"#",null,7]
[null,"8-Extremamente altas medidas em vigor",null,"#",null,8]
[null,"9-Imensas medidas em vigor",null,"#",null,9]
[null,"10-Controle completo dos desastres",null,"#",null,10]
[]
["Caixas Suspensas"]
[]
[null,"Perigos"]
[null," Principais Perigos Geofísicos"]
[null,"Terremotos"]
[null,"Movimento de Massa"]
[null,"Atividade Vulcânica"]
[]
[null,"Principais Perigos Hidrológicos"]
[null,"Inundação"]
[null,"Escorregamento"]
[null,"Ação de Ondas"]
[]
[null,"Principais Perigos Meteorológicos"]
[null,"Tempestade Convectiva"]
[null,"Tempestade Extratropical "]
[null,"Temperaturas Extremas"]
[null,"Neblina"]
[null,"Ciclone Tropical "]
[]
[null," Principais Perigos Climatológicos"]
[null,"Secas"]
[null,"Rompimento de Lago Glacial"]
[null,"Incêndio"]
[]
[null," Principais Perigos Biológicos"]
[null,"Incidente Animal "]
[null,"Doenças"]
[null,"Infestação de Insetos"]
[]
[null,"Principais Perigos de origem Sideral"]
[null,"Impactos para o solo ou para água"]
[null,"Clima Espacial"]
[]
[null,"Principais Perigos Antropogênicos "]
[null,"Principais Perigos Tecnológicos"]
[null,"Perigos Químicos e Radiológicos"]
[null,"Acidentes de Transporte"]
[]
["R8","Outros Perigos Principais (Definidos pelo usuário)"]
[null,"Espaço 1"]
[null,"Espaço 2"]
[null,"Espaço 3"]
[null,"Espaço 4"]
[]
[]
[null,"Eventos de Perigos"]
[null,"Explosão aérea",null,null,null,"Queda de Cinzas"]
[null,"Queda de cinzas",null,null,null,"Incêndio após o evento"]
[null,"Avalanche/ Neve/ Detritos",null,null,null,"Movimento do Solo"]
[null,"Acidente de aviação",null,null,null,"Deslizamento após evento"]
[null,"Doença bacteriana",null,null,null,"Lahar"]
[null,"Derramamento Químico",null,null,null,"Fluxo de lava"]
[null,"Erosão costeira",null,null,null,"Liquefação"]
[null,"Inundação Costeira",null,null,null,"Fluxo Piroclástico"]
[null,"Onda Fria",null,null,null,"Tsunami"]
[null,"Colisão",null,null,null,"Avalanche/ Neve/ Detritos"]
[null,"Derecho",null,null,null,"Inundação Costeira"]
[null,"Partículas Energéticas",null,null,null,"Erosão Costeira"]
[null,"Solo Expansivo",null,null,null,"Deslizamento após evento"]
[null,"Incêndio após o evento",null,null,null,"Queda de Lama/Queda Rochosa/ Detritos"]
[null,"Enxurrada",null,null,null,"Solo Expansivo"]
[null,"Queimada",null,null,null,"Enxurrada"]
[null,"Geada/ Congelamento",null,null,null,"Inundação de Gelo Derretido"]
[null,"Doença Fúngica",null,null,null,"Inundação Ribeirinha"]
[null,"Tempestade Geomagnética",null,null,null,"Ondas Gigantes"]
[null,"Movimento do Solo",null,null,null,"Seicha"]
[null,"Granizo",null,null,null,"Dolinas"]
[null,"Onda de calor",null,null,null,"Onda Fria"]
[null,"Inundação de gelo derretido",null,null,null,"Derecho"]
[null,"Desastre industrial",null,null,null,"Geada/ Congelamento"]
[null,"Explosão industrial",null,null,null,"Granizo"]
[null,"Lahar",null,null,null,"Onda de Calor"]
[null,"Incêndio de arbustos/ Mata/ Pasto",null,null,null,"Relâmpago"]
[null,"Deslizamento após evento",null,null,null,"Chuva"]
[null,"Fluxo de lava",null,null,null,"Tempestade de Areia/ Poeira"]
[null,"Relâmpago",null,null,null,"Neve/ Gelo"]
[null,"Liquefação",null,null,null,"Maré de Tempestade"]
[null,"Desastre em mina",null,null,null,"Tornado"]
[null,"Queda de lama/ Queda rochosa/ Detritos",null,null,null,"Vento"]
[null,"Acidente de navegação",null,null,null,"Tempestade de Inverno/ Nevasca"]
[null,"Derramamento de óleo",null,null,null,"Incêndio Florestal"]
[null,"Doença parasitária",null,null,null,"Incêndio de Arbustos/ Mata/ Pasto"]
[null,"Falta de energia",null,null,null,"Subsidência"]
[null,"Doença de Prion",null,null,null,"Doença Bacteriana"]
[null,"Fluxo piroclástico",null,null,null,"Doença Fúngica"]
[null,"Contaminação por radiação, incidente nuclear",null,null,null,"Doença Parasitária"]
[null,"Perturbação de rádio",null,null,null,"Doença de Príon"]
[null,"Acidente ferroviário",null,null,null,"Doença Viral "]
[null,"Chuva",null,null,null,"Explosão Aérea"]
[null,"Inundação Ribeirinha",null,null,null,"Colisão"]
[null,"Acidente em estradas",null,null,null,"Partículas Energéticas"]
[null,"Ondas Gigantes",null,null,null,"Tempestade Geomagnética"]
[null,"Tempestade de areia/ Poeira",null,null,null,"Perturbação de Rádio"]
[null,"Seicha",null,null,null,"Ondas de Choque"]
[null,"Onda de choque",null,null,null,"Desastre Industrial"]
[null,"Dolinas",null,null,null,"Colapso Estrutural"]
[null,"Neve/ Gelo",null,null,null,"Falta de Energia"]
[null,"Acidente espacial",null,null,null,"Incêndio após o evento"]
[null,"Maré de Tempestade",null,null,null,"Explosão Industrial"]
[null,"Colapso Estrutural",null,null,null,"Desastre de Mina"]
[null,"Subsidência",null,null,null,"Derramamento Químico"]
[null,"Tornado",null,null,null,"Derramamento de Óleo"]
[null,"Tsunami",null,null,null,"Contaminação por radiação, incidente nuclear"]
[null,"Doença viral",null,null,null,"Acidente de Aviação"]
[null,"Vento",null,null,null,"Acidente Ferroviário"]
[null,null,null,null,null,"Acidente em Estradas"]
[null,null,null,null,null,"Acidente de Navegação"]
[null,null,null,null,null,"Acidente Espacial"]
["Fim"]

{"sheet":"Entrada de Dados de Perigo","index":6,"n_rows":54,"n_cols":14,"rows_kept":54,"cut":false,"hidden":false,"merged":[[4,1,5,1],[4,4,4,7],[4,2,5,2],[4,13,5,13],[4,3,5,3],[4,9,5,9],[4,12,5,12]]}
[{"$f":"MdlTle","v":"Ferramenta de Avaliação Rápida de Riscos (ARR)"}]
[{"$f":"MID(CELL(\"filename\",A1),FIND(\"]\",CELL(\"filename\",A1))+1,255)","v":"Entrada de Dados de Perigo"}]
[]
[]
[null,"Grupo de Perigo","Subgrupo de Perigo","Classificação de Exposição","Classificação de Vulnerabilidade",null,null,null,"Classificação de Vulnerabilidade Total","Nível atual de medidas de resposta realizadas ou em vigor","Pontuação de classificação de probabilidade","Classificação de Gravidade","Saída da Matriz de Risco","Comentários e Justificativas"]
[null,null,null,null,"Infraestrutura","Setores Produtivos","Serviços Básicos ou Essenciais","Aspectos Humanos e Sociais","1 (baixo) - 100 (alto)",null,"1 (baixo) - 10 (alto)","1 (baixo ) - 100 (alto)"]
[null,"P1 - Geofísico"]
[null,null,null,null,null,null,null,null,{"$f":"IFERROR((((INDEX(Premissas!$F$28:$F$38,MATCH(E8,Vulnerabilties,0))*Premissas!$F$10)+(INDEX(Premissas!$F$28:$F$38,MATCH(F8,Vulnerabilties,0))*Premissas!$F$10)+(INDEX(Premissas!$F$28:$F$38,MATCH(G8,Vulnerabilties,0))*Premissas!$F$10)+(INDEX(Premissas!$F$28:$F$38,MATCH(H8,Vulnerabilties,0))*Premissas!$F$10))*Premissas!$F$9),0)","v":0},null,{"$f":"IFERROR(INDEX(Premissas!$F$15:$F$25,MATCH(D8,Exposures,0)*Premissas!$F$8+(I8/Premissas!$F$9)*Premissas!$F$8),0)","v":0},{"$f":"IFERROR((K8*Premissas!$F$9)-(INDEX(Premissas!$F$41:$F$51,MATCH(J8,Levels_of_response,0))*Premissas!$F$9),0)","v":0},{"$f":"IF(L8<=0,\"MB1\",IFERROR(INDEX('Matriz de Risco'!$G$28:$G$53,MATCH(SUMPRODUCT(('Matriz de Risco'!$B$28:$B$53<=L8)*('Matriz de Risco'!$C$28:$C$53>=L8)*('Matriz de Risco'!$D$28:$D$53<=K8)*('Matriz de Risco'!$E$28:$E$53>=K8)*('Matriz de Risco'!$F$28:$F$53)),'Matriz de Risco'!$F$28:$F$53,0)),0))","v":"MB1"}]
[null,null,null,null,null,null,null,null,{"$f":"IFERROR((((INDEX(Premissas!$F$28:$F$38,MATCH(E9,Vulnerabilties,0))*Premissas!$F$10)+(INDEX(Premissas!$F$28:$F$38,MATCH(F9,Vulnerabilties,0))*Premissas!$F$10)+(INDEX(Premissas!$F$28:$F$38,MATCH(G9,Vulnerabilties,0))*Premissas!$F$10)+(INDEX(Premissas!$F$28:$F$38,MATCH(H9,Vulnerabilties,0))*Premissas!$F$10))*Premissas!$F$9),0)","v":0},null,{"$f":"IFERROR(INDEX(Premissas!$F$15:$F$25,MATCH(D9,Exposures,0)*Premissas!$F$8+(I9/Premissas!$F$9)*Premissas!$F$8),0)","v":0},{"$f":"IFERROR((K9*Premissas!$F$9)-(INDEX(Premissas!$F$41:$F$51,MATCH(J9,Levels_of_response,0))*Premissas!$F$9),0)","v":0},{"$f":"IF(L9<=0,\"MB1\",IFERROR(INDEX('Matriz de Risco'!$G$28:$G$53,MATCH(SUMPRODUCT(('Matriz de Risco'!$B$28:$B$53<=L9)*('Matriz de Risco'!$C$28:$C$53>=L9)*('Matriz de Risco'!$D$28:$D$53<=K9)*('Matriz de Risco'!$E$28:$E$53>=K9)*('Matriz de Risco'!$F$28:$F$53)),'Matriz de Risco'!$F$28:$F$53,0)),0))","v":"MB1"}]
[null,null,null,null,null,null,null,null,{"$f":"IFERROR((((INDEX(Premissas!$F$28:$F$38,MATCH(E10,Vulnerabilties,0))*Premissas!$F$10)+(INDEX(Premissas!$F$28:$F$38,MATCH(F10,Vulnerabilties,0))*Premissas!$F$10)+(INDEX(Premissas!$F$28:$F$38,MATCH(G10,Vulnerabilties,0))*Premissas!$F$10)+(INDEX(Premissas!$F$28:$F$38,MATCH(H10,Vulnerabilties,0))*Premissas!$F$10))*Premissas!$F$9),0)","v":0},null,{"$f":"IFERROR(INDEX(Premissas!$F$15:$F$25,MATCH(D10,Exposures,0)*Premissas!$F$8+(I10/Premissas!$F$9)*Premissas!$F$8),0)","v":0},{"$f":"IFERROR((K10*Premissas!$F$9)-(INDEX(Premissas!$F$41:$F$51,MATCH(J10,Levels_of_response,0))*Premissas!$F$9),0)","v":0},{"$f":"IF(L10<=0,\"MB1\",IFERROR(INDEX('Matriz de Risco'!$G$28:$G$53,MATCH(SUMPRODUCT(('Matriz de Risco'!$B$28:$B$53<=L10)*('Matriz de Risco'!$C$28:$C$53>=L10)*('Matriz de Risco'!$D$28:$D$53<=K10)*('Matriz de Risco'!$E$28:$E$53>=K10)*('Matriz de Risco'!$F$28:$F$53)),'Matriz de Risco'!$F$28:$F$53,0)),0))","v":"MB1"}]
[null,null,null,null,null,null,null,null,{"$f":"IFERROR((((INDEX(Premissas!$F$28:$F$38,MATCH(E11,Vulnerabilties,0))*Premissas!$F$10)+(INDEX(Premissas!$F$28:$F$38,MATCH(F11,Vulnerabilties,0))*Premissas!$F$10)+(INDEX(Premissas!$F$28:$F$38,MATCH(G11,Vulnerabilties,0))*Premissas!$F$10)+(INDEX(Premissas!$F$28:$F$38,MATCH(H11,Vulnerabilties,0))*Premissas!$F$10))*Premissas!$F$9),0)","v":0},null,{"$f":"IFERROR(INDEX(Premissas!$F$15:$F$25,MATCH(D11,Exposures,0)*Premissas!$F$8+(I11/Premissas!$F$9)*Premissas!$F$8),0)","v":0},{"$f":"IFERROR((K11*Premissas!$F$9)-(INDEX(Premissas!$F$41:$F$51,MATCH(J11,Levels_of_response,0))*Premissas!$F$9),0)","v":0},{"$f":"IF(L11<=0,\"MB1\",IFERROR(INDEX('Matriz de Risco'!$G$28:$G$53,MATCH(SUMPRODUCT(('Matriz de Risco'!$B$28:$B$53<=L11)*('Matriz de Risco'!$C$28:$C$53>=L11)*('Matriz de Risco'!$D$28:$D$53<=K11)*('Matriz de Risco'!$E$28:$E$53>=K11)*('Matriz de Risco'!$F$28:$F$53)),'Matriz de Risco'!$F$28:$F$53,0)),0))","v":"MB1"}]
[null,null,null,null,null,null,null,null,{"$f":"IFERROR((((INDEX(Premissas!$F$28:$F$38,MATCH(E12,Vulnerabilties,0))*Premissas!$F$10)+(INDEX(Premissas!$F$28:$F$38,MATCH(F12,Vulnerabilties,0))*Premissas!$F$10)+(INDEX(Premissas!$F$28:$F$38,MATCH(G12,Vulnerabilties,0))*Premissas!$F$10)+(INDEX(Premissas!$F$28:$F$38,MATCH(H12,Vulnerabilties,0))*Premissas!$F$10))*Premissas!$F$9),0)","v":0},null,{"$f":"IFERROR(INDEX(Premissas!$F$15:$F$25,MATCH(D12,Exposures,0)*Premissas!$F$8+(I12/Premissas!$F$9)*Premissas!$F$8),0)","v":0},{"$f":"IFERROR((K12*Premissas!$F$9)-(INDEX(Premissas!$F$41:$F$51,MATCH(J12,Levels_of_response,0))*Premissas!$F$9),0)","v":0},{"$f":"IF(L12<=0,\"MB1\",IFERROR(INDEX('Matriz de Risco'!$G$28:$G$53,MATCH(SUMPRODUCT(('Matriz de Risco'!$B$28:$B$53<=L12)*('Matriz de Risco'!$C$28:$C$53>=L12)*('Matriz de Risco'!$D$28:$D$53<=K12)*('Matriz de Risco'!$E$28:$E$53>=K12)*('Matriz de Risco'!$F$28:$F$53)),'Matriz de Risco'!$F$28:$F$53,0)),0))","v":"MB1"}]
[null,"P2 - Hidrológico"]
[null,null,null,null,null,null,null,null,{"$f":"IFERROR((((INDEX(Premissas!$F$28:$F$38,MATCH(E14,Vulnerabilties,0))*Premissas!$F$10)+(INDEX(Premissas!$F$28:$F$38,MATCH(F14,Vulnerabilties,0))*Premissas!$F$10)+(INDEX(Premissas!$F$28:$F$38,MATCH(G14,Vulnerabilties,0))*Premissas!$F$10)+(INDEX(Premissas!$F$28:$F$38,MATCH(H14,Vulnerabilties,0))*Premissas!$F$10))*Premissas!$F$9),0)","v":0},null,{"$f":"IFERROR(INDEX(Premissas!$F$15:$F$25,MATCH(D14,Exposures,0)*Premissas!$F$8+(I14/Premissas!$F$9)*Premissas!$F$8),0)","v":0},{"$f":"IFERROR((K14*Premissas!$F$9)-(INDEX(Premissas!$F$41:$F$51,MATCH(J14,Levels_of_response,0))*Premissas!$F$9),0)","v":0},{"$f":"IF(L14<=0,\"MB1\",IFERROR(INDEX('Matriz de Risco'!$G$28:$G$53,MATCH(SUMPRODUCT(('Matriz de Risco'!$B$28:$B$53<=L14)*('Matriz de Risco'!$C$28:$C$53>=L14)*('Matriz de Risco'!$D$28:$D$53<=K14)*('Matriz de Risco'!$E$28:$E$53>=K14)*('Matriz de Risco'!$F$28:$F$53)),'Matriz de Risco'!$F$28:$F$53,0)),0))","v":"MB1"}]
[null,null,null,null,null,null,null,null,{"$f":"IFERROR((((INDEX(Premissas!$F$28:$F$38,MATCH(E15,Vulnerabilties,0))*Premissas!$F$10)+(INDEX(Premissas!$F$28:$F$38,MATCH(F15,Vulnerabilties,0))*Premissas!$F$10)+(INDEX(Premissas!$F$28:$F$38,MATCH(G15,Vulnerabilties,0))*Premissas!$F$10)+(INDEX(Premissas!$F$28:$F$38,MATCH(H15,Vulnerabilties,0))*Premissas!$F$10))*Premissas!$F$9),0)","v":0},null,{"$f":"IFERROR(INDEX(Premissas!$F$15:$F$25,MATCH(D15,Exposures,0)*Premissas!$F$8+(I15/Premissas!$F$9)*Premissas!$F$8),0)","v":0},{"$f":"IFERROR((K15*Premissas!$F$9)-(INDEX(Premissas!$F$41:$F$51,MATCH(J15,Levels_of_response,0))*Premissas!$F$9),0)","v":0},{"$f":"IF(L15<=0,\"MB1\",IFERROR(INDEX('Matriz de Risco'!$G$28:$G$53,MATCH(SUMPRODUCT(('Matriz de Risco'!$B$28:$B$53<=L15)*('Matriz de Risco'!$C$28:$C$53>=L15)*('Matriz de Risco'!$D$28:$D$53<=K15)*('Matriz de Risco'!$E$28:$E$53>=K15)*('Matriz de Risco'!$F$28:$F$53)),'Matriz de Risco'!$F$28:$F$53,0)),0))","v":"MB1"}]
[null,null,null,null,null,null,null,null,{"$f":"IFERROR((((INDEX(Premissas!$F$28:$F$38,MATCH(E16,Vulnerabilties,0))*Premissas!$F$10)+(INDEX(Premissas!$F$28:$F$38,MATCH(F16,Vulnerabilties,0))*Premissas!$F$10)+(INDEX(Premissas!$F$28:$F$38,MATCH(G16,Vulnerabilties,0))*Premissas!$F$10)+(INDEX(Premissas!$F$28:$F$38,MATCH(H16,Vulnerabilties,0))*Premissas!$F$10))*Premissas!$F$9),0)","v":0},null,{"$f":"IFERROR(INDEX(Premissas!$F$15:$F$25,MATCH(D16,Exposures,0)*Premissas!$F$8+(I16/Premissas!$F$9)*Premissas!$F$8),0)","v":0},{"$f":"IFERROR((K16*Premissas!$F$9)-(INDEX(Premissas!$F$41:$F$51,MATCH(J16,Levels_of_response,0))*Premissas!$F$9),0)","v":0},{"$f":"IF(L16<=0,\"MB1\",IFERROR(INDEX('Matriz de Risco'!$G$28:$G$53,MATCH(SUMPRODUCT(('Matriz de Risco'!$B$28:$B$53<=L16)*('Matriz de Risco'!$C$28:$C$53>=L16)*('Matriz de Risco'!$D$28:$D$53<=K16)*('Matriz de Risco'!$E$28:$E$53>=K16)*('Matriz de Risco'!$F$28:$F$53)),'Matriz de Risco'!$F$28:$F$53,0)),0))","v":"MB1"}]
[null,null,null,null,null,null,null,null,{"$f":"IFERROR((((INDEX(Premissas!$F$28:$F$38,MATCH(E17,Vulnerabilties,0))*Premissas!$F$10)+(INDEX(Premissas!$F$28:$F$38,MATCH(F17,Vulnerabilties,0))*Premissas!$F$10)+(INDEX(Premissas!$F$28:$F$38,MATCH(G17,Vulnerabilties,0))*Premissas!$F$10)+(INDEX(Premissas!$F$28:$F$38,MATCH(H17,Vulnerabilties,0))*Premissas!$F$10))*Premissas!$F$9),0)","v":0},null,{"$f":"IFERROR(INDEX(Premissas!$F$15:$F$25,MATCH(D17,Exposures,0)*Premissas!$F$8+(I17/Premissas!$F$9)*Premissas!$F$8),0)","v":0},{"$f":"IFERROR((K17*Premissas!$F$9)-(INDEX(Premissas!$F$41:$F$51,MATCH(J17,Levels_of_response,0))*Premissas!$F$9),0)","v":0},{"$f":"IF(L17<=0,\"MB1\",IFERROR(INDEX('Matriz de Risco'!$G$28:$G$53,MATCH(SUMPRODUCT(('Matriz de Risco'!$B$28:$B$53<=L17)*('Matriz de Risco'!$C$28:$C$53>=L17)*('Matriz de Risco'!$D$28:$D$53<=K17)*('Matriz de Risco'!$E$28:$E$53>=K17)*('Matriz de Risco'!$F$28:$F$53)),'Matriz de Risco'!$F$28:$F$53,0)),0))","v":"MB1"}]
[null,null,null,null,null,null,null,null,{"$f":"IFERROR((((INDEX(Premissas!$F$28:$F$38,MATCH(E18,Vulnerabilties,0))*Premissas!$F$10)+(INDEX(Premissas!$F$28:$F$38,MATCH(F18,Vulnerabilties,0))*Premissas!$F$10)+(INDEX(Premissas!$F$28:$F$38,MATCH(G18,Vulnerabilties,0))*Premissas!$F$10)+(INDEX(Premissas!$F$28:$F$38,MATCH(H18,Vulnerabilties,0))*Premissas!$F$10))*Premissas!$F$9),0)","v":0},null,{"$f":"IFERROR(INDEX(Premissas!$F$15:$F$25,MATCH(D18,Exposures,0)*Premissas!$F$8+(I18/Premissas!$F$9)*Premissas!$F$8),0)","v":0},{"$f":"IFERROR((K18*Premissas!$F$9)-(INDEX(Premissas!$F$41:$F$51,MATCH(J18,Levels_of_response,0))*Premissas!$F$9),0)","v":0},{"$f":"IF(L18<=0,\"MB1\",IFERROR(INDEX('Matriz de Risco'!$G$28:$G$53,MATCH(SUMPRODUCT(('Matriz de Risco'!$B$28:$B$53<=L18)*('Matriz de Risco'!$C$28:$C$53>=L18)*('Matriz de Risco'!$D$28:$D$53<=K18)*('Matriz de Risco'!$E$28:$E$53>=K18)*('Matriz de Risco'!$F$28:$F$53)),'Matriz de Risco'!$F$28:$F$53,0)),0))","v":"MB1"}]
[null,"P3 - Meteorológico"]
[null,null,null,null,null,null,null,null,{"$f":"IFERROR((((INDEX(Premissas!$F$28:$F$38,MATCH(E20,Vulnerabilties,0))*Premissas!$F$10)+(INDEX(Premissas!$F$28:$F$38,MATCH(F20,Vulnerabilties,0))*Premissas!$F$10)+(INDEX(Premissas!$F$28:$F$38,MATCH(G20,Vulnerabilties,0))*Premissas!$F$10)+(INDEX(Premissas!$F$28:$F$38,MATCH(H20,Vulnerabilties,0))*Premissas!$F$10))*Premissas!$F$9),0)","v":0},null,{"$f":"IFERROR(INDEX(Premissas!$F$15:$F$25,MATCH(D20,Exposures,0)*Premissas!$F$8+(I20/Premissas!$F$9)*Premissas!$F$8),0)","v":0},{"$f":"IFERROR((K20*Premissas!$F$9)-(INDEX(Premissas!$F$41:$F$51,MATCH(J20,Levels_of_response,0))*Premissas!$F$9),0)","v":0},{"$f":"IF(L20<=0,\"MB1\",IFERROR(INDEX('Matriz de Risco'!$G$28:$G$53,MATCH(SUMPRODUCT(('Matriz de Risco'!$B$28:$B$53<=L20)*('Matriz de Risco'!$C$28:$C$53>=L20)*('Matriz de Risco'!$D$28:$D$53<=K20)*('Matriz de Risco'!$E$28:$E$53>=K20)*('Matriz de Risco'!$F$28:$F$53)),'Matriz de Risco'!$F$28:$F$53,0)),0))","v":"MB1"}]
[null,null,null,null,null,null,null,null,{"$f":"IFERROR((((INDEX(Premissas!$F$28:$F$38,MATCH(E21,Vulnerabilties,0))*Premissas!$F$10)+(INDEX(Premissas!$F$28:$F$38,MATCH(F21,Vulnerabilties,0))*Premissas!$F$10)+(INDEX(Premissas!$F$28:$F$38,MATCH(G21,Vulnerabilties,0))*Premissas!$F$10)+(INDEX(Premissas!$F$28:$F$38,MATCH(H21,Vulnerabilties,0))*Premissas!$F$10))*Premissas!$F$9),0)","v":0},null,{"$f":"IFERROR(INDEX(Premissas!$F$15:$F$25,MATCH(D21,Exposures,0)*Premissas!$F$8+(I21/Premissas!$F$9)*Premissas!$F$8),0)","v":0},{"$f":"IFERROR((K21*Premissas!$F$9)-(INDEX(Premissas!$F$41:$F$51,MATCH(J21,Levels_of_response,0))*Premissas!$F$9),0)","v":0},{"$f":"IF(L21<=0,\"MB1\",IFERROR(INDEX('Matriz de Risco'!$G$28:$G$53,MATCH(SUMPRODUCT(('Matriz de Risco'!$B$28:$B$53<=L21)*('Matriz de Risco'!$C$28:$C$53>=L21)*('Matriz de Risco'!$D$28:$D$53<=K21)*('Matriz de Risco'!$E$28:$E$53>=K21)*('Matriz de Risco'!$F$28:$F$53)),'Matriz de Risco'!$F$28:$F$53,0)),0))","v":"MB1"}]
[null,null,null,null,null,null,null,null,{"$f":"IFERROR((((INDEX(Premissas!$F$28:$F$38,MATCH(E22,Vulnerabilties,0))*Premissas!$F$10)+(INDEX(Premissas!$F$28:$F$38,MATCH(F22,Vulnerabilties,0))*Premissas!$F$10)+(INDEX(Premissas!$F$28:$F$38,MATCH(G22,Vulnerabilties,0))*Premissas!$F$10)+(INDEX(Premissas!$F$28:$F$38,MATCH(H22,Vulnerabilties,0))*Premissas!$F$10))*Premissas!$F$9),0)","v":0},null,{"$f":"IFERROR(INDEX(Premissas!$F$15:$F$25,MATCH(D22,Exposures,0)*Premissas!$F$8+(I22/Premissas!$F$9)*Premissas!$F$8),0)","v":0},{"$f":"IFERROR((K22*Premissas!$F$9)-(INDEX(Premissas!$F$41:$F$51,MATCH(J22,Levels_of_response,0))*Premissas!$F$9),0)","v":0},{"$f":"IF(L22<=0,\"MB1\",IFERROR(INDEX('Matriz de Risco'!$G$28:$G$53,MATCH(SUMPRODUCT(('Matriz de Risco'!$B$28:$B$53<=L22)*('Matriz de Risco'!$C$28:$C$53>=L22)*('Matriz de Risco'!$D$28:$D$53<=K22)*('Matriz de Risco'!$E$28:$E$53>=K22)*('Matriz de Risco'!$F$28:$F$53)),'Matriz de Risco'!$F$28:$F$53,0)),0))","v":"MB1"}]
[null,null,null,null,null,null,null,null,{"$f":"IFERROR((((INDEX(Premissas!$F$28:$F$38,MATCH(E23,Vulnerabilties,0))*Premissas!$F$10)+(INDEX(Premissas!$F$28:$F$38,MATCH(F23,Vulnerabilties,0))*Premissas!$F$10)+(INDEX(Premissas!$F$28:$F$38,MATCH(G23,Vulnerabilties,0))*Premissas!$F$10)+(INDEX(Premissas!$F$28:$F$38,MATCH(H23,Vulnerabilties,0))*Premissas!$F$10))*Premissas!$F$9),0)","v":0},null,{"$f":"IFERROR(INDEX(Premissas!$F$15:$F$25,MATCH(D23,Exposures,0)*Premissas!$F$8+(I23/Premissas!$F$9)*Premissas!$F$8),0)","v":0},{"$f":"IFERROR((K23*Premissas!$F$9)-(INDEX(Premissas!$F$41:$F$51,MATCH(J23,Levels_of_response,0))*Premissas!$F$9),0)","v":0},{"$f":"IF(L23<=0,\"MB1\",IFERROR(INDEX('Matriz de Risco'!$G$28:$G$53,MATCH(SUMPRODUCT(('Matriz de Risco'!$B$28:$B$53<=L23)*('Matriz de Risco'!$C$28:$C$53>=L23)*('Matriz de Risco'!$D$28:$D$53<=K23)*('Matriz de Risco'!$E$28:$E$53>=K23)*('Matriz de Risco'!$F$28:$F$53)),'Matriz de Risco'!$F$28:$F$53,0)),0))","v":"MB1"}]
[null,null,null,null,null,null,null,null,{"$f":"IFERROR((((INDEX(Premissas!$F$28:$F$38,MATCH(E24,Vulnerabilties,0))*Premissas!$F$10)+(INDEX(Premissas!$F$28:$F$38,MATCH(F24,Vulnerabilties,0))*Premissas!$F$10)+(INDEX(Premissas!$F$28:$F$38,MATCH(G24,Vulnerabilties,0))*Premissas!$F$10)+(INDEX(Premissas!$F$28:$F$38,MATCH(H24,Vulnerabilties,0))*Premissas!$F$10))*Premissas!$F$9),0)","v":0},null,{"$f":"IFERROR(INDEX(Premissas!$F$15:$F$25,MATCH(D24,Exposures,0)*Premissas!$F$8+(I24/Premissas!$F$9)*Premissas!$F$8),0)","v":0},{"$f":"IFERROR((K24*Premissas!$F$9)-(INDEX(Premissas!$F$41:$F$51,MATCH(J24,Levels_of_response,0))*Premissas!$F$9),0)","v":0},{"$f":"IF(L24<=0,\"MB1\",IFERROR(INDEX('Matriz de Risco'!$G$28:$G$53,MATCH(SUMPRODUCT(('Matriz de Risco'!$B$28:$B$53<=L24)*('Matriz de Risco'!$C$28:$C$53>=L24)*('Matriz de Risco'!$D$28:$D$53<=K24)*('Matriz de Risco'!$E$28:$E$53>=K24)*('Matriz de Risco'!$F$28:$F$53)),'Matriz de Risco'!$F$28:$F$53,0)),0))","v":"MB1"}]
[null,"P4 - Climatológico"]
[null,null,null,null,null,null,null,null,{"$f":"IFERROR((((INDEX(Premissas!$F$28:$F$38,MATCH(E26,Vulnerabilties,0))*Premissas!$F$10)+(INDEX(Premissas!$F$28:$F$38,MATCH(F26,Vulnerabilties,0))*Premissas!$F$10)+(INDEX(Premissas!$F$28:$F$38,MATCH(G26,Vulnerabilties,0))*Premissas!$F$10)+(INDEX(Premissas!$F$28:$F$38,MATCH(H26,Vulnerabilties,0))*Premissas!$F$10))*Premissas!$F$9),0)","v":0},null,{"$f":"IFERROR(INDEX(Premissas!$F$15:$F$25,MATCH(D26,Exposures,0)*Premissas!$F$8+(I26/Premissas!$F$9)*Premissas!$F$8),0)","v":0},{"$f":"IFERROR((K26*Premissas!$F$9)-(INDEX(Premissas!$F$41:$F$51,MATCH(J26,Levels_of_response,0))*Premissas!$F$9),0)","v":0},{"$f":"IF(L26<=0,\"MB1\",IFERROR(INDEX('Matriz de Risco'!$G$28:$G$53,MATCH(SUMPRODUCT(('Matriz de Risco'!$B$28:$B$53<=L26)*('Matriz de Risco'!$C$28:$C$53>=L26)*('Matriz de Risco'!$D$28:$D$53<=K26)*('Matriz de Risco'!$E$28:$E$53>=K26)*('Matriz de Risco'!$F$28:$F$53)),'Matriz de Risco'!$F$28:$F$53,0)),0))","v":"MB1"}]
[null,null,null,null,null,null,null,null,{"$f":"IFERROR((((INDEX(Premissas!$F$28:$F$38,MATCH(E27,Vulnerabilties,0))*Premissas!$F$10)+(INDEX(Premissas!$F$28:$F$38,MATCH(F27,Vulnerabilties,0))*Premissas!$F$10)+(INDEX(Premissas!$F$28:$F$38,MATCH(G27,Vulnerabilties,0))*Premissas!$F$10)+(INDEX(Premissas!$F$28:$F$38,MATCH(H27,Vulnerabilties,0))*Premissas!$F$10))*Premissas!$F$9),0)","v":0},null,{"$f":"IFERROR(INDEX(Premissas!$F$15:$F$25,MATCH(D27,Exposures,0)*Premissas!$F$8+(I27/Premissas!$F$9)*Premissas!$F$8),0)","v":0},{"$f":"IFERROR((K27*Premissas!$F$9)-(INDEX(Premissas!$F$41:$F$51,MATCH(J27,Levels_of_response,0))*Premissas!$F$9),0)","v":0},{"$f":"IF(L27<=0,\"MB1\",IFERROR(INDEX('Matriz de Risco'!$G$28:$G$53,MATCH(SUMPRODUCT(('Matriz de Risco'!$B$28:$B$53<=L27)*('Matriz de Risco'!$C$28:$C$53>=L27)*('Matriz de Risco'!$D$28:$D$53<=K27)*('Matriz de Risco'!$E$28:$E$53>=K27)*('Matriz de Risco'!$F$28:$F$53)),'Matriz de Risco'!$F$28:$F$53,0)),0))","v":"MB1"}]
[null,null,null,null,null,null,null,null,{"$f":"IFERROR((((INDEX(Premissas!$F$28:$F$38,MATCH(E28,Vulnerabilties,0))*Premissas!$F$10)+(INDEX(Premissas!$F$28:$F$38,MATCH(F28,Vulnerabilties,0))*Premissas!$F$10)+(INDEX(Premissas!$F$28:$F$38,MATCH(G28,Vulnerabilties,0))*Premissas!$F$10)+(INDEX(Premissas!$F$28:$F$38,MATCH(H28,Vulnerabilties,0))*Premissas!$F$10))*Premissas!$F$9),0)","v":0},null,{"$f":"IFERROR(INDEX(Premissas!$F$15:$F$25,MATCH(D28,Exposures,0)*Premissas!$F$8+(I28/Premissas!$F$9)*Premissas!$F$8),0)","v":0},{"$f":"IFERROR((K28*Premissas!$F$9)-(INDEX(Premissas!$F$41:$F$51,MATCH(J28,Levels_of_response,0))*Premissas!$F$9),0)","v":0},{"$f":"IF(L28<=0,\"MB1\",IFERROR(INDEX('Matriz de Risco'!$G$28:$G$53,MATCH(SUMPRODUCT(('Matriz de Risco'!$B$28:$B$53<=L28)*('Matriz de Risco'!$C$28:$C$53>=L28)*('Matriz de Risco'!$D$28:$D$53<=K28)*('Matriz de Risco'!$E$28:$E$53>=K28)*('Matriz de Risco'!$F$28:$F$53)),'Matriz de Risco'!$F$28:$F$53,0)),0))","v":"MB1"}]
[null,null,null,null,null,null,null,null,{"$f":"IFERROR((((INDEX(Premissas!$F$28:$F$38,MATCH(E29,Vulnerabilties,0))*Premissas!$F$10)+(INDEX(Premissas!$F$28:$F$38,MATCH(F29,Vulnerabilties,0))*Premissas!$F$10)+(INDEX(Premissas!$F$28:$F$38,MATCH(G29,Vulnerabilties,0))*Premissas!$F$10)+(INDEX(Premissas!$F$28:$F$38,MATCH(H29,Vulnerabilties,0))*Premissas!$F$10))*Premissas!$F$9),0)","v":0},null,{"$f":"IFERROR(INDEX(Premissas!$F$15:$F$25,MATCH(D29,Exposures,0)*Premissas!$F$8+(I29/Premissas!$F$9)*Premissas!$F$8),0)","v":0},{"$f":"IFERROR((K29*Premissas!$F$9)-(INDEX(Premissas!$F$41:$F$51,MATCH(J29,Levels_of_response,0))*Premissas!$F$9),0)","v":0},{"$f":"IF(L29<=0,\"MB1\",IFERROR(INDEX('Matriz de Risco'!$G$28:$G$53,MATCH(SUMPRODUCT(('Matriz de Risco'!$B$28:$B$53<=L29)*('Matriz de Risco'!$C$28:$C$53>=L29)*('Matriz de Risco'!$D$28:$D$53<=K29)*('Matriz de Risco'!$E$28:$E$53>=K29)*('Matriz de Risco'!$F$28:$F$53)),'Matriz de Risco'!$F$28:$F$53,0)),0))","v":"MB1"}]
[null,null,null,null,null,null,null,null,{"$f":"IFERROR((((INDEX(Premissas!$F$28:$F$38,MATCH(E30,Vulnerabilties,0))*Premissas!$F$10)+(INDEX(Premissas!$F$28:$F$38,MATCH(F30,Vulnerabilties,0))*Premissas!$F$10)+(INDEX(Premissas!$F$28:$F$38,MATCH(G30,Vulnerabilties,0))*Premissas!$F$10)+(INDEX(Premissas!$F$28:$F$38,MATCH(H30,Vulnerabilties,0))*Premissas!$F$10))*Premissas!$F$9),0)","v":0},null,{"$f":"IFERROR(INDEX(Premissas!$F$15:$F$25,MATCH(D30,Exposures,0)*Premissas!$F$8+(I30/Premissas!$F$9)*Premissas!$F$8),0)","v":0},{"$f":"IFERROR((K30*Premissas!$F$9)-(INDEX(Premissas!$F$41:$F$51,MATCH(J30,Levels_of_response,0))*Premissas!$F$9),0)","v":0},{"$f":"IF(L30<=0,\"MB1\",IFERROR(INDEX('Matriz de Risco'!$G$28:$G$53,MATCH(SUMPRODUCT(('Matriz de Risco'!$B$28:$B$53<=L30)*('Matriz de Risco'!$C$28:$C$53>=L30)*('Matriz de Risco'!$D$28:$D$53<=K30)*('Matriz de Risco'!$E$28:$E$53>=K30)*('Matriz de Risco'!$F$28:$F$53)),'Matriz de Risco'!$F$28:$F$53,0)),0))","v":"MB1"}]
[null,"P5 -Biológico"]
[null,null,null,null,null,null,null,null,{"$f":"IFERROR((((INDEX(Premissas!$F$28:$F$38,MATCH(E32,Vulnerabilties,0))*Premissas!$F$10)+(INDEX(Premissas!$F$28:$F$38,MATCH(F32,Vulnerabilties,0))*Premissas!$F$10)+(INDEX(Premissas!$F$28:$F$38,MATCH(G32,Vulnerabilties,0))*Premissas!$F$10)+(INDEX(Premissas!$F$28:$F$38,MATCH(H32,Vulnerabilties,0))*Premissas!$F$10))*Premissas!$F$9),0)","v":0},null,{"$f":"IFERROR(INDEX(Premissas!$F$15:$F$25,MATCH(D32,Exposures,0)*Premissas!$F$8+(I32/Premissas!$F$9)*Premissas!$F$8),0)","v":0},{"$f":"IFERROR((K32*Premissas!$F$9)-(INDEX(Premissas!$F$41:$F$51,MATCH(J32,Levels_of_response,0))*Premissas!$F$9),0)","v":0},{"$f":"IF(L32<=0,\"MB1\",IFERROR(INDEX('Matriz de Risco'!$G$28:$G$53,MATCH(SUMPRODUCT(('Matriz de Risco'!$B$28:$B$53<=L32)*('Matriz de Risco'!$C$28:$C$53>=L32)*('Matriz de Risco'!$D$28:$D$53<=K32)*('Matriz de Risco'!$E$28:$E$53>=K32)*('Matriz de Risco'!$F$28:$F$53)),'Matriz de Risco'!$F$28:$F$53,0)),0))","v":"MB1"}]
[null,null,null,null,null,null,null,null,{"$f":"IFERROR((((INDEX(Premissas!$F$28:$F$38,MATCH(E33,Vulnerabilties,0))*Premissas!$F$10)+(INDEX(Premissas!$F$28:$F$38,MATCH(F33,Vulnerabilties,0))*Premissas!$F$10)+(INDEX(Premissas!$F$28:$F$38,MATCH(G33,Vulnerabilties,0))*Premissas!$F$10)+(INDEX(Premissas!$F$28:$F$38,MATCH(H33,Vulnerabilties,0))*Premissas!$F$10))*Premissas!$F$9),0)","v":0},null,{"$f":"IFERROR(INDEX(Premissas!$F$15:$F$25,MATCH(D33,Exposures,0)*Premissas!$F$8+(I33/Premissas!$F$9)*Premissas!$F$8),0)","v":0},{"$f":"IFERROR((K33*Premissas!$F$9)-(INDEX(Premissas!$F$41:$F$51,MATCH(J33,Levels_of_response,0))*Premissas!$F$9),0)","v":0},{"$f":"IF(L33<=0,\"MB1\",IFERROR(INDEX('Matriz de Risco'!$G$28:$G$53,MATCH(SUMPRODUCT(('Matriz de Risco'!$B$28:$B$53<=L33)*('Matriz de Risco'!$C$28:$C$53>=L33)*('Matriz de Risco'!$D$28:$D$53<=K33)*('Matriz de Risco'!$E$28:$E$53>=K33)*('Matriz de Risco'!$F$28:$F$53)),'Matriz de Risco'!$F$28:$F$53,0)),0))","v":"MB1"}]
[null,null,null,null,null,null,null,null,{"$f":"IFERROR((((INDEX(Premissas!$F$28:$F$38,MATCH(E34,Vulnerabilties,0))*Premissas!$F$10)+(INDEX(Premissas!$F$28:$F$38,MATCH(F34,Vulnerabilties,0))*Premissas!$F$10)+(INDEX(Premissas!$F$28:$F$38,MATCH(G34,Vulnerabilties,0))*Premissas!$F$10)+(INDEX(Premissas!$F$28:$F$38,MATCH(H34,Vulnerabilties,0))*Premissas!$F$10))*Premissas!$F$9),0)","v":0},null,{"$f":"IFERROR(INDEX(Premissas!$F$15:$F$25,MATCH(D34,Exposures,0)*Premissas!$F$8+(I34/Premissas!$F$9)*Premissas!$F$8),0)","v":0},{"$f":"IFERROR((K34*Premissas!$F$9)-(INDEX(Premissas!$F$41:$F$51,MATCH(J34,Levels_of_response,0))*Premissas!$F$9),0)","v":0},{"$f":"IF(L34<=0,\"MB1\",IFERROR(INDEX('Matriz de Risco'!$G$28:$G$53,MATCH(SUMPRODUCT(('Matriz de Risco'!$B$28:$B$53<=L34)*('Matriz de Risco'!$C$28:$C$53>=L34)*('Matriz de Risco'!$D$28:$D$53<=K34)*('Matriz de Risco'!$E$28:$E$53>=K34)*('Matriz de Risco'!$F$28:$F$53)),'Matriz de Risco'!$F$28:$F$53,0)),0))","v":"MB1"}]
[null,null,null,null,null,null,null,null,{"$f":"IFERROR((((INDEX(Premissas!$F$28:$F$38,MATCH(E35,Vulnerabilties,0))*Premissas!$F$10)+(INDEX(Premissas!$F$28:$F$38,MATCH(F35,Vulnerabilties,0))*Premissas!$F$10)+(INDEX(Premissas!$F$28:$F$38,MATCH(G35,Vulnerabilties,0))*Premissas!$F$10)+(INDEX(Premissas!$F$28:$F$38,MATCH(H35,Vulnerabilties,0))*Premissas!$F$10))*Premissas!$F$9),0)","v":0},null,{"$f":"IFERROR(INDEX(Premissas!$F$15:$F$25,MATCH(D35,Exposures,0)*Premissas!$F$8+(I35/Premissas!$F$9)*Premissas!$F$8),0)","v":0},{"$f":"IFERROR((K35*Premissas!$F$9)-(INDEX(Premissas!$F$41:$F$51,MATCH(J35,Levels_of_response,0))*Premissas!$F$9),0)","v":0},{"$f":"IF(L35<=0,\"MB1\",IFERROR(INDEX('Matriz de Risco'!$G$28:$G$53,MATCH(SUMPRODUCT(('Matriz de Risco'!$B$28:$B$53<=L35)*('Matriz de Risco'!$C$28:$C$53>=L35)*('Matriz de Risco'!$D$28:$D$53<=K35)*('Matriz de Risco'!$E$28:$E$53>=K35)*('Matriz de Risco'!$F$28:$F$53)),'Matriz de Risco'!$F$28:$F$53,0)),0))","v":"MB1"}]
[null,null,null,null,null,null,null,null,{"$f":"IFERROR((((INDEX(Premissas!$F$28:$F$38,MATCH(E36,Vulnerabilties,0))*Premissas!$F$10)+(INDEX(Premissas!$F$28:$F$38,MATCH(F36,Vulnerabilties,0))*Premissas!$F$10)+(INDEX(Premissas!$F$28:$F$38,MATCH(G36,Vulnerabilties,0))*Premissas!$F$10)+(INDEX(Premissas!$F$28:$F$38,MATCH(H36,Vulnerabilties,0))*Premissas!$F$10))*Premissas!$F$9),0)","v":0},null,{"$f":"IFERROR(INDEX(Premissas!$F$15:$F$25,MATCH(D36,Exposures,0)*Premissas!$F$8+(I36/Premissas!$F$9)*Premissas!$F$8),0)","v":0},{"$f":"IFERROR((K36*Premissas!$F$9)-(INDEX(Premissas!$F$41:$F$51,MATCH(J36,Levels_of_response,0))*Premissas!$F$9),0)","v":0},{"$f":"IF(L36<=0,\"MB1\",IFERROR(INDEX('Matriz de Risco'!$G$28:$G$53,MATCH(SUMPRODUCT(('Matriz de Risco'!$B$28:$B$53<=L36)*('Matriz de Risco'!$C$28:$C$53>=L36)*('Matriz de Risco'!$D$28:$D$53<=K36)*('Matriz de Risco'!$E$28:$E$53>=K36)*('Matriz de Risco'!$F$28:$F$53)),'Matriz de Risco'!$F$28:$F$53,0)),0))","v":"MB1"}]
[null,"P6 - Origem Sideral"]
[null,null,null,null,null,null,null,null,{"$f":"IFERROR((((INDEX(Premissas!$F$28:$F$38,MATCH(E38,Vulnerabilties,0))*Premissas!$F$10)+(INDEX(Premissas!$F$28:$F$38,MATCH(F38,Vulnerabilties,0))*Premissas!$F$10)+(INDEX(Premissas!$F$28:$F$38,MATCH(G38,Vulnerabilties,0))*Premissas!$F$10)+(INDEX(Premissas!$F$28:$F$38,MATCH(H38,Vulnerabilties,0))*Premissas!$F$10))*Premissas!$F$9),0)","v":0},null,{"$f":"IFERROR(INDEX(Premissas!$F$15:$F$25,MATCH(D38,Exposures,0)*Premissas!$F$8+(I38/Premissas!$F$9)*Premissas!$F$8),0)","v":0},{"$f":"IFERROR((K38*Premissas!$F$9)-(INDEX(Premissas!$F$41:$F$51,MATCH(J38,Levels_of_response,0))*Premissas!$F$9),0)","v":0},{"$f":"IF(L38<=0,\"MB1\",IFERROR(INDEX('Matriz de Risco'!$G$28:$G$53,MATCH(SUMPRODUCT(('Matriz de Risco'!$B$28:$B$53<=L38)*('Matriz de Risco'!$C$28:$C$53>=L38)*('Matriz de Risco'!$D$28:$D$53<=K38)*('Matriz de Risco'!$E$28:$E$53>=K38)*('Matriz de Risco'!$F$28:$F$53)),'Matriz de Risco'!$F$28:$F$53,0)),0))","v":"MB1"}]
[null,null,null,null,null,null,null,null,{"$f":"IFERROR((((INDEX(Premissas!$F$28:$F$38,MATCH(E39,Vulnerabilties,0))*Premissas!$F$10)+(INDEX(Premissas!$F$28:$F$38,MATCH(F39,Vulnerabilties,0))*Premissas!$F$10)+(INDEX(Premissas!$F$28:$F$38,MATCH(G39,Vulnerabilties,0))*Premissas!$F$10)+(INDEX(Premissas!$F$28:$F$38,MATCH(H39,Vulnerabilties,0))*Premissas!$F$10))*Premissas!$F$9),0)","v":0},null,{"$f":"IFERROR(INDEX(Premissas!$F$15:$F$25,MATCH(D39,Exposures,0)*Premissas!$F$8+(I39/Premissas!$F$9)*Premissas!$F$8),0)","v":0},{"$f":"IFERROR((K39*Premissas!$F$9)-(INDEX(Premissas!$F$41:$F$51,MATCH(J39,Levels_of_response,0))*Premissas!$F$9),0)","v":0},{"$f":"IF(L39<=0,\"MB1\",IFERROR(INDEX('Matriz de Risco'!$G$28:$G$53,MATCH(SUMPRODUCT(('Matriz de Risco'!$B$28:$B$53<=L39)*('Matriz de Risco'!$C$28:$C$53>=L39)*('Matriz de Risco'!$D$28:$D$53<=K39)*('Matriz de Risco'!$E$28:$E$53>=K39)*('Matriz de Risco'!$F$28:$F$53)),'Matriz de Risco'!$F$28:$F$53,0)),0))","v":"MB1"}]
[null,null,null,null,null,null,null,null,{"$f":"IFERROR((((INDEX(Premissas!$F$28:$F$38,MATCH(E40,Vulnerabilties,0))*Premissas!$F$10)+(INDEX(Premissas!$F$28:$F$38,MATCH(F40,Vulnerabilties,0))*Premissas!$F$10)+(INDEX(Premissas!$F$28:$F$38,MATCH(G40,Vulnerabilties,0))*Premissas!$F$10)+(INDEX(Premissas!$F$28:$F$38,MATCH(H40,Vulnerabilties,0))*Premissas!$F$10))*Premissas!$F$9),0)","v":0},null,{"$f":"IFERROR(INDEX(Premissas!$F$15:$F$25,MATCH(D40,Exposures,0)*Premissas!$F$8+(I40/Premissas!$F$9)*Premissas!$F$8),0)","v":0},{"$f":"IFERROR((K40*Premissas!$F$9)-(INDEX(Premissas!$F$41:$F$51,MATCH(J40,Levels_of_response,0))*Premissas!$F$9),0)","v":0},{"$f":"IF(L40<=0,\"MB1\",IFERROR(INDEX('Matriz de Risco'!$G$28:$G$53,MATCH(SUMPRODUCT(('Matriz de Risco'!$B$28:$B$53<=L40)*('Matriz de Risco'!$C$28:$C$53>=L40)*('Matriz de Risco'!$D$28:$D$53<=K40)*('Matriz de Risco'!$E$28:$E$53>=K40)*('Matriz de Risco'!$F$28:$F$53)),'Matriz de Risco'!$F$28:$F$53,0)),0))","v":"MB1"}]
[null,null,null,null,null,null,null,null,{"$f":"IFERROR((((INDEX(Premissas!$F$28:$F$38,MATCH(E41,Vulnerabilties,0))*Premissas!$F$10)+(INDEX(Premissas!$F$28:$F$38,MATCH(F41,Vulnerabilties,0))*Premissas!$F$10)+(INDEX(Premissas!$F$28:$F$38,MATCH(G41,Vulnerabilties,0))*Premissas!$F$10)+(INDEX(Premissas!$F$28:$F$38,MATCH(H41,Vulnerabilties,0))*Premissas!$F$10))*Premissas!$F$9),0)","v":0},null,{"$f":"IFERROR(INDEX(Premissas!$F$15:$F$25,MATCH(D41,Exposures,0)*Premissas!$F$8+(I41/Premissas!$F$9)*Premissas!$F$8),0)","v":0},{"$f":"IFERROR((K41*Premissas!$F$9)-(INDEX(Premissas!$F$41:$F$51,MATCH(J41,Levels_of_response,0))*Premissas!$F$9),0)","v":0},{"$f":"IF(L41<=0,\"MB1\",IFERROR(INDEX('Matriz de Risco'!$G$28:$G$53,MATCH(SUMPRODUCT(('Matriz de Risco'!$B$28:$B$53<=L41)*('Matriz de Risco'!$C$28:$C$53>=L41)*('Matriz de Risco'!$D$28:$D$53<=K41)*('Matriz de Risco'!$E$28:$E$53>=K41)*('Matriz de Risco'!$F$28:$F$53)),'Matriz de Risco'!$F$28:$F$53,0)),0))","v":"MB1"}]
[null,null,null,null,null,null,null,null,{"$f":"IFERROR((((INDEX(Premissas!$F$28:$F$38,MATCH(E42,Vulnerabilties,0))*Premissas!$F$10)+(INDEX(Premissas!$F$28:$F$38,MATCH(F42,Vulnerabilties,0))*Premissas!$F$10)+(INDEX(Premissas!$F$28:$F$38,MATCH(G42,Vulnerabilties,0))*Premissas!$F$10)+(INDEX(Premissas!$F$28:$F$38,MATCH(H42,Vulnerabilties,0))*Premissas!$F$10))*Premissas!$F$9),0)","v":0},null,{"$f":"IFERROR(INDEX(Premissas!$F$15:$F$25,MATCH(D42,Exposures,0)*Premissas!$F$8+(I42/Premissas!$F$9)*Premissas!$F$8),0)","v":0},{"$f":"IFERROR((K42*Premissas!$F$9)-(INDEX(Premissas!$F$41:$F$51,MATCH(J42,Levels_of_response,0))*Premissas!$F$9),0)","v":0},{"$f":"IF(L42<=0,\"MB1\",IFERROR(INDEX('Matriz de Risco'!$G$28:$G$53,MATCH(SUMPRODUCT(('Matriz de Risco'!$B$28:$B$53<=L42)*('Matriz de Risco'!$C$28:$C$53>=L42)*('Matriz de Risco'!$D$28:$D$53<=K42)*('Matriz de Risco'!$E$28:$E$53>=K42)*('Matriz de Risco'!$F$28:$F$53)),'Matriz de Risco'!$F$28:$F$53,0)),0))","v":"MB1"}]
[null,"P7 - Antropogênico"]
[null,null,null,null,null,null,null,null,{"$f":"IFERROR((((INDEX(Premissas!$F$28:$F$38,MATCH(E44,Vulnerabilties,0))*Premissas!$F$10)+(INDEX(Premissas!$F$28:$F$38,MATCH(F44,Vulnerabilties,0))*Premissas!$F$10)+(INDEX(Premissas!$F$28:$F$38,MATCH(G44,Vulnerabilties,0))*Premissas!$F$10)+(INDEX(Premissas!$F$28:$F$38,MATCH(H44,Vulnerabilties,0))*Premissas!$F$10))*Premissas!$F$9),0)","v":0},null,{"$f":"IFERROR(INDEX(Premissas!$F$15:$F$25,MATCH(D44,Exposures,0)*Premissas!$F$8+(I44/Premissas!$F$9)*Premissas!$F$8),0)","v":0},{"$f":"IFERROR((K44*Premissas!$F$9)-(INDEX(Premissas!$F$41:$F$51,MATCH(J44,Levels_of_response,0))*Premissas!$F$9),0)","v":0},{"$f":"IF(L44<=0,\"MB1\",IFERROR(INDEX('Matriz de Risco'!$G$28:$G$53,MATCH(SUMPRODUCT(('Matriz de Risco'!$B$28:$B$53<=L44)*('Matriz de Risco'!$C$28:$C$53>=L44)*('Matriz de Risco'!$D$28:$D$53<=K44)*('Matriz de Risco'!$E$28:$E$53>=K44)*('Matriz de Risco'!$F$28:$F$53)),'Matriz de Risco'!$F$28:$F$53,0)),0))","v":"MB1"}]
[null,null,null,null,null,null,null,null,{"$f":"IFERROR((((INDEX(Premissas!$F$28:$F$38,MATCH(E45,Vulnerabilties,0))*Premissas!$F$10)+(INDEX(Premissas!$F$28:$F$38,MATCH(F45,Vulnerabilties,0))*Premissas!$F$10)+(INDEX(Premissas!$F$28:$F$38,MATCH(G45,Vulnerabilties,0))*Premissas!$F$10)+(INDEX(Premissas!$F$28:$F$38,MATCH(H45,Vulnerabilties,0))*Premissas!$F$10))*Premissas!$F$9),0)","v":0},null,{"$f":"IFERROR(INDEX(Premissas!$F$15:$F$25,MATCH(D45,Exposures,0)*Premissas!$F$8+(I45/Premissas!$F$9)*Premissas!$F$8),0)","v":0},{"$f":"IFERROR((K45*Premissas!$F$9)-(INDEX(Premissas!$F$41:$F$51,MATCH(J45,Levels_of_response,0))*Premissas!$F$9),0)","v":0},{"$f":"IF(L45<=0,\"MB1\",IFERROR(INDEX('Matriz de Risco'!$G$28:$G$53,MATCH(SUMPRODUCT(('Matriz de Risco'!$B$28:$B$53<=L45)*('Matriz de Risco'!$C$28:$C$53>=L45)*('Matriz de Risco'!$D$28:$D$53<=K45)*('Matriz de Risco'!$E$28:$E$53>=K45)*('Matriz de Risco'!$F$28:$F$53)),'Matriz de Risco'!$F$28:$F$53,0)),0))","v":"MB1"}]
[null,null,null,null,null,null,null,null,{"$f":"IFERROR((((INDEX(Premissas!$F$28:$F$38,MATCH(E46,Vulnerabilties,0))*Premissas!$F$10)+(INDEX(Premissas!$F$28:$F$38,MATCH(F46,Vulnerabilties,0))*Premissas!$F$10)+(INDEX(Premissas!$F$28:$F$38,MATCH(G46,Vulnerabilties,0))*Premissas!$F$10)+(INDEX(Premissas!$F$28:$F$38,MATCH(H46,Vulnerabilties,0))*Premissas!$F$10))*Premissas!$F$9),0)","v":0},null,{"$f":"IFERROR(INDEX(Premissas!$F$15:$F$25,MATCH(D46,Exposures,0)*Premissas!$F$8+(I46/Premissas!$F$9)*Premissas!$F$8),0)","v":0},{"$f":"IFERROR((K46*Premissas!$F$9)-(INDEX(Premissas!$F$41:$F$51,MATCH(J46,Levels_of_response,0))*Premissas!$F$9),0)","v":0},{"$f":"IF(L46<=0,\"MB1\",IFERROR(INDEX('Matriz de Risco'!$G$28:$G$53,MATCH(SUMPRODUCT(('Matriz de Risco'!$B$28:$B$53<=L46)*('Matriz de Risco'!$C$28:$C$53>=L46)*('Matriz de Risco'!$D$28:$D$53<=K46)*('Matriz de Risco'!$E$28:$E$53>=K46)*('Matriz de Risco'!$F$28:$F$53)),'Matriz de Risco'!$F$28:$F$53,0)),0))","v":"MB1"}]
[null,null,null,null,null,null,null,null,{"$f":"IFERROR((((INDEX(Premissas!$F$28:$F$38,MATCH(E47,Vulnerabilties,0))*Premissas!$F$10)+(INDEX(Premissas!$F$28:$F$38,MATCH(F47,Vulnerabilties,0))*Premissas!$F$10)+(INDEX(Premissas!$F$28:$F$38,MATCH(G47,Vulnerabilties,0))*Premissas!$F$10)+(INDEX(Premissas!$F$28:$F$38,MATCH(H47,Vulnerabilties,0))*Premissas!$F$10))*Premissas!$F$9),0)","v":0},null,{"$f":"IFERROR(INDEX(Premissas!$F$15:$F$25,MATCH(D47,Exposures,0)*Premissas!$F$8+(I47/Premissas!$F$9)*Premissas!$F$8),0)","v":0},{"$f":"IFERROR((K47*Premissas!$F$9)-(INDEX(Premissas!$F$41:$F$51,MATCH(J47,Levels_of_response,0))*Premissas!$F$9),0)","v":0},{"$f":"IF(L47<=0,\"MB1\",IFERROR(INDEX('Matriz de Risco'!$G$28:$G$53,MATCH(SUMPRODUCT(('Matriz de Risco'!$B$28:$B$53<=L47)*('Matriz de Risco'!$C$28:$C$53>=L47)*('Matriz de Risco'!$D$28:$D$53<=K47)*('Matriz de Risco'!$E$28:$E$53>=K47)*('Matriz de Risco'!$F$28:$F$53)),'Matriz de Risco'!$F$28:$F$53,0)),0))","v":"MB1"}]
[null,null,null,null,null,null,null,null,{"$f":"IFERROR((((INDEX(Premissas!$F$28:$F$38,MATCH(E48,Vulnerabilties,0))*Premissas!$F$10)+(INDEX(Premissas!$F$28:$F$38,MATCH(F48,Vulnerabilties,0))*Premissas!$F$10)+(INDEX(Premissas!$F$28:$F$38,MATCH(G48,Vulnerabilties,0))*Premissas!$F$10)+(INDEX(Premissas!$F$28:$F$38,MATCH(H48,Vulnerabilties,0))*Premissas!$F$10))*Premissas!$F$9),0)","v":0},null,{"$f":"IFERROR(INDEX(Premissas!$F$15:$F$25,MATCH(D48,Exposures,0)*Premissas!$F$8+(I48/Premissas!$F$9)*Premissas!$F$8),0)","v":0},{"$f":"IFERROR((K48*Premissas!$F$9)-(INDEX(Premissas!$F$41:$F$51,MATCH(J48,Levels_of_response,0))*Premissas!$F$9),0)","v":0},{"$f":"IF(L48<=0,\"MB1\",IFERROR(INDEX('Matriz de Risco'!$G$28:$G$53,MATCH(SUMPRODUCT(('Matriz de Risco'!$B$28:$B$53<=L48)*('Matriz de Risco'!$C$28:$C$53>=L48)*('Matriz de Risco'!$D$28:$D$53<=K48)*('Matriz de Risco'!$E$28:$E$53>=K48)*('Matriz de Risco'!$F$28:$F$53)),'Matriz de Risco'!$F$28:$F$53,0)),0))","v":"MB1"}]
[null,"P8 - Outros (A ser completado pelo usuário)"]
[null,null,null,null,null,null,null,null,{"$f":"IFERROR((((INDEX(Premissas!$F$28:$F$38,MATCH(E50,Vulnerabilties,0))*Premissas!$F$10)+(INDEX(Premissas!$F$28:$F$38,MATCH(F50,Vulnerabilties,0))*Premissas!$F$10)+(INDEX(Premissas!$F$28:$F$38,MATCH(G50,Vulnerabilties,0))*Premissas!$F$10)+(INDEX(Premissas!$F$28:$F$38,MATCH(H50,Vulnerabilties,0))*Premissas!$F$10))*Premissas!$F$9),0)","v":0},null,{"$f":"IFERROR(INDEX(Premissas!$F$15:$F$25,MATCH(D50,Exposures,0)*Premissas!$F$8+(I50/Premissas!$F$9)*Premissas!$F$8),0)","v":0},{"$f":"IFERROR((K50*Premissas!$F$9)-(INDEX(Premissas!$F$41:$F$51,MATCH(J50,Levels_of_response,0))*Premissas!$F$9),0)","v":0},{"$f":"IF(L50<=0,\"MB1\",IFERROR(INDEX('Matriz de Risco'!$G$28:$G$53,MATCH(SUMPRODUCT(('Matriz de Risco'!$B$28:$B$53<=L50)*('Matriz de Risco'!$C$28:$C$53>=L50)*('Matriz de Risco'!$D$28:$D$53<=K50)*('Matriz de Risco'!$E$28:$E$53>=K50)*('Matriz de Risco'!$F$28:$F$53)),'Matriz de Risco'!$F$28:$F$53,0)),0))","v":"MB1"}]
[null,null,null,null,null,null,null,null,{"$f":"IFERROR((((INDEX(Premissas!$F$28:$F$38,MATCH(E51,Vulnerabilties,0))*Premissas!$F$10)+(INDEX(Premissas!$F$28:$F$38,MATCH(F51,Vulnerabilties,0))*Premissas!$F$10)+(INDEX(Premissas!$F$28:$F$38,MATCH(G51,Vulnerabilties,0))*Premissas!$F$10)+(INDEX(Premissas!$F$28:$F$38,MATCH(H51,Vulnerabilties,0))*Premissas!$F$10))*Premissas!$F$9),0)","v":0},null,{"$f":"IFERROR(INDEX(Premissas!$F$15:$F$25,MATCH(D51,Exposures,0)*Premissas!$F$8+(I51/Premissas!$F$9)*Premissas!$F$8),0)","v":0},{"$f":"IFERROR((K51*Premissas!$F$9)-(INDEX(Premissas!$F$41:$F$51,MATCH(J51,Levels_of_response,0))*Premissas!$F$9),0)","v":0},{"$f":"IF(L51<=0,\"MB1\",IFERROR(INDEX('Matriz de Risco'!$G$28:$G$53,MATCH(SUMPRODUCT(('Matriz de Risco'!$B$28:$B$53<=L51)*('Matriz de Risco'!$C$28:$C$53>=L51)*('Matriz de Risco'!$D$28:$D$53<=K51)*('Matriz de Risco'!$E$28:$E$53>=K51)*('Matriz de Risco'!$F$28:$F$53)),'Matriz de Risco'!$F$28:$F$53,0)),0))","v":"MB1"}]
[null,null,null,null,null,null,null,null,{"$f":"IFERROR((((INDEX(Premissas!$F$28:$F$38,MATCH(E52,Vulnerabilties,0))*Premissas!$F$10)+(INDEX(Premissas!$F$28:$F$38,MATCH(F52,Vulnerabilties,0))*Premissas!$F$10)+(INDEX(Premissas!$F$28:$F$38,MATCH(G52,Vulnerabilties,0))*Premissas!$F$10)+(INDEX(Premissas!$F$28:$F$38,MATCH(H52,Vulnerabilties,0))*Premissas!$F$10))*Premissas!$F$9),0)","v":0},null,{"$f":"IFERROR(INDEX(Premissas!$F$15:$F$25,MATCH(D52,Exposures,0)*Premissas!$F$8+(I52/Premissas!$F$9)*Premissas!$F$8),0)","v":0},{"$f":"IFERROR((K52*Premissas!$F$9)-(INDEX(Premissas!$F$41:$F$51,MATCH(J52,Levels_of_response,0))*Premissas!$F$9),0)","v":0},{"$f":"IF(L52<=0,\"MB1\",IFERROR(INDEX('Matriz de Risco'!$G$28:$G$53,MATCH(SUMPRODUCT(('Matriz de Risco'!$B$28:$B$53<=L52)*('Matriz de Risco'!$C$28:$C$53>=L52)*('Matriz de Risco'!$D$28:$D$53<=K52)*('Matriz de Risco'!$E$28:$E$53>=K52)*('Matriz de Risco'!$F$28:$F$53)),'Matriz de Risco'!$F$28:$F$53,0)),0))","v":"MB1"}]
[null,null,null,null,null,null,null,null,{"$f":"IFERROR((((INDEX(Premissas!$F$28:$F$38,MATCH(E53,Vulnerabilties,0))*Premissas!$F$10)+(INDEX(Premissas!$F$28:$F$38,MATCH(F53,Vulnerabilties,0))*Premissas!$F$10)+(INDEX(Premissas!$F$28:$F$38,MATCH(G53,Vulnerabilties,0))*Premissas!$F$10)+(INDEX(Premissas!$F$28:$F$38,MATCH(H53,Vulnerabilties,0))*Premissas!$F$10))*Premissas!$F$9),0)","v":0},null,{"$f":"IFERROR(INDEX(Premissas!$F$15:$F$25,MATCH(D53,Exposures,0)*Premissas!$F$8+(I53/Premissas!$F$9)*Premissas!$F$8),0)","v":0},{"$f":"IFERROR((K53*Premissas!$F$9)-(INDEX(Premissas!$F$41:$F$51,MATCH(J53,Levels_of_response,0))*Premissas!$F$9),0)","v":0},{"$f":"IF(L53<=0,\"MB1\",IFERROR(INDEX('Matriz de Risco'!$G$28:$G$53,MATCH(SUMPRODUCT(('Matriz de Risco'!$B$28:$B$53<=L53)*('Matriz de Risco'!$C$28:$C$53>=L53)*('Matriz de Risco'!$D$28:$D$53<=K53)*('Matriz de Risco'!$E$28:$E$53>=K53)*('Matriz de Risco'!$F$28:$F$53)),'Matriz de Risco'!$F$28:$F$53,0)),0))","v":"MB1"}]
[null,null,null,null,null,null,null,null,{"$f":"IFERROR((((INDEX(Premissas!$F$28:$F$38,MATCH(E54,Vulnerabilties,0))*Premissas!$F$10)+(INDEX(Premissas!$F$28:$F$38,MATCH(F54,Vulnerabilties,0))*Premissas!$F$10)+(INDEX(Premissas!$F$28:$F$38,MATCH(G54,Vulnerabilties,0))*Premissas!$F$10)+(INDEX(Premissas!$F$28:$F$38,MATCH(H54,Vulnerabilties,0))*Premissas!$F$10))*Premissas!$F$9),0)","v":0},null,{"$f":"IFERROR(INDEX(Premissas!$F$15:$F$25,MATCH(D54,Exposures,0)*Premissas!$F$8+(I54/Premissas!$F$9)*Premissas!$F$8),0)","v":0},{"$f":"IFERROR((K54*Premissas!$F$9)-(INDEX(Premissas!$F$41:$F$51,MATCH(J54,Levels_of_response,0))*Premissas!$F$9),0)","v":0},{"$f":"IF(L54<=0,\"MB1\",IFERROR(INDEX('Matriz de Risco'!$G$28:$G$53,MATCH(SUMPRODUCT(('Matriz de Risco'!$B$28:$B$53<=L54)*('Matriz de Risco'!$C$28:$C$53>=L54)*('Matriz de Risco'!$D$28:$D$53<=K54)*('Matriz de Risco'!$E$28:$E$53>=K54)*('Matriz de Risco'!$F$28:$F$53)),'Matriz de Risco'!$F$28:$F$53,0)),0))","v":"MB1"}]

{"sheet":"Pontuação de Dados","index":7,"n_rows":48,"n_cols":13,"rows_kept":48,"cut":false,"hidden":false,"merged":[[25,1,29,1],[30,1,34,1],[35,1,39,1],[40,1,44,1],[5,0,6,0],[5,1,9,1],[10,1,14,1],[15,1,19,1],[20,1,24,1]]}
[{"$f":"MdlTle","v":"Ferramenta de Avaliação Rápida de Riscos (ARR)"}]
[{"$f":"MID(CELL(\"filename\",A1),FIND(\"]\",CELL(\"filename\",A1))+1,255)","v":"Pontuação de Dados"}]
[]
[]
[null,"Grupo de Perigo","Desastre","Evento de perigo","Classificação de Exposição (1-10)",{"$f":"'Entrada de Dados de Perigo'!E6","v":"Infraestrutura"},{"$f":"'Entrada de Dados de Perigo'!F6","v":"Setores Produtivos"},{"$f":"'Entrada de Dados de Perigo'!G6","v":"Serviços Básicos ou Essenciais"},{"$f":"'Entrada de Dados de Perigo'!H6","v":"Aspectos Humanos e Sociais"},"Classificação de vulnerabilidade Total \n(1-100)","Medidas de Resposta Atuais (1-10)","Pontuação de Classificação de Probabilidade\n(1-10)","Classificação de Gravidade\n(1-100)"]
[null,{"$f":"'Entrada de Dados de Perigo'!$B$7","v":"P1 - Geofísico"},{"$f":"'Entrada de Dados de Perigo'!B8","v":0},{"$f":"'Entrada de Dados de Perigo'!C8","v":0},{"$f":"IFERROR(INDEX(Premissas!$F$15:$F$25,MATCH('Entrada de Dados de Perigo'!D8,Exposures,0)),0)","v":0},{"$f":"IFERROR(INDEX(Premissas!$F$15:$F$25,MATCH('Entrada de Dados de Perigo'!E8,Exposures,0)),0)","v":0},{"$f":"IFERROR(INDEX(Premissas!$F$15:$F$25,MATCH('Entrada de Dados de Perigo'!F8,Exposures,0)),0)","v":0},{"$f":"IFERROR(INDEX(Premissas!$F$15:$F$25,MATCH('Entrada de Dados de Perigo'!G8,Exposures,0)),0)","v":0},{"$f":"IFERROR(INDEX(Premissas!$F$15:$F$25,MATCH('Entrada de Dados de Perigo'!H8,Exposures,0)),0)","v":0},{"$f":"'Entrada de Dados de Perigo'!I8","v":0},{"$f":"IFERROR(INDEX(Premissas!$F$41:$F$51,MATCH('Entrada de Dados de Perigo'!J8,Levels_of_response,0)),0)","v":0},{"$f":"'Entrada de Dados de Perigo'!K8","v":0},{"$f":"'Entrada de Dados de Perigo'!L8","v":0}]
[null,null,{"$f":"'Entrada de Dados de Perigo'!B9","v":0},{"$f":"'Entrada de Dados de Perigo'!C9","v":0},{"$f":"IFERROR(INDEX(Premissas!$F$15:$F$25,MATCH('Entrada de Dados de Perigo'!D9,Exposures,0)),0)","v":0},{"$f":"IFERROR(INDEX(Premissas!$F$15:$F$25,MATCH('Entrada de Dados de Perigo'!E9,Exposures,0)),0)","v":0},{"$f":"IFERROR(INDEX(Premissas!$F$15:$F$25,MATCH('Entrada de Dados de Perigo'!F9,Exposures,0)),0)","v":0},{"$f":"IFERROR(INDEX(Premissas!$F$15:$F$25,MATCH('Entrada de Dados de Perigo'!G9,Exposures,0)),0)","v":0},{"$f":"IFERROR(INDEX(Premissas!$F$15:$F$25,MATCH('Entrada de Dados de Perigo'!H9,Exposures,0)),0)","v":0},{"$f":"'Entrada de Dados de Perigo'!I9","v":0},{"$f":"IFERROR(INDEX(Premissas!$F$41:$F$51,MATCH('Entrada de Dados de Perigo'!J9,Levels_of_response,0)),0)","v":0},{"$f":"'Entrada de Dados de Perigo'!K9","v":0},{"$f":"'Entrada de Dados de Perigo'!L9","v":0}]
[null,null,{"$f":"'Entrada de Dados de Perigo'!B10","v":0},{"$f":"'Entrada de Dados de Perigo'!C10","v":0},{"$f":"IFERROR(INDEX(Premissas!$F$15:$F$25,MATCH('Entrada de Dados de Perigo'!D10,Exposures,0)),0)","v":0},{"$f":"IFERROR(INDEX(Premissas!$F$15:$F$25,MATCH('Entrada de Dados de Perigo'!E10,Exposures,0)),0)","v":0},{"$f":"IFERROR(INDEX(Premissas!$F$15:$F$25,MATCH('Entrada de Dados de Perigo'!F10,Exposures,0)),0)","v":0},{"$f":"IFERROR(INDEX(Premissas!$F$15:$F$25,MATCH('Entrada de Dados de Perigo'!G10,Exposures,0)),0)","v":0},{"$f":"IFERROR(INDEX(Premissas!$F$15:$F$25,MATCH('Entrada de Dados de Perigo'!H10,Exposures,0)),0)","v":0},{"$f":"'Entrada de Dados de Perigo'!I10","v":0},{"$f":"IFERROR(INDEX(Premissas!$F$41:$F$51,MATCH('Entrada de Dados de Perigo'!J10,Levels_of_response,0)),0)","v":0},{"$f":"'Entrada de Dados de Perigo'!K10","v":0},{"$f":"'Entrada de Dados de Perigo'!L10","v":0}]
[null,null,{"$f":"'Entrada de Dados de Perigo'!B11","v":0},{"$f":"'Entrada de Dados de Perigo'!C11","v":0},{"$f":"IFERROR(INDEX(Premissas!$F$15:$F$25,MATCH('Entrada de Dados de Perigo'!D11,Exposures,0)),0)","v":0},{"$f":"IFERROR(INDEX(Premissas!$F$15:$F$25,MATCH('Entrada de Dados de Perigo'!E11,Exposures,0)),0)","v":0},{"$f":"IFERROR(INDEX(Premissas!$F$15:$F$25,MATCH('Entrada de Dados de Perigo'!F11,Exposures,0)),0)","v":0},{"$f":"IFERROR(INDEX(Premissas!$F$15:$F$25,MATCH('Entrada de Dados de Perigo'!G11,Exposures,0)),0)","v":0},{"$f":"IFERROR(INDEX(Premissas!$F$15:$F$25,MATCH('Entrada de Dados de Perigo'!H11,Exposures,0)),0)","v":0},{"$f":"'Entrada de Dados de Perigo'!I11","v":0},{"$f":"IFERROR(INDEX(Premissas!$F$41:$F$51,MATCH('Entrada de Dados de Perigo'!J11,Levels_of_response,0)),0)","v":0},{"$f":"'Entrada de Dados de Perigo'!K11","v":0},{"$f":"'Entrada de Dados de Perigo'!L11","v":0}]
[null,null,{"$f":"'Entrada de Dados de Perigo'!B12","v":0},{"$f":"'Entrada de Dados de Perigo'!C12","v":0},{"$f":"IFERROR(INDEX(Premissas!$F$15:$F$25,MATCH('Entrada de Dados de Perigo'!D12,Exposures,0)),0)","v":0},{"$f":"IFERROR(INDEX(Premissas!$F$15:$F$25,MATCH('Entrada de Dados de Perigo'!E12,Exposures,0)),0)","v":0},{"$f":"IFERROR(INDEX(Premissas!$F$15:$F$25,MATCH('Entrada de Dados de Perigo'!F12,Exposures,0)),0)","v":0},{"$f":"IFERROR(INDEX(Premissas!$F$15:$F$25,MATCH('Entrada de Dados de Perigo'!G12,Exposures,0)),0)","v":0},{"$f":"IFERROR(INDEX(Premissas!$F$15:$F$25,MATCH('Entrada de Dados de Perigo'!H12,Exposures,0)),0)","v":0},{"$f":"'Entrada de Dados de Perigo'!I12","v":0},{"$f":"IFERROR(INDEX(Premissas!$F$41:$F$51,MATCH('Entrada de Dados de Perigo'!J12,Levels_of_response,0)),0)","v":0},{"$f":"'Entrada de Dados de Perigo'!K12","v":0},{"$f":"'Entrada de Dados de Perigo'!L12","v":0}]
[null,{"$f":"'Entrada de Dados de Perigo'!$B$13","v":"P2 - Hidrológico"},{"$f":"'Entrada de Dados de Perigo'!B14","v":0},{"$f":"'Entrada de Dados de Perigo'!C14","v":0},{"$f":"IFERROR(INDEX(Premissas!$F$15:$F$25,MATCH('Entrada de Dados de Perigo'!D14,Exposures,0)),0)","v":0},{"$f":"IFERROR(INDEX(Premissas!$F$15:$F$25,MATCH('Entrada de Dados de Perigo'!E14,Exposures,0)),0)","v":0},{"$f":"IFERROR(INDEX(Premissas!$F$15:$F$25,MATCH('Entrada de Dados de Perigo'!F14,Exposures,0)),0)","v":0},{"$f":"IFERROR(INDEX(Premissas!$F$15:$F$25,MATCH('Entrada de Dados de Perigo'!G14,Exposures,0)),0)","v":0},{"$f":"IFERROR(INDEX(Premissas!$F$15:$F$25,MATCH('Entrada de Dados de Perigo'!H14,Exposures,0)),0)","v":0},{"$f":"'Entrada de Dados de Perigo'!I14","v":0},{"$f":"IFERROR(INDEX(Premissas!$F$41:$F$51,MATCH('Entrada de Dados de Perigo'!J14,Levels_of_response,0)),0)","v":0},{"$f":"'Entrada de Dados de Perigo'!K14","v":0},{"$f":"'Entrada de Dados de Perigo'!L14","v":0}]
[null,null,{"$f":"'Entrada de Dados de Perigo'!B15","v":0},{"$f":"'Entrada de Dados de Perigo'!C15","v":0},{"$f":"IFERROR(INDEX(Premissas!$F$15:$F$25,MATCH('Entrada de Dados de Perigo'!D15,Exposures,0)),0)","v":0},{"$f":"IFERROR(INDEX(Premissas!$F$15:$F$25,MATCH('Entrada de Dados de Perigo'!E15,Exposures,0)),0)","v":0},{"$f":"IFERROR(INDEX(Premissas!$F$15:$F$25,MATCH('Entrada de Dados de Perigo'!F15,Exposures,0)),0)","v":0},{"$f":"IFERROR(INDEX(Premissas!$F$15:$F$25,MATCH('Entrada de Dados de Perigo'!G15,Exposures,0)),0)","v":0},{"$f":"IFERROR(INDEX(Premissas!$F$15:$F$25,MATCH('Entrada de Dados de Perigo'!H15,Exposures,0)),0)","v":0},{"$f":"'Entrada de Dados de Perigo'!I15","v":0},{"$f":"IFERROR(INDEX(Premissas!$F$41:$F$51,MATCH('Entrada de Dados de Perigo'!J15,Levels_of_response,0)),0)","v":0},{"$f":"'Entrada de Dados de Perigo'!K15","v":0},{"$f":"'Entrada de Dados de Perigo'!L15","v":0}]
[null,null,{"$f":"'Entrada de Dados de Perigo'!B16","v":0},{"$f":"'Entrada de Dados de Perigo'!C16","v":0},{"$f":"IFERROR(INDEX(Premissas!$F$15:$F$25,MATCH('Entrada de Dados de Perigo'!D16,Exposures,0)),0)","v":0},{"$f":"IFERROR(INDEX(Premissas!$F$15:$F$25,MATCH('Entrada de Dados de Perigo'!E16,Exposures,0)),0)","v":0},{"$f":"IFERROR(INDEX(Premissas!$F$15:$F$25,MATCH('Entrada de Dados de Perigo'!F16,Exposures,0)),0)","v":0},{"$f":"IFERROR(INDEX(Premissas!$F$15:$F$25,MATCH('Entrada de Dados de Perigo'!G16,Exposures,0)),0)","v":0},{"$f":"IFERROR(INDEX(Premissas!$F$15:$F$25,MATCH('Entrada de Dados de Perigo'!H16,Exposures,0)),0)","v":0},{"$f":"'Entrada de Dados de Perigo'!I16","v":0},{"$f":"IFERROR(INDEX(Premissas!$F$41:$F$51,MATCH('Entrada de Dados de Perigo'!J16,Levels_of_response,0)),0)","v":0},{"$f":"'Entrada de Dados de Perigo'!K16","v":0},{"$f":"'Entrada de Dados de Perigo'!L16","v":0}]
[null,null,{"$f":"'Entrada de Dados de Perigo'!B17","v":0},{"$f":"'Entrada de Dados de Perigo'!C17","v":0},{"$f":"IFERROR(INDEX(Premissas!$F$15:$F$25,MATCH('Entrada de Dados de Perigo'!D17,Exposures,0)),0)","v":0},{"$f":"IFERROR(INDEX(Premissas!$F$15:$F$25,MATCH('Entrada de Dados de Perigo'!E17,Exposures,0)),0)","v":0},{"$f":"IFERROR(INDEX(Premissas!$F$15:$F$25,MATCH('Entrada de Dados de Perigo'!F17,Exposures,0)),0)","v":0},{"$f":"IFERROR(INDEX(Premissas!$F$15:$F$25,MATCH('Entrada de Dados de Perigo'!G17,Exposures,0)),0)","v":0},{"$f":"IFERROR(INDEX(Premissas!$F$15:$F$25,MATCH('Entrada de Dados de Perigo'!H17,Exposures,0)),0)","v":0},{"$f":"'Entrada de Dados de Perigo'!I17","v":0},{"$f":"IFERROR(INDEX(Premissas!$F$41:$F$51,MATCH('Entrada de Dados de Perigo'!J17,Levels_of_response,0)),0)","v":0},{"$f":"'Entrada de Dados de Perigo'!K17","v":0},{"$f":"'Entrada de Dados de Perigo'!L17","v":0}]
[null,null,{"$f":"'Entrada de Dados de Perigo'!B18","v":0},{"$f":"'Entrada de Dados de Perigo'!C18","v":0},{"$f":"IFERROR(INDEX(Premissas!$F$15:$F$25,MATCH('Entrada de Dados de Perigo'!D18,Exposures,0)),0)","v":0},{"$f":"IFERROR(INDEX(Premissas!$F$15:$F$25,MATCH('Entrada de Dados de Perigo'!E18,Exposures,0)),0)","v":0},{"$f":"IFERROR(INDEX(Premissas!$F$15:$F$25,MATCH('Entrada de Dados de Perigo'!F18,Exposures,0)),0)","v":0},{"$f":"IFERROR(INDEX(Premissas!$F$15:$F$25,MATCH('Entrada de Dados de Perigo'!G18,Exposures,0)),0)","v":0},{"$f":"IFERROR(INDEX(Premissas!$F$15:$F$25,MATCH('Entrada de Dados de Perigo'!H18,Exposures,0)),0)","v":0},{"$f":"'Entrada de Dados de Perigo'!I18","v":0},{"$f":"IFERROR(INDEX(Premissas!$F$41:$F$51,MATCH('Entrada de Dados de Perigo'!J18,Levels_of_response,0)),0)","v":0},{"$f":"'Entrada de Dados de Perigo'!K18","v":0},{"$f":"'Entrada de Dados de Perigo'!L18","v":0}]
[null,{"$f":"'Entrada de Dados de Perigo'!$B$19","v":"P3 - Meteorológico"},{"$f":"'Entrada de Dados de Perigo'!B20","v":0},{"$f":"'Entrada de Dados de Perigo'!C20","v":0},{"$f":"IFERROR(INDEX(Premissas!$F$15:$F$25,MATCH('Entrada de Dados de Perigo'!D20,Exposures,0)),0)","v":0},{"$f":"IFERROR(INDEX(Premissas!$F$15:$F$25,MATCH('Entrada de Dados de Perigo'!E20,Exposures,0)),0)","v":0},{"$f":"IFERROR(INDEX(Premissas!$F$15:$F$25,MATCH('Entrada de Dados de Perigo'!F20,Exposures,0)),0)","v":0},{"$f":"IFERROR(INDEX(Premissas!$F$15:$F$25,MATCH('Entrada de Dados de Perigo'!G20,Exposures,0)),0)","v":0},{"$f":"IFERROR(INDEX(Premissas!$F$15:$F$25,MATCH('Entrada de Dados de Perigo'!H20,Exposures,0)),0)","v":0},{"$f":"'Entrada de Dados de Perigo'!I20","v":0},{"$f":"IFERROR(INDEX(Premissas!$F$41:$F$51,MATCH('Entrada de Dados de Perigo'!J20,Levels_of_response,0)),0)","v":0},{"$f":"'Entrada de Dados de Perigo'!K20","v":0},{"$f":"'Entrada de Dados de Perigo'!L20","v":0}]
[null,null,{"$f":"'Entrada de Dados de Perigo'!B21","v":0},{"$f":"'Entrada de Dados de Perigo'!C21","v":0},{"$f":"IFERROR(INDEX(Premissas!$F$15:$F$25,MATCH('Entrada de Dados de Perigo'!D21,Exposures,0)),0)","v":0},{"$f":"IFERROR(INDEX(Premissas!$F$15:$F$25,MATCH('Entrada de Dados de Perigo'!E21,Exposures,0)),0)","v":0},{"$f":"IFERROR(INDEX(Premissas!$F$15:$F$25,MATCH('Entrada de Dados de Perigo'!F21,Exposures,0)),0)","v":0},{"$f":"IFERROR(INDEX(Premissas!$F$15:$F$25,MATCH('Entrada de Dados de Perigo'!G21,Exposures,0)),0)","v":0},{"$f":"IFERROR(INDEX(Premissas!$F$15:$F$25,MATCH('Entrada de Dados de Perigo'!H21,Exposures,0)),0)","v":0},{"$f":"'Entrada de Dados de Perigo'!I21","v":0},{"$f":"IFERROR(INDEX(Premissas!$F$41:$F$51,MATCH('Entrada de Dados de Perigo'!J21,Levels_of_response,0)),0)","v":0},{"$f":"'Entrada de Dados de Perigo'!K21","v":0},{"$f":"'Entrada de Dados de Perigo'!L21","v":0}]
[null,null,{"$f":"'Entrada de Dados de Perigo'!B22","v":0},{"$f":"'Entrada de Dados de Perigo'!C22","v":0},{"$f":"IFERROR(INDEX(Premissas!$F$15:$F$25,MATCH('Entrada de Dados de Perigo'!D22,Exposures,0)),0)","v":0},{"$f":"IFERROR(INDEX(Premissas!$F$15:$F$25,MATCH('Entrada de Dados de Perigo'!E22,Exposures,0)),0)","v":0},{"$f":"IFERROR(INDEX(Premissas!$F$15:$F$25,MATCH('Entrada de Dados de Perigo'!F22,Exposures,0)),0)","v":0},{"$f":"IFERROR(INDEX(Premissas!$F$15:$F$25,MATCH('Entrada de Dados de Perigo'!G22,Exposures,0)),0)","v":0},{"$f":"IFERROR(INDEX(Premissas!$F$15:$F$25,MATCH('Entrada de Dados de Perigo'!H22,Exposures,0)),0)","v":0},{"$f":"'Entrada de Dados de Perigo'!I22","v":0},{"$f":"IFERROR(INDEX(Premissas!$F$41:$F$51,MATCH('Entrada de Dados de Perigo'!J22,Levels_of_response,0)),0)","v":0},{"$f":"'Entrada de Dados de Perigo'!K22","v":0},{"$f":"'Entrada de Dados de Perigo'!L22","v":0}]
[null,null,{"$f":"'Entrada de Dados de Perigo'!B23","v":0},{"$f":"'Entrada de Dados de Perigo'!C23","v":0},{"$f":"IFERROR(INDEX(Premissas!$F$15:$F$25,MATCH('Entrada de Dados de Perigo'!D23,Exposures,0)),0)","v":0},{"$f":"IFERROR(INDEX(Premissas!$F$15:$F$25,MATCH('Entrada de Dados de Perigo'!E23,Exposures,0)),0)","v":0},{"$f":"IFERROR(INDEX(Premissas!$F$15:$F$25,MATCH('Entrada de Dados de Perigo'!F23,Exposures,0)),0)","v":0},{"$f":"IFERROR(INDEX(Premissas!$F$15:$F$25,MATCH('Entrada de Dados de Perigo'!G23,Exposures,0)),0)","v":0},{"$f":"IFERROR(INDEX(Premissas!$F$15:$F$25,MATCH('Entrada de Dados de Perigo'!H23,Exposures,0)),0)","v":0},{"$f":"'Entrada de Dados de Perigo'!I23","v":0},{"$f":"IFERROR(INDEX(Premissas!$F$41:$F$51,MATCH('Entrada de Dados de Perigo'!J23,Levels_of_response,0)),0)","v":0},{"$f":"'Entrada de Dados de Perigo'!K23","v":0},{"$f":"'Entrada de Dados de Perigo'!L23","v":0}]
[null,null,{"$f":"'Entrada de Dados de Perigo'!B24","v":0},{"$f":"'Entrada de Dados de Perigo'!C24","v":0},{"$f":"IFERROR(INDEX(Premissas!$F$15:$F$25,MATCH('Entrada de Dados de Perigo'!D24,Exposures,0)),0)","v":0},{"$f":"IFERROR(INDEX(Premissas!$F$15:$F$25,MATCH('Entrada de Dados de Perigo'!E24,Exposures,0)),0)","v":0},{"$f":"IFERROR(INDEX(Premissas!$F$15:$F$25,MATCH('Entrada de Dados de Perigo'!F24,Exposures,0)),0)","v":0},{"$f":"IFERROR(INDEX(Premissas!$F$15:$F$25,MATCH('Entrada de Dados de Perigo'!G24,Exposures,0)),0)","v":0},{"$f":"IFERROR(INDEX(Premissas!$F$15:$F$25,MATCH('Entrada de Dados de Perigo'!H24,Exposures,0)),0)","v":0},{"$f":"'Entrada de Dados de Perigo'!I24","v":0},{"$f":"IFERROR(INDEX(Premissas!$F$41:$F$51,MATCH('Entrada de Dados de Perigo'!J24,Levels_of_response,0)),0)","v":0},{"$f":"'Entrada de Dados de Perigo'!K24","v":0},{"$f":"'Entrada de Dados de Perigo'!L24","v":0}]
[null,{"$f":"'Entrada de Dados de Perigo'!B25","v":"P4 - Climatológico"},{"$f":"'Entrada de Dados de Perigo'!B26","v":0},{"$f":"'Entrada de Dados de Perigo'!C26","v":0},{"$f":"IFERROR(INDEX(Premissas!$F$15:$F$25,MATCH('Entrada de Dados de Perigo'!D26,Exposures,0)),0)","v":0},{"$f":"IFERROR(INDEX(Premissas!$F$15:$F$25,MATCH('Entrada de Dados de Perigo'!E26,Exposures,0)),0)","v":0},{"$f":"IFERROR(INDEX(Premissas!$F$15:$F$25,MATCH('Entrada de Dados de Perigo'!F26,Exposures,0)),0)","v":0},{"$f":"IFERROR(INDEX(Premissas!$F$15:$F$25,MATCH('Entrada de Dados de Perigo'!G26,Exposures,0)),0)","v":0},{"$f":"IFERROR(INDEX(Premissas!$F$15:$F$25,MATCH('Entrada de Dados de Perigo'!H26,Exposures,0)),0)","v":0},{"$f":"'Entrada de Dados de Perigo'!I26","v":0},{"$f":"IFERROR(INDEX(Premissas!$F$41:$F$51,MATCH('Entrada de Dados de Perigo'!J26,Levels_of_response,0)),0)","v":0},{"$f":"'Entrada de Dados de Perigo'!K26","v":0},{"$f":"'Entrada de Dados de Perigo'!L26","v":0}]
[null,null,{"$f":"'Entrada de Dados de Perigo'!B27","v":0},{"$f":"'Entrada de Dados de Perigo'!C27","v":0},{"$f":"IFERROR(INDEX(Premissas!$F$15:$F$25,MATCH('Entrada de Dados de Perigo'!D27,Exposures,0)),0)","v":0},{"$f":"IFERROR(INDEX(Premissas!$F$15:$F$25,MATCH('Entrada de Dados de Perigo'!E27,Exposures,0)),0)","v":0},{"$f":"IFERROR(INDEX(Premissas!$F$15:$F$25,MATCH('Entrada de Dados de Perigo'!F27,Exposures,0)),0)","v":0},{"$f":"IFERROR(INDEX(Premissas!$F$15:$F$25,MATCH('Entrada de Dados de Perigo'!G27,Exposures,0)),0)","v":0},{"$f":"IFERROR(INDEX(Premissas!$F$15:$F$25,MATCH('Entrada de Dados de Perigo'!H27,Exposures,0)),0)","v":0},{"$f":"'Entrada de Dados de Perigo'!I27","v":0},{"$f":"IFERROR(INDEX(Premissas!$F$41:$F$51,MATCH('Entrada de Dados de Perigo'!J27,Levels_of_response,0)),0)","v":0},{"$f":"'Entrada de Dados de Perigo'!K27","v":0},{"$f":"'Entrada de Dados de Perigo'!L27","v":0}]
[null,null,{"$f":"'Entrada de Dados de Perigo'!B28","v":0},{"$f":"'Entrada de Dados de Perigo'!C28","v":0},{"$f":"IFERROR(INDEX(Premissas!$F$15:$F$25,MATCH('Entrada de Dados de Perigo'!D28,Exposures,0)),0)","v":0},{"$f":"IFERROR(INDEX(Premissas!$F$15:$F$25,MATCH('Entrada de Dados de Perigo'!E28,Exposures,0)),0)","v":0},{"$f":"IFERROR(INDEX(Premissas!$F$15:$F$25,MATCH('Entrada de Dados de Perigo'!F28,Exposures,0)),0)","v":0},{"$f":"IFERROR(INDEX(Premissas!$F$15:$F$25,MATCH('Entrada de Dados de Perigo'!G28,Exposures,0)),0)","v":0},{"$f":"IFERROR(INDEX(Premissas!$F$15:$F$25,MATCH('Entrada de Dados de Perigo'!H28,Exposures,0)),0)","v":0},{"$f":"'Entrada de Dados de Perigo'!I28","v":0},{"$f":"IFERROR(INDEX(Premissas!$F$41:$F$51,MATCH('Entrada de Dados de Perigo'!J28,Levels_of_response,0)),0)","v":0},{"$f":"'Entrada de Dados de Perigo'!K28","v":0},{"$f":"'Entrada de Dados de Perigo'!L28","v":0}]
[null,null,{"$f":"'Entrada de Dados de Perigo'!B29","v":0},{"$f":"'Entrada de Dados de Perigo'!C29","v":0},{"$f":"IFERROR(INDEX(Premissas!$F$15:$F$25,MATCH('Entrada de Dados de Perigo'!D29,Exposures,0)),0)","v":0},{"$f":"IFERROR(INDEX(Premissas!$F$15:$F$25,MATCH('Entrada de Dados de Perigo'!E29,Exposures,0)),0)","v":0},{"$f":"IFERROR(INDEX(Premissas!$F$15:$F$25,MATCH('Entrada de Dados de Perigo'!F29,Exposures,0)),0)","v":0},{"$f":"IFERROR(INDEX(Premissas!$F$15:$F$25,MATCH('Entrada de Dados de Perigo'!G29,Exposures,0)),0)","v":0},{"$f":"IFERROR(INDEX(Premissas!$F$15:$F$25,MATCH('Entrada de Dados de Perigo'!H29,Exposures,0)),0)","v":0},{"$f":"'Entrada de Dados de Perigo'!I29","v":0},{"$f":"IFERROR(INDEX(Premissas!$F$41:$F$51,MATCH('Entrada de Dados de Perigo'!J29,Levels_of_response,0)),0)","v":0},{"$f":"'Entrada de Dados de Perigo'!K29","v":0},{"$f":"'Entrada de Dados de Perigo'!L29","v":0}]
[null,null,{"$f":"'Entrada de Dados de Perigo'!B30","v":0},{"$f":"'Entrada de Dados de Perigo'!C30","v":0},{"$f":"IFERROR(INDEX(Premissas!$F$15:$F$25,MATCH('Entrada de Dados de Perigo'!D30,Exposures,0)),0)","v":0},{"$f":"IFERROR(INDEX(Premissas!$F$15:$F$25,MATCH('Entrada de Dados de Perigo'!E30,Exposures,0)),0)","v":0},{"$f":"IFERROR(INDEX(Premissas!$F$15:$F$25,MATCH('Entrada de Dados de Perigo'!F30,Exposures,0)),0)","v":0},{"$f":"IFERROR(INDEX(Premissas!$F$15:$F$25,MATCH('Entrada de Dados de Perigo'!G30,Exposures,0)),0)","v":0},{"$f":"IFERROR(INDEX(Premissas!$F$15:$F$25,MATCH('Entrada de Dados de Perigo'!H30,Exposures,0)),0)","v":0},{"$f":"'Entrada de Dados de Perigo'!I30","v":0},{"$f":"IFERROR(INDEX(Premissas!$F$41:$F$51,MATCH('Entrada de Dados de Perigo'!J30,Levels_of_response,0)),0)","v":0},{"$f":"'Entrada de Dados de Perigo'!K30","v":0},{"$f":"'Entrada de Dados de Perigo'!L30","v":0}]
[null,{"$f":"'Entrada de Dados de Perigo'!$B$31","v":"P5 -Biológico"},{"$f":"'Entrada de Dados de Perigo'!B32","v":0},{"$f":"'Entrada de Dados de Perigo'!C32","v":0},{"$f":"IFERROR(INDEX(Premissas!$F$15:$F$25,MATCH('Entrada de Dados de Perigo'!D32,Exposures,0)),0)","v":0},{"$f":"IFERROR(INDEX(Premissas!$F$15:$F$25,MATCH('Entrada de Dados de Perigo'!E32,Exposures,0)),0)","v":0},{"$f":"IFERROR(INDEX(Premissas!$F$15:$F$25,MATCH('Entrada de Dados de Perigo'!F32,Exposures,0)),0)","v":0},{"$f":"IFERROR(INDEX(Premissas!$F$15:$F$25,MATCH('Entrada de Dados de Perigo'!G32,Exposures,0)),0)","v":0},{"$f":"IFERROR(INDEX(Premissas!$F$15:$F$25,MATCH('Entrada de Dados de Perigo'!H32,Exposures,0)),0)","v":0},{"$f":"'Entrada de Dados de Perigo'!I32","v":0},{"$f":"IFERROR(INDEX(Premissas!$F$41:$F$51,MATCH('Entrada de Dados de Perigo'!J32,Levels_of_response,0)),0)","v":0},{"$f":"'Entrada de Dados de Perigo'!K32","v":0},{"$f":"'Entrada de Dados de Perigo'!L32","v":0}]
[null,null,{"$f":"'Entrada de Dados de Perigo'!B33","v":0},{"$f":"'Entrada de Dados de Perigo'!C33","v":0},{"$f":"IFERROR(INDEX(Premissas!$F$15:$F$25,MATCH('Entrada de Dados de Perigo'!D33,Exposures,0)),0)","v":0},{"$f":"IFERROR(INDEX(Premissas!$F$15:$F$25,MATCH('Entrada de Dados de Perigo'!E33,Exposures,0)),0)","v":0},{"$f":"IFERROR(INDEX(Premissas!$F$15:$F$25,MATCH('Entrada de Dados de Perigo'!F33,Exposures,0)),0)","v":0},{"$f":"IFERROR(INDEX(Premissas!$F$15:$F$25,MATCH('Entrada de Dados de Perigo'!G33,Exposures,0)),0)","v":0},{"$f":"IFERROR(INDEX(Premissas!$F$15:$F$25,MATCH('Entrada de Dados de Perigo'!H33,Exposures,0)),0)","v":0},{"$f":"'Entrada de Dados de Perigo'!I33","v":0},{"$f":"IFERROR(INDEX(Premissas!$F$41:$F$51,MATCH('Entrada de Dados de Perigo'!J33,Levels_of_response,0)),0)","v":0},{"$f":"'Entrada de Dados de Perigo'!K33","v":0},{"$f":"'Entrada de Dados de Perigo'!L33","v":0}]
[null,null,{"$f":"'Entrada de Dados de Perigo'!B34","v":0},{"$f":"'Entrada de Dados de Perigo'!C34","v":0},{"$f":"IFERROR(INDEX(Premissas!$F$15:$F$25,MATCH('Entrada de Dados de Perigo'!D34,Exposures,0)),0)","v":0},{"$f":"IFERROR(INDEX(Premissas!$F$15:$F$25,MATCH('Entrada de Dados de Perigo'!E34,Exposures,0)),0)","v":0},{"$f":"IFERROR(INDEX(Premissas!$F$15:$F$25,MATCH('Entrada de Dados de Perigo'!F34,Exposures,0)),0)","v":0},{"$f":"IFERROR(INDEX(Premissas!$F$15:$F$25,MATCH('Entrada de Dados de Perigo'!G34,Exposures,0)),0)","v":0},{"$f":"IFERROR(INDEX(Premissas!$F$15:$F$25,MATCH('Entrada de Dados de Perigo'!H34,Exposures,0)),0)","v":0},{"$f":"'Entrada de Dados de Perigo'!I34","v":0},{"$f":"IFERROR(INDEX(Premissas!$F$41:$F$51,MATCH('Entrada de Dados de Perigo'!J34,Levels_of_response,0)),0)","v":0},{"$f":"'Entrada de Dados de Perigo'!K34","v":0},{"$f":"'Entrada de Dados de Perigo'!L34","v":0}]
[null,null,{"$f":"'Entrada de Dados de Perigo'!B35","v":0},{"$f":"'Entrada de Dados de Perigo'!C35","v":0},{"$f":"IFERROR(INDEX(Premissas!$F$15:$F$25,MATCH('Entrada de Dados de Perigo'!D35,Exposures,0)),0)","v":0},{"$f":"IFERROR(INDEX(Premissas!$F$15:$F$25,MATCH('Entrada de Dados de Perigo'!E35,Exposures,0)),0)","v":0},{"$f":"IFERROR(INDEX(Premissas!$F$15:$F$25,MATCH('Entrada de Dados de Perigo'!F35,Exposures,0)),0)","v":0},{"$f":"IFERROR(INDEX(Premissas!$F$15:$F$25,MATCH('Entrada de Dados de Perigo'!G35,Exposures,0)),0)","v":0},{"$f":"IFERROR(INDEX(Premissas!$F$15:$F$25,MATCH('Entrada de Dados de Perigo'!H35,Exposures,0)),0)","v":0},{"$f":"'Entrada de Dados de Perigo'!I35","v":0},{"$f":"IFERROR(INDEX(Premissas!$F$41:$F$51,MATCH('Entrada de Dados de Perigo'!J35,Levels_of_response,0)),0)","v":0},{"$f":"'Entrada de Dados de Perigo'!K35","v":0},{"$f":"'Entrada de Dados de Perigo'!L35","v":0}]
[null,null,{"$f":"'Entrada de Dados de Perigo'!B36","v":0},{"$f":"'Entrada de Dados de Perigo'!C36","v":0},{"$f":"IFERROR(INDEX(Premissas!$F$15:$F$25,MATCH('Entrada de Dados de Perigo'!D36,Exposures,0)),0)","v":0},{"$f":"IFERROR(INDEX(Premissas!$F$15:$F$25,MATCH('Entrada de Dados de Perigo'!E36,Exposures,0)),0)","v":0},{"$f":"IFERROR(INDEX(Premissas!$F$15:$F$25,MATCH('Entrada de Dados de Perigo'!F36,Exposures,0)),0)","v":0},{"$f":"IFERROR(INDEX(Premissas!$F$15:$F$25,MATCH('Entrada de Dados de Perigo'!G36,Exposures,0)),0)","v":0},{"$f":"IFERROR(INDEX(Premissas!$F$15:$F$25,MATCH('Entrada de Dados de Perigo'!H36,Exposures,0)),0)","v":0},{"$f":"'Entrada de Dados de Perigo'!I36","v":0},{"$f":"IFERROR(INDEX(Premissas!$F$41:$F$51,MATCH('Entrada de Dados de Perigo'!J36,Levels_of_response,0)),0)","v":0},{"$f":"'Entrada de Dados de Perigo'!K36","v":0},{"$f":"'Entrada de Dados de Perigo'!L36","v":0}]
[null,{"$f":"'Entrada de Dados de Perigo'!$B$37","v":"P6 - Origem Sideral"},{"$f":"'Entrada de Dados de Perigo'!B38","v":0},{"$f":"'Entrada de Dados de Perigo'!C38","v":0},{"$f":"IFERROR(INDEX(Premissas!$F$15:$F$25,MATCH('Entrada de Dados de Perigo'!D38,Exposures,0)),0)","v":0},{"$f":"IFERROR(INDEX(Premissas!$F$15:$F$25,MATCH('Entrada de Dados de Perigo'!E38,Exposures,0)),0)","v":0},{"$f":"IFERROR(INDEX(Premissas!$F$15:$F$25,MATCH('Entrada de Dados de Perigo'!F38,Exposures,0)),0)","v":0},{"$f":"IFERROR(INDEX(Premissas!$F$15:$F$25,MATCH('Entrada de Dados de Perigo'!G38,Exposures,0)),0)","v":0},{"$f":"IFERROR(INDEX(Premissas!$F$15:$F$25,MATCH('Entrada de Dados de Perigo'!H38,Exposures,0)),0)","v":0},{"$f":"'Entrada de Dados de Perigo'!I38","v":0},{"$f":"IFERROR(INDEX(Premissas!$F$41:$F$51,MATCH('Entrada de Dados de Perigo'!J38,Levels_of_response,0)),0)","v":0},{"$f":"'Entrada de Dados de Perigo'!K38","v":0},{"$f":"'Entrada de Dados de Perigo'!L38","v":0}]
[null,null,{"$f":"'Entrada de Dados de Perigo'!B39","v":0},{"$f":"'Entrada de Dados de Perigo'!C39","v":0},{"$f":"IFERROR(INDEX(Premissas!$F$15:$F$25,MATCH('Entrada de Dados de Perigo'!D39,Exposures,0)),0)","v":0},{"$f":"IFERROR(INDEX(Premissas!$F$15:$F$25,MATCH('Entrada de Dados de Perigo'!E39,Exposures,0)),0)","v":0},{"$f":"IFERROR(INDEX(Premissas!$F$15:$F$25,MATCH('Entrada de Dados de Perigo'!F39,Exposures,0)),0)","v":0},{"$f":"IFERROR(INDEX(Premissas!$F$15:$F$25,MATCH('Entrada de Dados de Perigo'!G39,Exposures,0)),0)","v":0},{"$f":"IFERROR(INDEX(Premissas!$F$15:$F$25,MATCH('Entrada de Dados de Perigo'!H39,Exposures,0)),0)","v":0},{"$f":"'Entrada de Dados de Perigo'!I39","v":0},{"$f":"IFERROR(INDEX(Premissas!$F$41:$F$51,MATCH('Entrada de Dados de Perigo'!J39,Levels_of_response,0)),0)","v":0},{"$f":"'Entrada de Dados de Perigo'!K39","v":0},{"$f":"'Entrada de Dados de Perigo'!L39","v":0}]
[null,null,{"$f":"'Entrada de Dados de Perigo'!B40","v":0},{"$f":"'Entrada de Dados de Perigo'!C40","v":0},{"$f":"IFERROR(INDEX(Premissas!$F$15:$F$25,MATCH('Entrada de Dados de Perigo'!D40,Exposures,0)),0)","v":0},{"$f":"IFERROR(INDEX(Premissas!$F$15:$F$25,MATCH('Entrada de Dados de Perigo'!E40,Exposures,0)),0)","v":0},{"$f":"IFERROR(INDEX(Premissas!$F$15:$F$25,MATCH('Entrada de Dados de Perigo'!F40,Exposures,0)),0)","v":0},{"$f":"IFERROR(INDEX(Premissas!$F$15:$F$25,MATCH('Entrada de Dados de Perigo'!G40,Exposures,0)),0)","v":0},{"$f":"IFERROR(INDEX(Premissas!$F$15:$F$25,MATCH('Entrada de Dados de Perigo'!H40,Exposures,0)),0)","v":0},{"$f":"'Entrada de Dados de Perigo'!I40","v":0},{"$f":"IFERROR(INDEX(Premissas!$F$41:$F$51,MATCH('Entrada de Dados de Perigo'!J40,Levels_of_response,0)),0)","v":0},{"$f":"'Entrada de Dados de Perigo'!K40","v":0},{"$f":"'Entrada de Dados de Perigo'!L40","v":0}]
[null,null,{"$f":"'Entrada de Dados de Perigo'!B41","v":0},{"$f":"'Entrada de Dados de Perigo'!C41","v":0},{"$f":"IFERROR(INDEX(Premissas!$F$15:$F$25,MATCH('Entrada de Dados de Perigo'!D41,Exposures,0)),0)","v":0},{"$f":"IFERROR(INDEX(Premissas!$F$15:$F$25,MATCH('Entrada de Dados de Perigo'!E41,Exposures,0)),0)","v":0},{"$f":"IFERROR(INDEX(Premissas!$F$15:$F$25,MATCH('Entrada de Dados de Perigo'!F41,Exposures,0)),0)","v":0},{"$f":"IFERROR(INDEX(Premissas!$F$15:$F$25,MATCH('Entrada de Dados de Perigo'!G41,Exposures,0)),0)","v":0},{"$f":"IFERROR(INDEX(Premissas!$F$15:$F$25,MATCH('Entrada de Dados de Perigo'!H41,Exposures,0)),0)","v":0},{"$f":"'Entrada de Dados de Perigo'!I41","v":0},{"$f":"IFERROR(INDEX(Premissas!$F$41:$F$51,MATCH('Entrada de Dados de Perigo'!J41,Levels_of_response,0)),0)","v":0},{"$f":"'Entrada de Dados de Perigo'!K41","v":0},{"$f":"'Entrada de Dados de Perigo'!L41","v":0}]
[null,null,{"$f":"'Entrada de Dados de Perigo'!B42","v":0},{"$f":"'Entrada de Dados de Perigo'!C42","v":0},{"$f":"IFERROR(INDEX(Premissas!$F$15:$F$25,MATCH('Entrada de Dados de Perigo'!D42,Exposures,0)),0)","v":0},{"$f":"IFERROR(INDEX(Premissas!$F$15:$F$25,MATCH('Entrada de Dados de Perigo'!E42,Exposures,0)),0)","v":0},{"$f":"IFERROR(INDEX(Premissas!$F$15:$F$25,MATCH('Entrada de Dados de Perigo'!F42,Exposures,0)),0)","v":0},{"$f":"IFERROR(INDEX(Premissas!$F$15:$F$25,MATCH('Entrada de Dados de Perigo'!G42,Exposures,0)),0)","v":0},{"$f":"IFERROR(INDEX(Premissas!$F$15:$F$25,MATCH('Entrada de Dados de Perigo'!H42,Exposures,0)),0)","v":0},{"$f":"'Entrada de Dados de Perigo'!I42","v":0},{"$f":"IFERROR(INDEX(Premissas!$F$41:$F$51,MATCH('Entrada de Dados de Perigo'!J42,Levels_of_response,0)),0)","v":0},{"$f":"'Entrada de Dados de Perigo'!K42","v":0},{"$f":"'Entrada de Dados de Perigo'!L42","v":0}]
[null,{"$f":"'Entrada de Dados de Perigo'!$B$43","v":"P7 - Antropogênico"},{"$f":"'Entrada de Dados de Perigo'!B44","v":0},{"$f":"'Entrada de Dados de Perigo'!C44","v":0},{"$f":"IFERROR(INDEX(Premissas!$F$15:$F$25,MATCH('Entrada de Dados de Perigo'!D44,Exposures,0)),0)","v":0},{"$f":"IFERROR(INDEX(Premissas!$F$15:$F$25,MATCH('Entrada de Dados de Perigo'!E44,Exposures,0)),0)","v":0},{"$f":"IFERROR(INDEX(Premissas!$F$15:$F$25,MATCH('Entrada de Dados de Perigo'!F44,Exposures,0)),0)","v":0},{"$f":"IFERROR(INDEX(Premissas!$F$15:$F$25,MATCH('Entrada de Dados de Perigo'!G44,Exposures,0)),0)","v":0},{"$f":"IFERROR(INDEX(Premissas!$F$15:$F$25,MATCH('Entrada de Dados de Perigo'!H44,Exposures,0)),0)","v":0},{"$f":"'Entrada de Dados de Perigo'!I44","v":0},{"$f":"IFERROR(INDEX(Premissas!$F$41:$F$51,MATCH('Entrada de Dados de Perigo'!J44,Levels_of_response,0)),0)","v":0},{"$f":"'Entrada de Dados de Perigo'!K44","v":0},{"$f":"'Entrada de Dados de Perigo'!L44","v":0}]
[null,null,{"$f":"'Entrada de Dados de Perigo'!B45","v":0},{"$f":"'Entrada de Dados de Perigo'!C45","v":0},{"$f":"IFERROR(INDEX(Premissas!$F$15:$F$25,MATCH('Entrada de Dados de Perigo'!D45,Exposures,0)),0)","v":0},{"$f":"IFERROR(INDEX(Premissas!$F$15:$F$25,MATCH('Entrada de Dados de Perigo'!E45,Exposures,0)),0)","v":0},{"$f":"IFERROR(INDEX(Premissas!$F$15:$F$25,MATCH('Entrada de Dados de Perigo'!F45,Exposures,0)),0)","v":0},{"$f":"IFERROR(INDEX(Premissas!$F$15:$F$25,MATCH('Entrada de Dados de Perigo'!G45,Exposures,0)),0)","v":0},{"$f":"IFERROR(INDEX(Premissas!$F$15:$F$25,MATCH('Entrada de Dados de Perigo'!H45,Exposures,0)),0)","v":0},{"$f":"'Entrada de Dados de Perigo'!I45","v":0},{"$f":"IFERROR(INDEX(Premissas!$F$41:$F$51,MATCH('Entrada de Dados de Perigo'!J45,Levels_of_response,0)),0)","v":0},{"$f":"'Entrada de Dados de Perigo'!K45","v":0},{"$f":"'Entrada de Dados de Perigo'!L45","v":0}]
[null,null,{"$f":"'Entrada de Dados de Perigo'!B46","v":0},{"$f":"'Entrada de Dados de Perigo'!C46","v":0},{"$f":"IFERROR(INDEX(Premissas!$F$15:$F$25,MATCH('Entrada de Dados de Perigo'!D46,Exposures,0)),0)","v":0},{"$f":"IFERROR(INDEX(Premissas!$F$15:$F$25,MATCH('Entrada de Dados de Perigo'!E46,Exposures,0)),0)","v":0},{"$f":"IFERROR(INDEX(Premissas!$F$15:$F$25,MATCH('Entrada de Dados de Perigo'!F46,Exposures,0)),0)","v":0},{"$f":"IFERROR(INDEX(Premissas!$F$15:$F$25,MATCH('Entrada de Dados de Perigo'!G46,Exposures,0)),0)","v":0},{"$f":"IFERROR(INDEX(Premissas!$F$15:$F$25,MATCH('Entrada de Dados de Perigo'!H46,Exposures,0)),0)","v":0},{"$f":"'Entrada de Dados de Perigo'!I46","v":0},{"$f":"IFERROR(INDEX(Premissas!$F$41:$F$51,MATCH('Entrada de Dados de Perigo'!J46,Levels_of_response,0)),0)","v":0},{"$f":"'Entrada de Dados de Perigo'!K46","v":0},{"$f":"'Entrada de Dados de Perigo'!L46","v":0}]
[null,null,{"$f":"'Entrada de Dados de Perigo'!B47","v":0},{"$f":"'Entrada de Dados de Perigo'!C47","v":0},{"$f":"IFERROR(INDEX(Premissas!$F$15:$F$25,MATCH('Entrada de Dados de Perigo'!D47,Exposures,0)),0)","v":0},{"$f":"IFERROR(INDEX(Premissas!$F$15:$F$25,MATCH('Entrada de Dados de Perigo'!E47,Exposures,0)),0)","v":0},{"$f":"IFERROR(INDEX(Premissas!$F$15:$F$25,MATCH('Entrada de Dados de Perigo'!F47,Exposures,0)),0)","v":0},{"$f":"IFERROR(INDEX(Premissas!$F$15:$F$25,MATCH('Entrada de Dados de Perigo'!G47,Exposures,0)),0)","v":0},{"$f":"IFERROR(INDEX(Premissas!$F$15:$F$25,MATCH('Entrada de Dados de Perigo'!H47,Exposures,0)),0)","v":0},{"$f":"'Entrada de Dados de Perigo'!I47","v":0},{"$f":"IFERROR(INDEX(Premissas!$F$41:$F$51,MATCH('Entrada de Dados de Perigo'!J47,Levels_of_response,0)),0)","v":0},{"$f":"'Entrada de Dados de Perigo'!K47","v":0},{"$f":"'Entrada de Dados de Perigo'!L47","v":0}]
[null,null,{"$f":"'Entrada de Dados de Perigo'!B48","v":0},{"$f":"'Entrada de Dados de Perigo'!C48","v":0},{"$f":"IFERROR(INDEX(Premissas!$F$15:$F$25,MATCH('Entrada de Dados de Perigo'!D48,Exposures,0)),0)","v":0},{"$f":"IFERROR(INDEX(Premissas!$F$15:$F$25,MATCH('Entrada de Dados de Perigo'!E48,Exposures,0)),0)","v":0},{"$f":"IFERROR(INDEX(Premissas!$F$15:$F$25,MATCH('Entrada de Dados de Perigo'!F48,Exposures,0)),0)","v":0},{"$f":"IFERROR(INDEX(Premissas!$F$15:$F$25,MATCH('Entrada de Dados de Perigo'!G48,Exposures,0)),0)","v":0},{"$f":"IFERROR(INDEX(Premissas!$F$15:$F$25,MATCH('Entrada de Dados de Perigo'!H48,Exposures,0)),0)","v":0},{"$f":"'Entrada de Dados de Perigo'!I48","v":0},{"$f":"IFERROR(INDEX(Premissas!$F$41:$F$51,MATCH('Entrada de Dados de Perigo'!J48,Levels_of_response,0)),0)","v":0},{"$f":"'Entrada de Dados de Perigo'!K48","v":0},{"$f":"'Entrada de Dados de Perigo'!L48","v":0}]
[null,{"$f":"'Entrada de Dados de Perigo'!$B$49","v":"P8 - Outros (A ser completado pelo usuário)"},{"$f":"'Entrada de Dados de Perigo'!B50","v":0},{"$f":"'Entrada de Dados de Perigo'!C50","v":0},{"$f":"IFERROR(INDEX(Premissas!$F$15:$F$25,MATCH('Entrada de Dados de Perigo'!D50,Exposures,0)),0)","v":0},{"$f":"IFERROR(INDEX(Premissas!$F$15:$F$25,MATCH('Entrada de Dados de Perigo'!E50,Exposures,0)),0)","v":0},{"$f":"IFERROR(INDEX(Premissas!$F$15:$F$25,MATCH('Entrada de Dados de Perigo'!F50,Exposures,0)),0)","v":0},{"$f":"IFERROR(INDEX(Premissas!$F$15:$F$25,MATCH('Entrada de Dados de Perigo'!G50,Exposures,0)),0)","v":0},{"$f":"IFERROR(INDEX(Premissas!$F$15:$F$25,MATCH('Entrada de Dados de Perigo'!H50,Exposures,0)),0)","v":0},{"$f":"'Entrada de Dados de Perigo'!I50","v":0},{"$f":"IFERROR(INDEX(Premissas!$F$41:$F$51,MATCH('Entrada de Dados de Perigo'!J50,Levels_of_response,0)),0)","v":0},{"$f":"'Entrada de Dados de Perigo'!K50","v":0},{"$f":"'Entrada de Dados de Perigo'!L50","v":0}]
[null,null,{"$f":"'Entrada de Dados de Perigo'!B51","v":0},{"$f":"'Entrada de Dados de Perigo'!C51","v":0},{"$f":"IFERROR(INDEX(Premissas!$F$15:$F$25,MATCH('Entrada de Dados de Perigo'!D51,Exposures,0)),0)","v":0},{"$f":"IFERROR(INDEX(Premissas!$F$15:$F$25,MATCH('Entrada de Dados de Perigo'!E51,Exposures,0)),0)","v":0},{"$f":"IFERROR(INDEX(Premissas!$F$15:$F$25,MATCH('Entrada de Dados de Perigo'!F51,Exposures,0)),0)","v":0},{"$f":"IFERROR(INDEX(Premissas!$F$15:$F$25,MATCH('Entrada de Dados de Perigo'!G51,Exposures,0)),0)","v":0},{"$f":"IFERROR(INDEX(Premissas!$F$15:$F$25,MATCH('Entrada de Dados de Perigo'!H51,Exposures,0)),0)","v":0},{"$f":"'Entrada de Dados de Perigo'!I51","v":0},{"$f":"IFERROR(INDEX(Premissas!$F$41:$F$51,MATCH('Entrada de Dados de Perigo'!J51,Levels_of_response,0)),0)","v":0},{"$f":"'Entrada de Dados de Perigo'!K51","v":0},{"$f":"'Entrada de Dados de Perigo'!L51","v":0}]
[null,null,{"$f":"'Entrada de Dados de Perigo'!B52","v":0},{"$f":"'Entrada de Dados de Perigo'!C52","v":0},{"$f":"IFERROR(INDEX(Premissas!$F$15:$F$25,MATCH('Entrada de Dados de Perigo'!D52,Exposures,0)),0)","v":0},{"$f":"IFERROR(INDEX(Premissas!$F$15:$F$25,MATCH('Entrada de Dados de Perigo'!E52,Exposures,0)),0)","v":0},{"$f":"IFERROR(INDEX(Premissas!$F$15:$F$25,MATCH('Entrada de Dados de Perigo'!F52,Exposures,0)),0)","v":0},{"$f":"IFERROR(INDEX(Premissas!$F$15:$F$25,MATCH('Entrada de Dados de Perigo'!G52,Exposures,0)),0)","v":0},{"$f":"IFERROR(INDEX(Premissas!$F$15:$F$25,MATCH('Entrada de Dados de Perigo'!H52,Exposures,0)),0)","v":0},{"$f":"'Entrada de Dados de Perigo'!I52","v":0},{"$f":"IFERROR(INDEX(Premissas!$F$41:$F$51,MATCH('Entrada de Dados de Perigo'!J52,Levels_of_response,0)),0)","v":0},{"$f":"'Entrada de Dados de Perigo'!K52","v":0},{"$f":"'Entrada de Dados de Perigo'!L52","v":0}]
[null,null,{"$f":"'Entrada de Dados de Perigo'!B53","v":0},{"$f":"'Entrada de Dados de Perigo'!C53","v":0},{"$f":"IFERROR(INDEX(Premissas!$F$15:$F$25,MATCH('Entrada de Dados de Perigo'!D53,Exposures,0)),0)","v":0},{"$f":"IFERROR(INDEX(Premissas!$F$15:$F$25,MATCH('Entrada de Dados de Perigo'!E53,Exposures,0)),0)","v":0},{"$f":"IFERROR(INDEX(Premissas!$F$15:$F$25,MATCH('Entrada de Dados de Perigo'!F53,Exposures,0)),0)","v":0},{"$f":"IFERROR(INDEX(Premissas!$F$15:$F$25,MATCH('Entrada de Dados de Perigo'!G53,Exposures,0)),0)","v":0},{"$f":"IFERROR(INDEX(Premissas!$F$15:$F$25,MATCH('Entrada de Dados de Perigo'!H53,Exposures,0)),0)","v":0},{"$f":"'Entrada de Dados de Perigo'!I53","v":0},{"$f":"IFERROR(INDEX(Premissas!$F$41:$F$51,MATCH('Entrada de Dados de Perigo'!J53,Levels_of_response,0)),0)","v":0},{"$f":"'Entrada de Dados de Perigo'!K53","v":0},{"$f":"'Entrada de Dados de Perigo'!L53","v":0}]
[null,null,{"$f":"'Entrada de Dados de Perigo'!B54","v":0},{"$f":"'Entrada de Dados de Perigo'!C54","v":0},{"$f":"IFERROR(INDEX(Premissas!$F$15:$F$25,MATCH('Entrada de Dados de Perigo'!D54,Exposures,0)),0)","v":0},{"$f":"IFERROR(INDEX(Premissas!$F$15:$F$25,MATCH('Entrada de Dados de Perigo'!E54,Exposures,0)),0)","v":0},{"$f":"IFERROR(INDEX(Premissas!$F$15:$F$25,MATCH('Entrada de Dados de Perigo'!F54,Exposures,0)),0)","v":0},{"$f":"IFERROR(INDEX(Premissas!$F$15:$F$25,MATCH('Entrada de Dados de Perigo'!G54,Exposures,0)),0)","v":0},{"$f":"IFERROR(INDEX(Premissas!$F$15:$F$25,MATCH('Entrada de Dados de Perigo'!H54,Exposures,0)),0)","v":0},{"$f":"'Entrada de Dados de Perigo'!I54","v":0},{"$f":"IFERROR(INDEX(Premissas!$F$41:$F$51,MATCH('Entrada de Dados de Perigo'!J54,Levels_of_response,0)),0)","v":0},{"$f":"'Entrada de Dados de Perigo'!K54","v":0},{"$f":"'Entrada de Dados de Perigo'!L54","v":0}]
[]
[]
[null,"Fim"]

{"sheet":"Sumário dos Riscos","index":8,"n_rows":9,"n_cols":3,"rows_kept":9,"cut":false,"hidden":false,"merged":[]}
[null,{"$f":"MdlTle","v":"Ferramenta de Avaliação Rápida de Riscos (ARR)"}]
[null,{"$f":"MID(CELL(\"filename\",B1),FIND(\"]\",CELL(\"filename\",B1))+1,255)","v":"Sumário dos Riscos"}]
[]
[]
[null,{"$f":"Informações!C15","v":"Local / Região Nome / Título: "},{"$f":"Informações!$L$15","v":0}]
[null,{"$f":"Informações!C17","v":"Descrição: "},{"$f":"Informações!$L$17","v":0}]
[null,{"$f":"Informações!C20","v":"Avaliador (ou seja, pessoa que realizou a análise):"},{"$f":"Informações!$L$20","v":0}]
[null,{"$f":"Informações!C22","v":"Data de conclusão:"},{"$f":"TEXT(Informações!$L$22,\"DD MMM YYYY\")","v":"00 Jan 1900"}]
[null,{"$f":"Informações!C24","v":"Data da Revisão"},{"$f":"TEXT(Informações!$L$24, \"DD MMM YYYY\")","v":"00 Jan 1900"}]

{"sheet":"Relatório de Vulnerabilidade","index":9,"n_rows":55,"n_cols":3,"rows_kept":55,"cut":false,"hidden":false,"merged":[]}
[null,{"$f":"MdlTle","v":"Ferramenta de Avaliação Rápida de Riscos (ARR)"}]
[null,{"$f":"MID(CELL(\"filename\",B1),FIND(\"]\",CELL(\"filename\",B1))+1,255)","v":"Relatório de Vulnerabilidade"}]
[]
[]
[null,{"$f":"Informações!C15","v":"Local / Região Nome / Título: "},{"$f":"Informações!$L$15","v":0}]
[null,{"$f":"Informações!C17","v":"Descrição: "},{"$f":"Informações!$L$17","v":0}]
[null,{"$f":"Informações!C20","v":"Avaliador (ou seja, pessoa que realizou a análise):"},{"$f":"Informações!$L$20","v":0}]
[null,{"$f":"Informações!C22","v":"Data de conclusão:"},{"$f":"TEXT(Informações!$L$22,\"DD MMM YYYY\")","v":"00 Jan 1900"}]
[null,{"$f":"Informações!C24","v":"Data da Revisão"},{"$f":"TEXT(Informações!$L$24, \"DD MMM YYYY\")","v":"00 Jan 1900"}]
[]
[]
[]
[]
[]
[]
[]
[]
[]
[]
[]
[]
[]
[]
[]
[]
[]
[]
[]
[]
[]
[]
[]
[]
[]
[]
[]
[]
[]
[]
[]
[]
[]
[]
[]
[]
[]
[]
[]
[]
[]
[]
[]
[]
[null,{"$f":"MdlTle","v":"Ferramenta de Avaliação Rápida de Riscos (ARR)"}]
[null,{"$f":"MID(CELL(\"filename\",B54),FIND(\"]\",CELL(\"filename\",B54))+1,255)","v":"Relatório de Vulnerabilidade"}]

{"sheet":"Contatos","index":10,"n_rows":14,"n_cols":3,"rows_kept":14,"cut":false,"hidden":false,"merged":[[6,0,6,2]]}
[{"$f":"MdlTle","v":"Ferramenta de Avaliação Rápida de Riscos (ARR)"}]
[{"$f":"MID(CELL(\"filename\",A1),FIND(\"]\",CELL(\"filename\",A1))+1,255)","v":"Contatos"}]
[]
[]
[]
["Perguntas?\n\n"]
["Contate nossa equipe e parceiros na região mais próxima de você:"]
[]
["MCR2030 Global Secretariat:",null,"mcr2030-global@un.org"]
["MCR2030 Regional Secretariat for Africa: ",null,"mcr2030-africa@un.org"]
["MCR2030 Regional Secretariat for Americas and the Caribbean: ",null,"mcr2030-amc@un.org"]
["MCR2030 Regional Secretariat for Arab States: ",null,"mcr2030-arabstates@un.org"]
["MCR2030 Regional Secretariat for Asia-Pacific: ",null,"mcr2030-ap@un.org"]
["MCR2030 Regional Secretariat for Europe and Central Asia: ",null,"mcr2030-eca@un.org"]